Workbook

Sheet METADATO
A1: EJERCICIO DE REFERENCIA DE APLICACIÓN DE LA METODOLOGÍA DE VALORACIÓN DE LAS INVERSIONES DE ACTIVOS DE NIVEL DE TENSIÓN 1
A4: NOTAS
A6: LAS CELDAS DE COLOR VERDE CONTIENEN LOS VALORES DE LOS PARÁMETROS GENERALES DE APLICACIÓN DE LA METODOLOGÍA DE VALORACIÓN DE INVERSIONES EN EL NIVEL DE TENSIÓN 1 (TASA DE DESCUENTO, VIDA ÚTIL, ETC.), ASÍ COMO LOS VALORES PROPIOS DE CADA EMPRESA (NÚMERO DE TRANSFORMADORES, VENTAS, PÉRDIDAS, ETC.)
A8: EN ESTE ARCHIVO LOS VALORES QUE APARECEN EN LAS CELDAS DE COLOR VERDE SE UTILIZAN COMO EJEMPLO PARA EL EJERCICIO DE APLICACIÓN Y NO CORRESPONDEN A VALORES ADOPTADOS POR LA COMISIÓN O A VALORES PROPIOS DE ALGUNA EMPRESA.
A10: PARA OBTENER EL CARGO MÁXIMO DE CADA EMPRESA SE DEBEN REEMPLAZAR LOS DATOS ACTUALES DE LAS CELDAS DE COLOR VERDE POR LOS PROPIOS DE CADA EMPRESA EN LAS HOJAS DE CÁLCULO "RESUMEN", "REDES MUESTRA", "TRAFOS MUESTRA" Y "TRANSFORMADORES"
A12: EL COSTO DE LOS POSTES CORRESPONDE A LA PONDERACIÓN DEL COSTO DE LOS POSTES DE SUSPENSIÓN (510 kg) EN UN 70% Y LOS DE RETENCIÓN (750 kg, 1050 kg) EN UN 30%

Sheet RESUMEN
A2: PARÁMETROS DE CÁLCULO
A3: TASA DE DESCUENTO | B3: 0.16
A5: VIDA ÚTIL [Años] | B5: 20
A7: VENTAS NIVEL DE TENSIÓN 1 [kWh-año] (Ventasj,1) | B7: 90000000
A9: PÉRDIDAS NO RECONOCIDAS [kWh-año] (PNTj,nr) | B9: 15000000
A11: CARGO MÁXIMO VIGENTE [$/kWh] | B11: 30
A13: OTROS INGRESOS [$] (OIj) | B13: 50000
A15: NIVELES DE TENSIÓN (NSj) | B15: 4
A17: CARGO MÁXIMO NIVEL DE TENSIÓN 1 [$/kWh]
A18: CARGO MÁXIMO [$/kWh] (CDIj,1) | B18: =B23/(B7+B9) -> 36.3599312
A20: ANUALIDAD DE LAS INVERSIONES ESTIMADAS EN REDES DE NIVEL DE TENSIÓN 1
A21: INVERSIÓN TOTAL [$] (Inv_Tj,1) | B21: =$F$32 -> 2.263516007e+10
A22: ANUALIDAD INVERSIÓN TOTAL [$] | B22: =PMT(TASA_DESCUENTO,VIDA_ÚTIL,-$B$21) -> 3817805276
A23: COSTO ANUAL EQUIVALENTE [$] (CAj,1) | B23: =B22-(B13/B15) -> 3817792776
A25: ESTIMACIÓN DEL COSTO DE LAS REDES DE NIVEL DE TENSIÓN 1
B26: ='COSTO CIRCUITOS'!$A$4 -> 2 | E26: ='COSTO CIRCUITOS'!$A$7 -> 5 | G26: ='COSTO CIRCUITOS'!$A$5 -> 3 | H26: ='COSTO CIRCUITOS'!$A$6 -> 4
A27: GRUPO DE CALIDAD | B27: TRANSFORMADORES MUESTRA | C27: CANTIDAD TRANSFORMADORES SISTEMA | D27: FACTOR DE PONDERACIÓN | E27: COSTO TOTAL MUESTRA | F27: COSTO TOTAL SISTEMA ESTIMADO
A28: 1 | B28: =HLOOKUP($A28,'COSTO CIRCUITOS'!$C$3:$F$8,$B$26,FALSE) -> 11 | C28: =VLOOKUP(A28,TRANSFORMADORES,2,FALSE) -> 150 | D28: =IFERROR(C28/B28,0) -> 13.63636364 | E28: =HLOOKUP($A28,'COSTO CIRCUITOS'!$C$3:$F$7,$E$26,FALSE) -> 151811941.3 | F28: =E28*D28 -> 2070162836
A29: 2 | B29: =HLOOKUP($A29,'COSTO CIRCUITOS'!$C$3:$F$8,$B$26,FALSE) -> 14 | C29: =VLOOKUP(A29,TRANSFORMADORES,2,FALSE) -> 400 | D29: =IFERROR(C29/B29,0) -> 28.57142857 | E29: =HLOOKUP($A29,'COSTO CIRCUITOS'!$C$3:$F$7,$E$26,FALSE) -> 238329497.5 | F29: =E29*D29 -> 6809414214
A30: 3 | B30: =HLOOKUP($A30,'COSTO CIRCUITOS'!$C$3:$F$8,$B$26,FALSE) -> 10 | C30: =VLOOKUP(A30,TRANSFORMADORES,2,FALSE) -> 350 | D30: =IFERROR(C30/B30,0) -> 35 | E30: =HLOOKUP($A30,'COSTO CIRCUITOS'!$C$3:$F$7,$E$26,FALSE) -> 123485709.7 | F30: 4321999839
A31: 4 | B31: =HLOOKUP($A31,'COSTO CIRCUITOS'!$C$3:$F$8,$B$26,FALSE) -> 5 | C31: =VLOOKUP(A31,TRANSFORMADORES,2,FALSE) -> 1500 | D31: =IFERROR(C31/B31,0) -> 300 | E31: =HLOOKUP($A31,'COSTO CIRCUITOS'!$C$3:$F$7,$E$26,FALSE) -> 31445277.27 | F31: 9433583181
A32: TOTAL | B32: =SUM(B28:B31) -> 40 | C32: =SUM(C28:C31) -> 2400 | E32: =SUM(E28:E31) -> 545072425.8 | F32: 2.263516007e+10
A34: COMPARACIÓN
B35: [$/kWh]
A36: CARGO ACTUAL | B36: =$B$11 -> 30
A37: CARGO PROPUESTO | B37: =$B$18 -> 36.3599312

Sheet COSTO CIRCUITOS
A1: INVERSIONES POR GRUPO DE CALIDAD
C2: GRUPO CALIDAD | D2: GRUPO CALIDAD | E2: GRUPO CALIDAD | F2: GRUPO CALIDAD
A3: 1 | C3: 1 | D3: 2 | E3: 3 | F3: 4
A4: =A3+1 -> 2 | B4: CIRCUITOS MUESTRA | C4: =DCOUNT(INFORMACION_ESTRATOS_GRUPO_CALIDAD,$C$10,C$2:C$3) -> 11 | D4: =DCOUNT(INFORMACION_ESTRATOS_GRUPO_CALIDAD,$C$10,D$2:D$3) -> 14 | E4: =DCOUNT(INFORMACION_ESTRATOS_GRUPO_CALIDAD,$C$10,E$2:E$3) -> 10 | F4: =DCOUNT(INFORMACION_ESTRATOS_GRUPO_CALIDAD,$C$10,F$2:F$3) -> 5
A5: =A4+1 -> 3 | B5: INVERSION TOTAL REDES | C5: =DSUM(CIRCUITOS,$D$10,C$2:C$3)+DSUM(CIRCUITOS,$E$10,C$2:C$3) -> 58627475.1 | D5: =DSUM(CIRCUITOS,$D$10,D$2:D$3)+DSUM(CIRCUITOS,$E$10,D$2:D$3) -> 11703494.09 | E5: =DSUM(CIRCUITOS,$D$10,E$2:E$3)+DSUM(CIRCUITOS,$E$10,E$2:E$3) -> 28041626.95 | F5: =DSUM(CIRCUITOS,$D$10,F$2:F$3)+DSUM(CIRCUITOS,$E$10,F$2:F$3) -> 8109948.752
A6: 4 | B6: INVERSION TOTAL TRANSFORMADORES | C6: =DSUM(CIRCUITOS,$F$10,C$2:C$3) -> 93184466.21 | D6: =DSUM(CIRCUITOS,$F$10,D$2:D$3) -> 226626003.4 | E6: =DSUM(CIRCUITOS,$F$10,E$2:E$3) -> 95444082.73 | F6: =DSUM(CIRCUITOS,$F$10,F$2:F$3) -> 23335328.52
A7: 5 | B7: INVERSION TOTAL | C7: =SUM(C5:C6) -> 151811941.3 | D7: =SUM(D5:D6) -> 238329497.5 | E7: =SUM(E5:E6) -> 123485709.7 | F7: =SUM(F5:F6) -> 31445277.27
A9: COSTO TOTAL POR CIRCUITO
A10: No. | B10: CÓDIGO TRANSFORMADOR | C10: GRUPO CALIDAD | D10: COSTO CONDUCTORES (INCLUYE INSTALACIÓN) | E10: COSTO APOYOS (INCLUYE INSTALACIÓN) | F10: COSTO TRANSFORMADORES (INCLUYE INSTALACIÓN) | G10: COSTO TOTAL CIRCUITO (INCLUYE INSTALACIÓN) | H10: CAPACIDAD TRANSFORMADOR [KVA]
A11: 1 | B11: ='TRAFOS MUESTRA'!B3 -> 50501502 | C11: =IFERROR(VLOOKUP(B11,TRAFOS,3,FALSE),0) -> 3 | D11: =IFERROR(SUMIF(CODIGO_TRAFOS_REDES,$B11,COSTO_CONDUCTOR_TRAMO),0) -> 8238974.91 | E11: =IFERROR(SUMIF(CODIGO_TRAFOS_REDES,$B11,COSTO_APOYOS_TRAMO),0) -> 16303989.75 | F11: =IFERROR(IF(H11>15,VLOOKUP(H11,COSTO_TRAFOS_3F,6,FALSE),VLOOKUP(H11,COSTO_TRAFOS_1F,6,FALSE)),0) -> 3624197.449 | G11: =SUM(D11:F11) -> 28167162.11 | H11: =IFERROR(VLOOKUP(VLOOKUP(B11,TRAFOS,4,FALSE),'COSTO ELEMENTOS N1'!$C$321:$C$350,1),0) -> 15
A12: =A11+1 -> 2 | B12: ='TRAFOS MUESTRA'!B4 -> 10500518 | C12: 1 | D12: 6096654.593 | E12: 22975121.22 | F12: 4570907.881 | G12: =SUM(D12:F12) -> 33642683.7 | H12: =IFERROR(VLOOKUP(VLOOKUP(B12,TRAFOS,4,FALSE),'COSTO ELEMENTOS N1'!$C$321:$C$350,1),0) -> 20
A13: =A12+1 -> 3 | B13: ='TRAFOS MUESTRA'!B5 -> 20101201 | C13: 4 | D13: 1129434.728 | E13: 285634.2152 | F13: 3624197.449 | G13: 5039266.393 | H13: =IFERROR(VLOOKUP(VLOOKUP(B13,TRAFOS,4,FALSE),'COSTO ELEMENTOS N1'!$C$321:$C$350,1),0) -> 15
A14: 4 | B14: ='TRAFOS MUESTRA'!B6 -> 50501703 | C14: 3 | D14: 0 | E14: 95211.40508 | F14: 3624197.449 | G14: 3719408.854 | H14: =IFERROR(VLOOKUP(VLOOKUP(B14,TRAFOS,4,FALSE),'COSTO ELEMENTOS N1'!$C$321:$C$350,1),0) -> 15
A15: 5 | B15: ='TRAFOS MUESTRA'!B7 -> 50501707 | C15: 3 | D15: 0 | E15: 95211.40508 | F15: 3426511.388 | G15: 3521722.793 | H15: =IFERROR(VLOOKUP(VLOOKUP(B15,TRAFOS,4,FALSE),'COSTO ELEMENTOS N1'!$C$321:$C$350,1),0) -> 10
A16: 6 | B16: ='TRAFOS MUESTRA'!B8 -> 50100208 | C16: 3 | D16: 768939.3909 | E16: 1215075.166 | F16: 3624197.449 | G16: 5608212.006 | H16: =IFERROR(VLOOKUP(VLOOKUP(B16,TRAFOS,4,FALSE),'COSTO ELEMENTOS N1'!$C$321:$C$350,1),0) -> 15
A17: 7 | B17: ='TRAFOS MUESTRA'!B9 -> 50501705 | C17: 3 | D17: 0 | E17: 95211.40508 | F17: 3624197.449 | G17: 3719408.854 | H17: =IFERROR(VLOOKUP(VLOOKUP(B17,TRAFOS,4,FALSE),'COSTO ELEMENTOS N1'!$C$321:$C$350,1),0) -> 15
A18: 8 | B18: ='TRAFOS MUESTRA'!B10 -> 10201013 | C18: 2 | D18: 86444.68739 | E18: 595478.6429 | F18: 12056834.22 | G18: 12738757.55 | H18: =IFERROR(VLOOKUP(VLOOKUP(B18,TRAFOS,4,FALSE),'COSTO ELEMENTOS N1'!$C$321:$C$350,1),0) -> 150
A19: 9 | B19: ='TRAFOS MUESTRA'!B11 -> 20100101 | C19: 3 | D19: 376478.2428 | E19: 95211.40508 | F19: 12056834.22 | G19: 12528523.87 | H19: =IFERROR(VLOOKUP(VLOOKUP(B19,TRAFOS,4,FALSE),'COSTO ELEMENTOS N1'!$C$321:$C$350,1),0) -> 150
A20: 10 | B20: ='TRAFOS MUESTRA'!B12 -> 10200801 | C20: 2 | D20: 86444.68739 | E20: 595478.6429 | F20: 23807821.79 | G20: 24489745.12 | H20: =IFERROR(VLOOKUP(VLOOKUP(B20,TRAFOS,4,FALSE),'COSTO ELEMENTOS N1'!$C$321:$C$350,1),0) -> 300
A21: 11 | B21: ='TRAFOS MUESTRA'!B13 -> 10500301 | C21: 1 | D21: 125117.3107 | E21: 595478.6429 | F21: 10603466.39 | G21: 11324062.34 | H21: =IFERROR(VLOOKUP(VLOOKUP(B21,TRAFOS,4,FALSE),'COSTO ELEMENTOS N1'!$C$321:$C$350,1),0) -> 112.5
A22: 12 | B22: ='TRAFOS MUESTRA'!B14 -> 10301606 | C22: 2 | D22: 59146.36506 | E22: 595478.6429 | F22: 12056834.22 | G22: 12711459.23 | H22: =IFERROR(VLOOKUP(VLOOKUP(B22,TRAFOS,4,FALSE),'COSTO ELEMENTOS N1'!$C$321:$C$350,1),0) -> 150
A23: 13 | B23: ='TRAFOS MUESTRA'!B15 -> 10300011 | C23: 2 | D23: 100093.8486 | E23: 595478.6429 | F23: 12056834.22 | G23: 12752406.71 | H23: =IFERROR(VLOOKUP(VLOOKUP(B23,TRAFOS,4,FALSE),'COSTO ELEMENTOS N1'!$C$321:$C$350,1),0) -> 150
A24: 14 | B24: ='TRAFOS MUESTRA'!B16 -> 10400601 | C24: 1 | D24: 59146.36506 | E24: 595478.6429 | F24: 6711444.933 | G24: 7366069.941 | H24: =IFERROR(VLOOKUP(VLOOKUP(B24,TRAFOS,4,FALSE),'COSTO ELEMENTOS N1'!$C$321:$C$350,1),0) -> 45
A25: 15 | B25: ='TRAFOS MUESTRA'!B17 -> 10500011 | C25: 2 | D25: 125117.3107 | E25: 595478.6429 | F25: 23807821.79 | G25: 24528417.75 | H25: =IFERROR(VLOOKUP(VLOOKUP(B25,TRAFOS,4,FALSE),'COSTO ELEMENTOS N1'!$C$321:$C$350,1),0) -> 300
A26: 16 | B26: ='TRAFOS MUESTRA'!B18 -> 10100006 | C26: 2 | D26: 766627.8856 | E26: 595478.6429 | F26: 12056834.22 | G26: 13418940.75 | H26: =IFERROR(VLOOKUP(VLOOKUP(B26,TRAFOS,4,FALSE),'COSTO ELEMENTOS N1'!$C$321:$C$350,1),0) -> 150
A27: 17 | B27: ='TRAFOS MUESTRA'!B19 -> 30100701 | C27: 3 | D27: 376478.2428 | E27: 95211.40508 | F27: 6711444.933 | G27: 7183134.581 | H27: =IFERROR(VLOOKUP(VLOOKUP(B27,TRAFOS,4,FALSE),'COSTO ELEMENTOS N1'!$C$321:$C$350,1),0) -> 45
A28: 18 | B28: ='TRAFOS MUESTRA'!B20 -> 10301607 | C28: 1 | D28: 59146.36506 | E28: 595478.6429 | F28: 10603466.39 | G28: 11258091.4 | H28: =IFERROR(VLOOKUP(VLOOKUP(B28,TRAFOS,4,FALSE),'COSTO ELEMENTOS N1'!$C$321:$C$350,1),0) -> 112.5
A29: 19 | B29: ='TRAFOS MUESTRA'!B21 -> 10200421 | C29: 2 | D29: 86444.68739 | E29: 595478.6429 | F29: 23807821.79 | G29: 24489745.12 | H29: =IFERROR(VLOOKUP(VLOOKUP(B29,TRAFOS,4,FALSE),'COSTO ELEMENTOS N1'!$C$321:$C$350,1),0) -> 300
A30: 20 | B30: ='TRAFOS MUESTRA'!B22 -> 10201510 | C30: 2 | D30: 100093.8486 | E30: 595478.6429 | F30: 12056834.22 | G30: 12752406.71 | H30: =IFERROR(VLOOKUP(VLOOKUP(B30,TRAFOS,4,FALSE),'COSTO ELEMENTOS N1'!$C$321:$C$350,1),0) -> 150
A31: 21 | B31: ='TRAFOS MUESTRA'!B23 -> 30200601 | C31: 3 | D31: 0 | E31: 95211.40508 | F31: 12056834.22 | G31: 12152045.63 | H31: =IFERROR(VLOOKUP(VLOOKUP(B31,TRAFOS,4,FALSE),'COSTO ELEMENTOS N1'!$C$321:$C$350,1),0) -> 150
A32: 22 | B32: ='TRAFOS MUESTRA'!B24 -> 10202702 | C32: 1 | D32: 100093.8486 | E32: 595478.6429 | F32: 12056834.22 | G32: 12752406.71 | H32: =IFERROR(VLOOKUP(VLOOKUP(B32,TRAFOS,4,FALSE),'COSTO ELEMENTOS N1'!$C$321:$C$350,1),0) -> 150
A33: 23 | B33: ='TRAFOS MUESTRA'!B25 -> 40200105 | C33: 1 | D33: 0 | E33: 95211.40508 | F33: 10603466.39 | G33: 10698677.79 | H33: =IFERROR(VLOOKUP(VLOOKUP(B33,TRAFOS,4,FALSE),'COSTO ELEMENTOS N1'!$C$321:$C$350,1),0) -> 112.5
A34: 24 | B34: ='TRAFOS MUESTRA'!B26 -> 50200010 | C34: 3 | D34: 0 | E34: 95211.40508 | F34: 34638833.96 | G34: 34734045.36 | H34: =IFERROR(VLOOKUP(VLOOKUP(B34,TRAFOS,4,FALSE),'COSTO ELEMENTOS N1'!$C$321:$C$350,1),0) -> 500
A35: 25 | B35: ='TRAFOS MUESTRA'!B27 -> 10300806 | C35: 2 | D35: 86444.68739 | E35: 595478.6429 | F35: 23807821.79 | G35: 24489745.12 | H35: =IFERROR(VLOOKUP(VLOOKUP(B35,TRAFOS,4,FALSE),'COSTO ELEMENTOS N1'!$C$321:$C$350,1),0) -> 300
A36: 26 | B36: ='TRAFOS MUESTRA'!B28 -> 10200408 | C36: 2 | D36: 766627.8856 | E36: 595478.6429 | F36: 8202435.522 | G36: 9564542.05 | H36: =IFERROR(VLOOKUP(VLOOKUP(B36,TRAFOS,4,FALSE),'COSTO ELEMENTOS N1'!$C$321:$C$350,1),0) -> 75
A37: 27 | B37: ='TRAFOS MUESTRA'!B29 -> 30200801 | C37: 3 | D37: 0 | E37: 95211.40508 | F37: 12056834.22 | G37: 12152045.63 | H37: =IFERROR(VLOOKUP(VLOOKUP(B37,TRAFOS,4,FALSE),'COSTO ELEMENTOS N1'!$C$321:$C$350,1),0) -> 150
A38: 28 | B38: ='TRAFOS MUESTRA'!B30 -> 10401301 | C38: 2 | D38: 125117.3107 | E38: 595478.6429 | F38: 29644342.61 | G38: 30364938.57 | H38: =IFERROR(VLOOKUP(VLOOKUP(B38,TRAFOS,4,FALSE),'COSTO ELEMENTOS N1'!$C$321:$C$350,1),0) -> 400
A39: 29 | B39: ='TRAFOS MUESTRA'!B31 -> 10500511 | C39: 2 | D39: 125117.3107 | E39: 595478.6429 | F39: 10603466.39 | G39: 11324062.34 | H39: =IFERROR(VLOOKUP(VLOOKUP(B39,TRAFOS,4,FALSE),'COSTO ELEMENTOS N1'!$C$321:$C$350,1),0) -> 112.5
A40: 30 | B40: ='TRAFOS MUESTRA'!B32 -> 10300201 | C40: 1 | D40: 86444.68739 | E40: 595478.6429 | F40: 8202435.522 | G40: 8884358.852 | H40: =IFERROR(VLOOKUP(VLOOKUP(B40,TRAFOS,4,FALSE),'COSTO ELEMENTOS N1'!$C$321:$C$350,1),0) -> 75
A41: 31 | B41: ='TRAFOS MUESTRA'!B33 -> 10100107 | C41: 2 | D41: 766627.8856 | E41: 595478.6429 | F41: 10603466.39 | G41: 11965572.92 | H41: =IFERROR(VLOOKUP(VLOOKUP(B41,TRAFOS,4,FALSE),'COSTO ELEMENTOS N1'!$C$321:$C$350,1),0) -> 112.5
A42: 32 | B42: ='TRAFOS MUESTRA'!B34 -> 10501108 | C42: 1 | D42: 0 | E42: 95211.40508 | F42: 12056834.22 | G42: 12152045.63 | H42: =IFERROR(VLOOKUP(VLOOKUP(B42,TRAFOS,4,FALSE),'COSTO ELEMENTOS N1'!$C$321:$C$350,1),0) -> 150
A43: 33 | B43: ='TRAFOS MUESTRA'!B35 -> 10301107 | C43: 2 | D43: 86444.68739 | E43: 595478.6429 | F43: 12056834.22 | G43: 12738757.55 | H43: =IFERROR(VLOOKUP(VLOOKUP(B43,TRAFOS,4,FALSE),'COSTO ELEMENTOS N1'!$C$321:$C$350,1),0) -> 150
A44: 34 | B44: ='TRAFOS MUESTRA'!B36 -> 30100105 | C44: 1 | D44: 5756850.422 | E44: 5959919.223 | F44: 5948977.298 | G44: 17665746.94 | H44: =IFERROR(VLOOKUP(VLOOKUP(B44,TRAFOS,4,FALSE),'COSTO ELEMENTOS N1'!$C$321:$C$350,1),0) -> 30
A45: 35 | B45: ='TRAFOS MUESTRA'!B37 -> 20200508 | C45: 4 | D45: 376478.2428 | E45: 95211.40508 | F45: 3426511.388 | G45: 3898201.036 | H45: =IFERROR(VLOOKUP(VLOOKUP(B45,TRAFOS,4,FALSE),'COSTO ELEMENTOS N1'!$C$321:$C$350,1),0) -> 10
A46: 36 | B46: ='TRAFOS MUESTRA'!B38 -> 20205902 | C46: 4 | D46: 376478.2428 | E46: 95211.40508 | F46: 5948977.298 | G46: 6420666.946 | H46: =IFERROR(VLOOKUP(VLOOKUP(B46,TRAFOS,4,FALSE),'COSTO ELEMENTOS N1'!$C$321:$C$350,1),0) -> 30
A47: 37 | B47: ='TRAFOS MUESTRA'!B39 -> 30201516 | C47: 4 | D47: 3070497.877 | E47: 2585791.231 | F47: 6711444.933 | G47: 12367734.04 | H47: =IFERROR(VLOOKUP(VLOOKUP(B47,TRAFOS,4,FALSE),'COSTO ELEMENTOS N1'!$C$321:$C$350,1),0) -> 50
A48: 38 | B48: ='TRAFOS MUESTRA'!B40 -> 50301305 | C48: 1 | D48: 109193.2893 | E48: 95211.40508 | F48: 8202435.522 | G48: 8406840.216 | H48: =IFERROR(VLOOKUP(VLOOKUP(B48,TRAFOS,4,FALSE),'COSTO ELEMENTOS N1'!$C$321:$C$350,1),0) -> 75
A49: 39 | B49: ='TRAFOS MUESTRA'!B41 -> 20300701 | C49: 4 | D49: 0 | E49: 95211.40508 | F49: 3624197.449 | G49: 3719408.854 | H49: =IFERROR(VLOOKUP(VLOOKUP(B49,TRAFOS,4,FALSE),'COSTO ELEMENTOS N1'!$C$321:$C$350,1),0) -> 15
A50: 40 | B50: ='TRAFOS MUESTRA'!B42 -> 30102205 | C50: 1 | D50: 7076306.645 | E50: 6960453.699 | F50: 3624197.449 | G50: 17660957.79 | H50: =IFERROR(VLOOKUP(VLOOKUP(B50,TRAFOS,4,FALSE),'COSTO ELEMENTOS N1'!$C$321:$C$350,1),0) -> 15
A51: 41 | B51: ='TRAFOS MUESTRA'!B43 -> 0 | C51: 0 | D51: 0 | E51: 0 | F51: 0 | G51: 0 | H51: =IFERROR(VLOOKUP(VLOOKUP(B51,TRAFOS,4,FALSE),'COSTO ELEMENTOS N1'!$C$321:$C$350,1),0) -> 0
A52: 42 | B52: ='TRAFOS MUESTRA'!B44 -> 0 | C52: 0 | D52: 0 | E52: 0 | F52: 0 | G52: 0 | H52: =IFERROR(VLOOKUP(VLOOKUP(B52,TRAFOS,4,FALSE),'COSTO ELEMENTOS N1'!$C$321:$C$350,1),0) -> 0
A53: 43 | B53: ='TRAFOS MUESTRA'!B45 -> 0 | C53: 0 | D53: 0 | E53: 0 | F53: 0 | G53: 0 | H53: =IFERROR(VLOOKUP(VLOOKUP(B53,TRAFOS,4,FALSE),'COSTO ELEMENTOS N1'!$C$321:$C$350,1),0) -> 0
A54: 44 | B54: ='TRAFOS MUESTRA'!B46 -> 0 | C54: 0 | D54: 0 | E54: 0 | F54: 0 | G54: 0 | H54: =IFERROR(VLOOKUP(VLOOKUP(B54,TRAFOS,4,FALSE),'COSTO ELEMENTOS N1'!$C$321:$C$350,1),0) -> 0
A55: 45 | B55: ='TRAFOS MUESTRA'!B47 -> 0 | C55: 0 | D55: 0 | E55: 0 | F55: 0 | G55: 0 | H55: =IFERROR(VLOOKUP(VLOOKUP(B55,TRAFOS,4,FALSE),'COSTO ELEMENTOS N1'!$C$321:$C$350,1),0) -> 0
A56: 46 | B56: ='TRAFOS MUESTRA'!B48 -> 0 | C56: 0 | D56: 0 | E56: 0 | F56: 0 | G56: 0 | H56: =IFERROR(VLOOKUP(VLOOKUP(B56,TRAFOS,4,FALSE),'COSTO ELEMENTOS N1'!$C$321:$C$350,1),0) -> 0
A57: 47 | B57: ='TRAFOS MUESTRA'!B49 -> 0 | C57: 0 | D57: 0 | E57: 0 | F57: 0 | G57: 0 | H57: =IFERROR(VLOOKUP(VLOOKUP(B57,TRAFOS,4,FALSE),'COSTO ELEMENTOS N1'!$C$321:$C$350,1),0) -> 0
A58: 48 | B58: ='TRAFOS MUESTRA'!B50 -> 0 | C58: 0 | D58: 0 | E58: 0 | F58: 0 | G58: 0 | H58: =IFERROR(VLOOKUP(VLOOKUP(B58,TRAFOS,4,FALSE),'COSTO ELEMENTOS N1'!$C$321:$C$350,1),0) -> 0
A59: 49 | B59: ='TRAFOS MUESTRA'!B51 -> 0 | C59: 0 | D59: 0 | E59: 0 | F59: 0 | G59: 0 | H59: =IFERROR(VLOOKUP(VLOOKUP(B59,TRAFOS,4,FALSE),'COSTO ELEMENTOS N1'!$C$321:$C$350,1),0) -> 0
A60: 50 | B60: ='TRAFOS MUESTRA'!B52 -> 0 | C60: 0 | D60: 0 | E60: 0 | F60: 0 | G60: 0 | H60: =IFERROR(VLOOKUP(VLOOKUP(B60,TRAFOS,4,FALSE),'COSTO ELEMENTOS N1'!$C$321:$C$350,1),0) -> 0
A61: 51 | B61: ='TRAFOS MUESTRA'!B53 -> 0 | C61: 0 | D61: 0 | E61: 0 | F61: 0 | G61: 0 | H61: =IFERROR(VLOOKUP(VLOOKUP(B61,TRAFOS,4,FALSE),'COSTO ELEMENTOS N1'!$C$321:$C$350,1),0) -> 0
A62: 52 | B62: ='TRAFOS MUESTRA'!B54 -> 0 | C62: 0 | D62: 0 | E62: 0 | F62: 0 | G62: 0 | H62: =IFERROR(VLOOKUP(VLOOKUP(B62,TRAFOS,4,FALSE),'COSTO ELEMENTOS N1'!$C$321:$C$350,1),0) -> 0
A63: 53 | B63: ='TRAFOS MUESTRA'!B55 -> 0 | C63: 0 | D63: 0 | E63: 0 | F63: 0 | G63: 0 | H63: =IFERROR(VLOOKUP(VLOOKUP(B63,TRAFOS,4,FALSE),'COSTO ELEMENTOS N1'!$C$321:$C$350,1),0) -> 0
A64: 54 | B64: ='TRAFOS MUESTRA'!B56 -> 0 | C64: 0 | D64: 0 | E64: 0 | F64: 0 | G64: 0 | H64: =IFERROR(VLOOKUP(VLOOKUP(B64,TRAFOS,4,FALSE),'COSTO ELEMENTOS N1'!$C$321:$C$350,1),0) -> 0
A65: 55 | B65: ='TRAFOS MUESTRA'!B57 -> 0 | C65: 0 | D65: 0 | E65: 0 | F65: 0 | G65: 0 | H65: =IFERROR(VLOOKUP(VLOOKUP(B65,TRAFOS,4,FALSE),'COSTO ELEMENTOS N1'!$C$321:$C$350,1),0) -> 0
A66: 56 | B66: ='TRAFOS MUESTRA'!B58 -> 0 | C66: 0 | D66: 0 | E66: 0 | F66: 0 | G66: 0 | H66: =IFERROR(VLOOKUP(VLOOKUP(B66,TRAFOS,4,FALSE),'COSTO ELEMENTOS N1'!$C$321:$C$350,1),0) -> 0
A67: 57 | B67: ='TRAFOS MUESTRA'!B59 -> 0 | C67: 0 | D67: 0 | E67: 0 | F67: 0 | G67: 0 | H67: =IFERROR(VLOOKUP(VLOOKUP(B67,TRAFOS,4,FALSE),'COSTO ELEMENTOS N1'!$C$321:$C$350,1),0) -> 0
A68: 58 | B68: ='TRAFOS MUESTRA'!B60 -> 0 | C68: 0 | D68: 0 | E68: 0 | F68: 0 | G68: 0 | H68: =IFERROR(VLOOKUP(VLOOKUP(B68,TRAFOS,4,FALSE),'COSTO ELEMENTOS N1'!$C$321:$C$350,1),0) -> 0
A69: 59 | B69: ='TRAFOS MUESTRA'!B61 -> 0 | C69: 0 | D69: 0 | E69: 0 | F69: 0 | G69: 0 | H69: =IFERROR(VLOOKUP(VLOOKUP(B69,TRAFOS,4,FALSE),'COSTO ELEMENTOS N1'!$C$321:$C$350,1),0) -> 0
A70: 60 | B70: ='TRAFOS MUESTRA'!B62 -> 0 | C70: 0 | D70: 0 | E70: 0 | F70: 0 | G70: 0 | H70: =IFERROR(VLOOKUP(VLOOKUP(B70,TRAFOS,4,FALSE),'COSTO ELEMENTOS N1'!$C$321:$C$350,1),0) -> 0
A71: 61 | B71: ='TRAFOS MUESTRA'!B63 -> 0 | C71: 0 | D71: 0 | E71: 0 | F71: 0 | G71: 0 | H71: =IFERROR(VLOOKUP(VLOOKUP(B71,TRAFOS,4,FALSE),'COSTO ELEMENTOS N1'!$C$321:$C$350,1),0) -> 0
A72: 62 | B72: ='TRAFOS MUESTRA'!B64 -> 0 | C72: 0 | D72: 0 | E72: 0 | F72: 0 | G72: 0 | H72: =IFERROR(VLOOKUP(VLOOKUP(B72,TRAFOS,4,FALSE),'COSTO ELEMENTOS N1'!$C$321:$C$350,1),0) -> 0
A73: 63 | B73: ='TRAFOS MUESTRA'!B65 -> 0 | C73: 0 | D73: 0 | E73: 0 | F73: 0 | G73: 0 | H73: =IFERROR(VLOOKUP(VLOOKUP(B73,TRAFOS,4,FALSE),'COSTO ELEMENTOS N1'!$C$321:$C$350,1),0) -> 0
A74: 64 | B74: ='TRAFOS MUESTRA'!B66 -> 0 | C74: 0 | D74: 0 | E74: 0 | F74: 0 | G74: 0 | H74: =IFERROR(VLOOKUP(VLOOKUP(B74,TRAFOS,4,FALSE),'COSTO ELEMENTOS N1'!$C$321:$C$350,1),0) -> 0
A75: 65 | B75: ='TRAFOS MUESTRA'!B67 -> 0 | C75: =IFERROR(VLOOKUP(B75,TRAFOS,3,FALSE),0) -> 0 | D75: =IFERROR(SUMIF(CODIGO_TRAFOS_REDES,$B75,COSTO_CONDUCTOR_TRAMO),0) -> 0 | E75: =IFERROR(SUMIF(CODIGO_TRAFOS_REDES,$B75,COSTO_APOYOS_TRAMO),0) -> 0 | F75: =IFERROR(IF(H75>15,VLOOKUP(H75,COSTO_TRAFOS_3F,6,FALSE),VLOOKUP(H75,COSTO_TRAFOS_1F,6,FALSE)),0) -> 0 | G75: 0 | H75: =IFERROR(VLOOKUP(VLOOKUP(B75,TRAFOS,4,FALSE),'COSTO ELEMENTOS N1'!$C$321:$C$350,1),0) -> 0
A76: 66 | B76: ='TRAFOS MUESTRA'!B68 -> 0 | C76: 0 | D76: 0 | E76: 0 | F76: 0 | G76: =SUM(D76:F76) -> 0 | H76: =IFERROR(VLOOKUP(VLOOKUP(B76,TRAFOS,4,FALSE),'COSTO ELEMENTOS N1'!$C$321:$C$350,1),0) -> 0
A77: =A76+1 -> 67 | B77: ='TRAFOS MUESTRA'!B69 -> 0 | C77: 0 | D77: 0 | E77: 0 | F77: 0 | G77: 0 | H77: =IFERROR(VLOOKUP(VLOOKUP(B77,TRAFOS,4,FALSE),'COSTO ELEMENTOS N1'!$C$321:$C$350,1),0) -> 0
A78: 68 | B78: ='TRAFOS MUESTRA'!B70 -> 0 | C78: 0 | D78: 0 | E78: 0 | F78: 0 | G78: 0 | H78: =IFERROR(VLOOKUP(VLOOKUP(B78,TRAFOS,4,FALSE),'COSTO ELEMENTOS N1'!$C$321:$C$350,1),0) -> 0
A79: 69 | B79: ='TRAFOS MUESTRA'!B71 -> 0 | C79: 0 | D79: 0 | E79: 0 | F79: 0 | G79: 0 | H79: =IFERROR(VLOOKUP(VLOOKUP(B79,TRAFOS,4,FALSE),'COSTO ELEMENTOS N1'!$C$321:$C$350,1),0) -> 0
A80: 70 | B80: ='TRAFOS MUESTRA'!B72 -> 0 | C80: 0 | D80: 0 | E80: 0 | F80: 0 | G80: 0 | H80: =IFERROR(VLOOKUP(VLOOKUP(B80,TRAFOS,4,FALSE),'COSTO ELEMENTOS N1'!$C$321:$C$350,1),0) -> 0
A81: 71 | B81: ='TRAFOS MUESTRA'!B73 -> 0 | C81: 0 | D81: 0 | E81: 0 | F81: 0 | G81: 0 | H81: =IFERROR(VLOOKUP(VLOOKUP(B81,TRAFOS,4,FALSE),'COSTO ELEMENTOS N1'!$C$321:$C$350,1),0) -> 0
A82: 72 | B82: ='TRAFOS MUESTRA'!B74 -> 0 | C82: 0 | D82: 0 | E82: 0 | F82: 0 | G82: 0 | H82: =IFERROR(VLOOKUP(VLOOKUP(B82,TRAFOS,4,FALSE),'COSTO ELEMENTOS N1'!$C$321:$C$350,1),0) -> 0
A83: 73 | B83: ='TRAFOS MUESTRA'!B75 -> 0 | C83: 0 | D83: 0 | E83: 0 | F83: 0 | G83: 0 | H83: =IFERROR(VLOOKUP(VLOOKUP(B83,TRAFOS,4,FALSE),'COSTO ELEMENTOS N1'!$C$321:$C$350,1),0) -> 0
A84: 74 | B84: ='TRAFOS MUESTRA'!B76 -> 0 | C84: 0 | D84: 0 | E84: 0 | F84: 0 | G84: 0 | H84: =IFERROR(VLOOKUP(VLOOKUP(B84,TRAFOS,4,FALSE),'COSTO ELEMENTOS N1'!$C$321:$C$350,1),0) -> 0
A85: 75 | B85: ='TRAFOS MUESTRA'!B77 -> 0 | C85: 0 | D85: 0 | E85: 0 | F85: 0 | G85: 0 | H85: =IFERROR(VLOOKUP(VLOOKUP(B85,TRAFOS,4,FALSE),'COSTO ELEMENTOS N1'!$C$321:$C$350,1),0) -> 0
A86: 76 | B86: ='TRAFOS MUESTRA'!B78 -> 0 | C86: 0 | D86: 0 | E86: 0 | F86: 0 | G86: 0 | H86: =IFERROR(VLOOKUP(VLOOKUP(B86,TRAFOS,4,FALSE),'COSTO ELEMENTOS N1'!$C$321:$C$350,1),0) -> 0
A87: 77 | B87: ='TRAFOS MUESTRA'!B79 -> 0 | C87: 0 | D87: 0 | E87: 0 | F87: 0 | G87: 0 | H87: =IFERROR(VLOOKUP(VLOOKUP(B87,TRAFOS,4,FALSE),'COSTO ELEMENTOS N1'!$C$321:$C$350,1),0) -> 0
A88: 78 | B88: ='TRAFOS MUESTRA'!B80 -> 0 | C88: 0 | D88: 0 | E88: 0 | F88: 0 | G88: 0 | H88: =IFERROR(VLOOKUP(VLOOKUP(B88,TRAFOS,4,FALSE),'COSTO ELEMENTOS N1'!$C$321:$C$350,1),0) -> 0
A89: 79 | B89: ='TRAFOS MUESTRA'!B81 -> 0 | C89: 0 | D89: 0 | E89: 0 | F89: 0 | G89: 0 | H89: =IFERROR(VLOOKUP(VLOOKUP(B89,TRAFOS,4,FALSE),'COSTO ELEMENTOS N1'!$C$321:$C$350,1),0) -> 0
A90: 80 | B90: ='TRAFOS MUESTRA'!B82 -> 0 | C90: 0 | D90: 0 | E90: 0 | F90: 0 | G90: 0 | H90: =IFERROR(VLOOKUP(VLOOKUP(B90,TRAFOS,4,FALSE),'COSTO ELEMENTOS N1'!$C$321:$C$350,1),0) -> 0
A91: 81 | B91: ='TRAFOS MUESTRA'!B83 -> 0 | C91: 0 | D91: 0 | E91: 0 | F91: 0 | G91: 0 | H91: =IFERROR(VLOOKUP(VLOOKUP(B91,TRAFOS,4,FALSE),'COSTO ELEMENTOS N1'!$C$321:$C$350,1),0) -> 0
A92: 82 | B92: ='TRAFOS MUESTRA'!B84 -> 0 | C92: 0 | D92: 0 | E92: 0 | F92: 0 | G92: 0 | H92: =IFERROR(VLOOKUP(VLOOKUP(B92,TRAFOS,4,FALSE),'COSTO ELEMENTOS N1'!$C$321:$C$350,1),0) -> 0
A93: 83 | B93: ='TRAFOS MUESTRA'!B85 -> 0 | C93: 0 | D93: 0 | E93: 0 | F93: 0 | G93: 0 | H93: =IFERROR(VLOOKUP(VLOOKUP(B93,TRAFOS,4,FALSE),'COSTO ELEMENTOS N1'!$C$321:$C$350,1),0) -> 0
A94: 84 | B94: ='TRAFOS MUESTRA'!B86 -> 0 | C94: 0 | D94: 0 | E94: 0 | F94: 0 | G94: 0 | H94: =IFERROR(VLOOKUP(VLOOKUP(B94,TRAFOS,4,FALSE),'COSTO ELEMENTOS N1'!$C$321:$C$350,1),0) -> 0
A95: 85 | B95: ='TRAFOS MUESTRA'!B87 -> 0 | C95: 0 | D95: 0 | E95: 0 | F95: 0 | G95: 0 | H95: =IFERROR(VLOOKUP(VLOOKUP(B95,TRAFOS,4,FALSE),'COSTO ELEMENTOS N1'!$C$321:$C$350,1),0) -> 0
A96: 86 | B96: ='TRAFOS MUESTRA'!B88 -> 0 | C96: 0 | D96: 0 | E96: 0 | F96: 0 | G96: 0 | H96: =IFERROR(VLOOKUP(VLOOKUP(B96,TRAFOS,4,FALSE),'COSTO ELEMENTOS N1'!$C$321:$C$350,1),0) -> 0
A97: 87 | B97: ='TRAFOS MUESTRA'!B89 -> 0 | C97: 0 | D97: 0 | E97: 0 | F97: 0 | G97: 0 | H97: =IFERROR(VLOOKUP(VLOOKUP(B97,TRAFOS,4,FALSE),'COSTO ELEMENTOS N1'!$C$321:$C$350,1),0) -> 0
A98: 88 | B98: ='TRAFOS MUESTRA'!B90 -> 0 | C98: 0 | D98: 0 | E98: 0 | F98: 0 | G98: 0 | H98: =IFERROR(VLOOKUP(VLOOKUP(B98,TRAFOS,4,FALSE),'COSTO ELEMENTOS N1'!$C$321:$C$350,1),0) -> 0
A99: 89 | B99: ='TRAFOS MUESTRA'!B91 -> 0 | C99: 0 | D99: 0 | E99: 0 | F99: 0 | G99: 0 | H99: =IFERROR(VLOOKUP(VLOOKUP(B99,TRAFOS,4,FALSE),'COSTO ELEMENTOS N1'!$C$321:$C$350,1),0) -> 0
A100: 90 | B100: ='TRAFOS MUESTRA'!B92 -> 0 | C100: 0 | D100: 0 | E100: 0 | F100: 0 | G100: 0 | H100: =IFERROR(VLOOKUP(VLOOKUP(B100,TRAFOS,4,FALSE),'COSTO ELEMENTOS N1'!$C$321:$C$350,1),0) -> 0
A101: 91 | B101: ='TRAFOS MUESTRA'!B93 -> 0 | C101: 0 | D101: 0 | E101: 0 | F101: 0 | G101: 0 | H101: =IFERROR(VLOOKUP(VLOOKUP(B101,TRAFOS,4,FALSE),'COSTO ELEMENTOS N1'!$C$321:$C$350,1),0) -> 0
A102: 92 | B102: ='TRAFOS MUESTRA'!B94 -> 0 | C102: 0 | D102: 0 | E102: 0 | F102: 0 | G102: 0 | H102: =IFERROR(VLOOKUP(VLOOKUP(B102,TRAFOS,4,FALSE),'COSTO ELEMENTOS N1'!$C$321:$C$350,1),0) -> 0
A103: 93 | B103: ='TRAFOS MUESTRA'!B95 -> 0 | C103: 0 | D103: 0 | E103: 0 | F103: 0 | G103: 0 | H103: =IFERROR(VLOOKUP(VLOOKUP(B103,TRAFOS,4,FALSE),'COSTO ELEMENTOS N1'!$C$321:$C$350,1),0) -> 0
A104: 94 | B104: ='TRAFOS MUESTRA'!B96 -> 0 | C104: 0 | D104: 0 | E104: 0 | F104: 0 | G104: 0 | H104: =IFERROR(VLOOKUP(VLOOKUP(B104,TRAFOS,4,FALSE),'COSTO ELEMENTOS N1'!$C$321:$C$350,1),0) -> 0
A105: 95 | B105: ='TRAFOS MUESTRA'!B97 -> 0 | C105: 0 | D105: 0 | E105: 0 | F105: 0 | G105: 0 | H105: =IFERROR(VLOOKUP(VLOOKUP(B105,TRAFOS,4,FALSE),'COSTO ELEMENTOS N1'!$C$321:$C$350,1),0) -> 0
A106: 96 | B106: ='TRAFOS MUESTRA'!B98 -> 0 | C106: 0 | D106: 0 | E106: 0 | F106: 0 | G106: 0 | H106: =IFERROR(VLOOKUP(VLOOKUP(B106,TRAFOS,4,FALSE),'COSTO ELEMENTOS N1'!$C$321:$C$350,1),0) -> 0
A107: 97 | B107: ='TRAFOS MUESTRA'!B99 -> 0 | C107: 0 | D107: 0 | E107: 0 | F107: 0 | G107: 0 | H107: =IFERROR(VLOOKUP(VLOOKUP(B107,TRAFOS,4,FALSE),'COSTO ELEMENTOS N1'!$C$321:$C$350,1),0) -> 0
A108: 98 | B108: ='TRAFOS MUESTRA'!B100 -> 0 | C108: 0 | D108: 0 | E108: 0 | F108: 0 | G108: 0 | H108: =IFERROR(VLOOKUP(VLOOKUP(B108,TRAFOS,4,FALSE),'COSTO ELEMENTOS N1'!$C$321:$C$350,1),0) -> 0
A109: 99 | B109: ='TRAFOS MUESTRA'!B101 -> 0 | C109: 0 | D109: 0 | E109: 0 | F109: 0 | G109: 0 | H109: =IFERROR(VLOOKUP(VLOOKUP(B109,TRAFOS,4,FALSE),'COSTO ELEMENTOS N1'!$C$321:$C$350,1),0) -> 0
A110: 100 | B110: ='TRAFOS MUESTRA'!B102 -> 0 | C110: 0 | D110: 0 | E110: 0 | F110: 0 | G110: 0 | H110: =IFERROR(VLOOKUP(VLOOKUP(B110,TRAFOS,4,FALSE),'COSTO ELEMENTOS N1'!$C$321:$C$350,1),0) -> 0
A111: 101 | B111: ='TRAFOS MUESTRA'!B103 -> 0 | C111: 0 | D111: 0 | E111: 0 | F111: 0 | G111: 0 | H111: =IFERROR(VLOOKUP(VLOOKUP(B111,TRAFOS,4,FALSE),'COSTO ELEMENTOS N1'!$C$321:$C$350,1),0) -> 0
A112: 102 | B112: ='TRAFOS MUESTRA'!B104 -> 0 | C112: 0 | D112: 0 | E112: 0 | F112: 0 | G112: 0 | H112: =IFERROR(VLOOKUP(VLOOKUP(B112,TRAFOS,4,FALSE),'COSTO ELEMENTOS N1'!$C$321:$C$350,1),0) -> 0
A113: 103 | B113: ='TRAFOS MUESTRA'!B105 -> 0 | C113: 0 | D113: 0 | E113: 0 | F113: 0 | G113: 0 | H113: =IFERROR(VLOOKUP(VLOOKUP(B113,TRAFOS,4,FALSE),'COSTO ELEMENTOS N1'!$C$321:$C$350,1),0) -> 0
A114: 104 | B114: ='TRAFOS MUESTRA'!B106 -> 0 | C114: 0 | D114: 0 | E114: 0 | F114: 0 | G114: 0 | H114: =IFERROR(VLOOKUP(VLOOKUP(B114,TRAFOS,4,FALSE),'COSTO ELEMENTOS N1'!$C$321:$C$350,1),0) -> 0
A115: 105 | B115: ='TRAFOS MUESTRA'!B107 -> 0 | C115: 0 | D115: 0 | E115: 0 | F115: 0 | G115: 0 | H115: =IFERROR(VLOOKUP(VLOOKUP(B115,TRAFOS,4,FALSE),'COSTO ELEMENTOS N1'!$C$321:$C$350,1),0) -> 0
A116: 106 | B116: ='TRAFOS MUESTRA'!B108 -> 0 | C116: 0 | D116: 0 | E116: 0 | F116: 0 | G116: 0 | H116: =IFERROR(VLOOKUP(VLOOKUP(B116,TRAFOS,4,FALSE),'COSTO ELEMENTOS N1'!$C$321:$C$350,1),0) -> 0
A117: 107 | B117: ='TRAFOS MUESTRA'!B109 -> 0 | C117: 0 | D117: 0 | E117: 0 | F117: 0 | G117: 0 | H117: =IFERROR(VLOOKUP(VLOOKUP(B117,TRAFOS,4,FALSE),'COSTO ELEMENTOS N1'!$C$321:$C$350,1),0) -> 0
A118: 108 | B118: ='TRAFOS MUESTRA'!B110 -> 0 | C118: 0 | D118: 0 | E118: 0 | F118: 0 | G118: 0 | H118: =IFERROR(VLOOKUP(VLOOKUP(B118,TRAFOS,4,FALSE),'COSTO ELEMENTOS N1'!$C$321:$C$350,1),0) -> 0
A119: 109 | B119: ='TRAFOS MUESTRA'!B111 -> 0 | C119: 0 | D119: 0 | E119: 0 | F119: 0 | G119: 0 | H119: =IFERROR(VLOOKUP(VLOOKUP(B119,TRAFOS,4,FALSE),'COSTO ELEMENTOS N1'!$C$321:$C$350,1),0) -> 0
A120: 110 | B120: ='TRAFOS MUESTRA'!B112 -> 0 | C120: 0 | D120: 0 | E120: 0 | F120: 0 | G120: 0 | H120: =IFERROR(VLOOKUP(VLOOKUP(B120,TRAFOS,4,FALSE),'COSTO ELEMENTOS N1'!$C$321:$C$350,1),0) -> 0
A121: 111 | B121: ='TRAFOS MUESTRA'!B113 -> 0 | C121: 0 | D121: 0 | E121: 0 | F121: 0 | G121: 0 | H121: =IFERROR(VLOOKUP(VLOOKUP(B121,TRAFOS,4,FALSE),'COSTO ELEMENTOS N1'!$C$321:$C$350,1),0) -> 0
A122: 112 | B122: ='TRAFOS MUESTRA'!B114 -> 0 | C122: 0 | D122: 0 | E122: 0 | F122: 0 | G122: 0 | H122: =IFERROR(VLOOKUP(VLOOKUP(B122,TRAFOS,4,FALSE),'COSTO ELEMENTOS N1'!$C$321:$C$350,1),0) -> 0
A123: 113 | B123: ='TRAFOS MUESTRA'!B115 -> 0 | C123: 0 | D123: 0 | E123: 0 | F123: 0 | G123: 0 | H123: =IFERROR(VLOOKUP(VLOOKUP(B123,TRAFOS,4,FALSE),'COSTO ELEMENTOS N1'!$C$321:$C$350,1),0) -> 0
A124: 114 | B124: ='TRAFOS MUESTRA'!B116 -> 0 | C124: 0 | D124: 0 | E124: 0 | F124: 0 | G124: 0 | H124: =IFERROR(VLOOKUP(VLOOKUP(B124,TRAFOS,4,FALSE),'COSTO ELEMENTOS N1'!$C$321:$C$350,1),0) -> 0
A125: 115 | B125: ='TRAFOS MUESTRA'!B117 -> 0 | C125: 0 | D125: 0 | E125: 0 | F125: 0 | G125: 0 | H125: =IFERROR(VLOOKUP(VLOOKUP(B125,TRAFOS,4,FALSE),'COSTO ELEMENTOS N1'!$C$321:$C$350,1),0) -> 0
A126: 116 | B126: ='TRAFOS MUESTRA'!B118 -> 0 | C126: 0 | D126: 0 | E126: 0 | F126: 0 | G126: 0 | H126: =IFERROR(VLOOKUP(VLOOKUP(B126,TRAFOS,4,FALSE),'COSTO ELEMENTOS N1'!$C$321:$C$350,1),0) -> 0
A127: 117 | B127: ='TRAFOS MUESTRA'!B119 -> 0 | C127: 0 | D127: 0 | E127: 0 | F127: 0 | G127: 0 | H127: =IFERROR(VLOOKUP(VLOOKUP(B127,TRAFOS,4,FALSE),'COSTO ELEMENTOS N1'!$C$321:$C$350,1),0) -> 0
A128: 118 | B128: ='TRAFOS MUESTRA'!B120 -> 0 | C128: 0 | D128: 0 | E128: 0 | F128: 0 | G128: 0 | H128: =IFERROR(VLOOKUP(VLOOKUP(B128,TRAFOS,4,FALSE),'COSTO ELEMENTOS N1'!$C$321:$C$350,1),0) -> 0
A129: 119 | B129: ='TRAFOS MUESTRA'!B121 -> 0 | C129: 0 | D129: 0 | E129: 0 | F129: 0 | G129: 0 | H129: =IFERROR(VLOOKUP(VLOOKUP(B129,TRAFOS,4,FALSE),'COSTO ELEMENTOS N1'!$C$321:$C$350,1),0) -> 0
A130: 120 | B130: ='TRAFOS MUESTRA'!B122 -> 0 | C130: 0 | D130: 0 | E130: 0 | F130: 0 | G130: 0 | H130: =IFERROR(VLOOKUP(VLOOKUP(B130,TRAFOS,4,FALSE),'COSTO ELEMENTOS N1'!$C$321:$C$350,1),0) -> 0
A131: 121 | B131: ='TRAFOS MUESTRA'!B123 -> 0 | C131: 0 | D131: 0 | E131: 0 | F131: 0 | G131: 0 | H131: =IFERROR(VLOOKUP(VLOOKUP(B131,TRAFOS,4,FALSE),'COSTO ELEMENTOS N1'!$C$321:$C$350,1),0) -> 0
A132: 122 | B132: ='TRAFOS MUESTRA'!B124 -> 0 | C132: 0 | D132: 0 | E132: 0 | F132: 0 | G132: 0 | H132: =IFERROR(VLOOKUP(VLOOKUP(B132,TRAFOS,4,FALSE),'COSTO ELEMENTOS N1'!$C$321:$C$350,1),0) -> 0
A133: 123 | B133: ='TRAFOS MUESTRA'!B125 -> 0 | C133: 0 | D133: 0 | E133: 0 | F133: 0 | G133: 0 | H133: =IFERROR(VLOOKUP(VLOOKUP(B133,TRAFOS,4,FALSE),'COSTO ELEMENTOS N1'!$C$321:$C$350,1),0) -> 0
A134: 124 | B134: ='TRAFOS MUESTRA'!B126 -> 0 | C134: 0 | D134: 0 | E134: 0 | F134: 0 | G134: 0 | H134: =IFERROR(VLOOKUP(VLOOKUP(B134,TRAFOS,4,FALSE),'COSTO ELEMENTOS N1'!$C$321:$C$350,1),0) -> 0
A135: 125 | B135: ='TRAFOS MUESTRA'!B127 -> 0 | C135: 0 | D135: 0 | E135: 0 | F135: 0 | G135: 0 | H135: =IFERROR(VLOOKUP(VLOOKUP(B135,TRAFOS,4,FALSE),'COSTO ELEMENTOS N1'!$C$321:$C$350,1),0) -> 0
A136: 126 | B136: ='TRAFOS MUESTRA'!B128 -> 0 | C136: 0 | D136: 0 | E136: 0 | F136: 0 | G136: 0 | H136: =IFERROR(VLOOKUP(VLOOKUP(B136,TRAFOS,4,FALSE),'COSTO ELEMENTOS N1'!$C$321:$C$350,1),0) -> 0
A137: 127 | B137: ='TRAFOS MUESTRA'!B129 -> 0 | C137: 0 | D137: 0 | E137: 0 | F137: 0 | G137: 0 | H137: =IFERROR(VLOOKUP(VLOOKUP(B137,TRAFOS,4,FALSE),'COSTO ELEMENTOS N1'!$C$321:$C$350,1),0) -> 0
A138: 128 | B138: ='TRAFOS MUESTRA'!B130 -> 0 | C138: 0 | D138: 0 | E138: 0 | F138: 0 | G138: 0 | H138: =IFERROR(VLOOKUP(VLOOKUP(B138,TRAFOS,4,FALSE),'COSTO ELEMENTOS N1'!$C$321:$C$350,1),0) -> 0
A139: 129 | B139: ='TRAFOS MUESTRA'!B131 -> 0 | C139: =IFERROR(VLOOKUP(B139,TRAFOS,3,FALSE),0) -> 0 | D139: =IFERROR(SUMIF(CODIGO_TRAFOS_REDES,$B139,COSTO_CONDUCTOR_TRAMO),0) -> 0 | E139: =IFERROR(SUMIF(CODIGO_TRAFOS_REDES,$B139,COSTO_APOYOS_TRAMO),0) -> 0 | F139: =IFERROR(IF(H139>15,VLOOKUP(H139,COSTO_TRAFOS_3F,6,FALSE),VLOOKUP(H139,COSTO_TRAFOS_1F,6,FALSE)),0) -> 0 | G139: 0 | H139: =IFERROR(VLOOKUP(VLOOKUP(B139,TRAFOS,4,FALSE),'COSTO ELEMENTOS N1'!$C$321:$C$350,1),0) -> 0
A140: 130 | B140: ='TRAFOS MUESTRA'!B132 -> 0 | C140: 0 | D140: 0 | E140: 0 | F140: 0 | G140: =SUM(D140:F140) -> 0 | H140: =IFERROR(VLOOKUP(VLOOKUP(B140,TRAFOS,4,FALSE),'COSTO ELEMENTOS N1'!$C$321:$C$350,1),0) -> 0
A141: =A140+1 -> 131 | B141: ='TRAFOS MUESTRA'!B133 -> 0 | C141: 0 | D141: 0 | E141: 0 | F141: 0 | G141: 0 | H141: =IFERROR(VLOOKUP(VLOOKUP(B141,TRAFOS,4,FALSE),'COSTO ELEMENTOS N1'!$C$321:$C$350,1),0) -> 0
A142: 132 | B142: ='TRAFOS MUESTRA'!B134 -> 0 | C142: 0 | D142: 0 | E142: 0 | F142: 0 | G142: 0 | H142: =IFERROR(VLOOKUP(VLOOKUP(B142,TRAFOS,4,FALSE),'COSTO ELEMENTOS N1'!$C$321:$C$350,1),0) -> 0
A143: 133 | B143: ='TRAFOS MUESTRA'!B135 -> 0 | C143: 0 | D143: 0 | E143: 0 | F143: 0 | G143: 0 | H143: =IFERROR(VLOOKUP(VLOOKUP(B143,TRAFOS,4,FALSE),'COSTO ELEMENTOS N1'!$C$321:$C$350,1),0) -> 0
A144: 134 | B144: ='TRAFOS MUESTRA'!B136 -> 0 | C144: 0 | D144: 0 | E144: 0 | F144: 0 | G144: 0 | H144: =IFERROR(VLOOKUP(VLOOKUP(B144,TRAFOS,4,FALSE),'COSTO ELEMENTOS N1'!$C$321:$C$350,1),0) -> 0
A145: 135 | B145: ='TRAFOS MUESTRA'!B137 -> 0 | C145: 0 | D145: 0 | E145: 0 | F145: 0 | G145: 0 | H145: =IFERROR(VLOOKUP(VLOOKUP(B145,TRAFOS,4,FALSE),'COSTO ELEMENTOS N1'!$C$321:$C$350,1),0) -> 0
A146: 136 | B146: ='TRAFOS MUESTRA'!B138 -> 0 | C146: 0 | D146: 0 | E146: 0 | F146: 0 | G146: 0 | H146: =IFERROR(VLOOKUP(VLOOKUP(B146,TRAFOS,4,FALSE),'COSTO ELEMENTOS N1'!$C$321:$C$350,1),0) -> 0
A147: 137 | B147: ='TRAFOS MUESTRA'!B139 -> 0 | C147: 0 | D147: 0 | E147: 0 | F147: 0 | G147: 0 | H147: =IFERROR(VLOOKUP(VLOOKUP(B147,TRAFOS,4,FALSE),'COSTO ELEMENTOS N1'!$C$321:$C$350,1),0) -> 0
A148: 138 | B148: ='TRAFOS MUESTRA'!B140 -> 0 | C148: 0 | D148: 0 | E148: 0 | F148: 0 | G148: 0 | H148: =IFERROR(VLOOKUP(VLOOKUP(B148,TRAFOS,4,FALSE),'COSTO ELEMENTOS N1'!$C$321:$C$350,1),0) -> 0
A149: 139 | B149: ='TRAFOS MUESTRA'!B141 -> 0 | C149: 0 | D149: 0 | E149: 0 | F149: 0 | G149: 0 | H149: =IFERROR(VLOOKUP(VLOOKUP(B149,TRAFOS,4,FALSE),'COSTO ELEMENTOS N1'!$C$321:$C$350,1),0) -> 0
A150: 140 | B150: ='TRAFOS MUESTRA'!B142 -> 0 | C150: 0 | D150: 0 | E150: 0 | F150: 0 | G150: 0 | H150: =IFERROR(VLOOKUP(VLOOKUP(B150,TRAFOS,4,FALSE),'COSTO ELEMENTOS N1'!$C$321:$C$350,1),0) -> 0
A151: 141 | B151: ='TRAFOS MUESTRA'!B143 -> 0 | C151: 0 | D151: 0 | E151: 0 | F151: 0 | G151: 0 | H151: =IFERROR(VLOOKUP(VLOOKUP(B151,TRAFOS,4,FALSE),'COSTO ELEMENTOS N1'!$C$321:$C$350,1),0) -> 0
A152: 142 | B152: ='TRAFOS MUESTRA'!B144 -> 0 | C152: 0 | D152: 0 | E152: 0 | F152: 0 | G152: 0 | H152: =IFERROR(VLOOKUP(VLOOKUP(B152,TRAFOS,4,FALSE),'COSTO ELEMENTOS N1'!$C$321:$C$350,1),0) -> 0
A153: 143 | B153: ='TRAFOS MUESTRA'!B145 -> 0 | C153: 0 | D153: 0 | E153: 0 | F153: 0 | G153: 0 | H153: =IFERROR(VLOOKUP(VLOOKUP(B153,TRAFOS,4,FALSE),'COSTO ELEMENTOS N1'!$C$321:$C$350,1),0) -> 0
A154: 144 | B154: ='TRAFOS MUESTRA'!B146 -> 0 | C154: 0 | D154: 0 | E154: 0 | F154: 0 | G154: 0 | H154: =IFERROR(VLOOKUP(VLOOKUP(B154,TRAFOS,4,FALSE),'COSTO ELEMENTOS N1'!$C$321:$C$350,1),0) -> 0
A155: 145 | B155: ='TRAFOS MUESTRA'!B147 -> 0 | C155: 0 | D155: 0 | E155: 0 | F155: 0 | G155: 0 | H155: =IFERROR(VLOOKUP(VLOOKUP(B155,TRAFOS,4,FALSE),'COSTO ELEMENTOS N1'!$C$321:$C$350,1),0) -> 0
A156: 146 | B156: ='TRAFOS MUESTRA'!B148 -> 0 | C156: 0 | D156: 0 | E156: 0 | F156: 0 | G156: 0 | H156: =IFERROR(VLOOKUP(VLOOKUP(B156,TRAFOS,4,FALSE),'COSTO ELEMENTOS N1'!$C$321:$C$350,1),0) -> 0
A157: 147 | B157: ='TRAFOS MUESTRA'!B149 -> 0 | C157: 0 | D157: 0 | E157: 0 | F157: 0 | G157: 0 | H157: =IFERROR(VLOOKUP(VLOOKUP(B157,TRAFOS,4,FALSE),'COSTO ELEMENTOS N1'!$C$321:$C$350,1),0) -> 0
A158: 148 | B158: ='TRAFOS MUESTRA'!B150 -> 0 | C158: 0 | D158: 0 | E158: 0 | F158: 0 | G158: 0 | H158: =IFERROR(VLOOKUP(VLOOKUP(B158,TRAFOS,4,FALSE),'COSTO ELEMENTOS N1'!$C$321:$C$350,1),0) -> 0
A159: 149 | B159: ='TRAFOS MUESTRA'!B151 -> 0 | C159: 0 | D159: 0 | E159: 0 | F159: 0 | G159: 0 | H159: =IFERROR(VLOOKUP(VLOOKUP(B159,TRAFOS,4,FALSE),'COSTO ELEMENTOS N1'!$C$321:$C$350,1),0) -> 0
A160: 150 | B160: ='TRAFOS MUESTRA'!B152 -> 0 | C160: 0 | D160: 0 | E160: 0 | F160: 0 | G160: 0 | H160: =IFERROR(VLOOKUP(VLOOKUP(B160,TRAFOS,4,FALSE),'COSTO ELEMENTOS N1'!$C$321:$C$350,1),0) -> 0
A161: 151 | B161: ='TRAFOS MUESTRA'!B153 -> 0 | C161: 0 | D161: 0 | E161: 0 | F161: 0 | G161: 0 | H161: =IFERROR(VLOOKUP(VLOOKUP(B161,TRAFOS,4,FALSE),'COSTO ELEMENTOS N1'!$C$321:$C$350,1),0) -> 0
A162: 152 | B162: ='TRAFOS MUESTRA'!B154 -> 0 | C162: 0 | D162: 0 | E162: 0 | F162: 0 | G162: 0 | H162: =IFERROR(VLOOKUP(VLOOKUP(B162,TRAFOS,4,FALSE),'COSTO ELEMENTOS N1'!$C$321:$C$350,1),0) -> 0
A163: 153 | B163: ='TRAFOS MUESTRA'!B155 -> 0 | C163: 0 | D163: 0 | E163: 0 | F163: 0 | G163: 0 | H163: =IFERROR(VLOOKUP(VLOOKUP(B163,TRAFOS,4,FALSE),'COSTO ELEMENTOS N1'!$C$321:$C$350,1),0) -> 0
A164: 154 | B164: ='TRAFOS MUESTRA'!B156 -> 0 | C164: 0 | D164: 0 | E164: 0 | F164: 0 | G164: 0 | H164: =IFERROR(VLOOKUP(VLOOKUP(B164,TRAFOS,4,FALSE),'COSTO ELEMENTOS N1'!$C$321:$C$350,1),0) -> 0
A165: 155 | B165: ='TRAFOS MUESTRA'!B157 -> 0 | C165: 0 | D165: 0 | E165: 0 | F165: 0 | G165: 0 | H165: =IFERROR(VLOOKUP(VLOOKUP(B165,TRAFOS,4,FALSE),'COSTO ELEMENTOS N1'!$C$321:$C$350,1),0) -> 0
A166: 156 | B166: ='TRAFOS MUESTRA'!B158 -> 0 | C166: 0 | D166: 0 | E166: 0 | F166: 0 | G166: 0 | H166: =IFERROR(VLOOKUP(VLOOKUP(B166,TRAFOS,4,FALSE),'COSTO ELEMENTOS N1'!$C$321:$C$350,1),0) -> 0
A167: 157 | B167: ='TRAFOS MUESTRA'!B159 -> 0 | C167: 0 | D167: 0 | E167: 0 | F167: 0 | G167: 0 | H167: =IFERROR(VLOOKUP(VLOOKUP(B167,TRAFOS,4,FALSE),'COSTO ELEMENTOS N1'!$C$321:$C$350,1),0) -> 0
A168: 158 | B168: ='TRAFOS MUESTRA'!B160 -> 0 | C168: 0 | D168: 0 | E168: 0 | F168: 0 | G168: 0 | H168: =IFERROR(VLOOKUP(VLOOKUP(B168,TRAFOS,4,FALSE),'COSTO ELEMENTOS N1'!$C$321:$C$350,1),0) -> 0
A169: 159 | B169: ='TRAFOS MUESTRA'!B161 -> 0 | C169: 0 | D169: 0 | E169: 0 | F169: 0 | G169: 0 | H169: =IFERROR(VLOOKUP(VLOOKUP(B169,TRAFOS,4,FALSE),'COSTO ELEMENTOS N1'!$C$321:$C$350,1),0) -> 0
A170: 160 | B170: ='TRAFOS MUESTRA'!B162 -> 0 | C170: 0 | D170: 0 | E170: 0 | F170: 0 | G170: 0 | H170: =IFERROR(VLOOKUP(VLOOKUP(B170,TRAFOS,4,FALSE),'COSTO ELEMENTOS N1'!$C$321:$C$350,1),0) -> 0
A171: 161 | B171: ='TRAFOS MUESTRA'!B163 -> 0 | C171: 0 | D171: 0 | E171: 0 | F171: 0 | G171: 0 | H171: =IFERROR(VLOOKUP(VLOOKUP(B171,TRAFOS,4,FALSE),'COSTO ELEMENTOS N1'!$C$321:$C$350,1),0) -> 0
A172: 162 | B172: ='TRAFOS MUESTRA'!B164 -> 0 | C172: 0 | D172: 0 | E172: 0 | F172: 0 | G172: 0 | H172: =IFERROR(VLOOKUP(VLOOKUP(B172,TRAFOS,4,FALSE),'COSTO ELEMENTOS N1'!$C$321:$C$350,1),0) -> 0
A173: 163 | B173: ='TRAFOS MUESTRA'!B165 -> 0 | C173: 0 | D173: 0 | E173: 0 | F173: 0 | G173: 0 | H173: =IFERROR(VLOOKUP(VLOOKUP(B173,TRAFOS,4,FALSE),'COSTO ELEMENTOS N1'!$C$321:$C$350,1),0) -> 0
A174: 164 | B174: ='TRAFOS MUESTRA'!B166 -> 0 | C174: 0 | D174: 0 | E174: 0 | F174: 0 | G174: 0 | H174: =IFERROR(VLOOKUP(VLOOKUP(B174,TRAFOS,4,FALSE),'COSTO ELEMENTOS N1'!$C$321:$C$350,1),0) -> 0
A175: 165 | B175: ='TRAFOS MUESTRA'!B167 -> 0 | C175: 0 | D175: 0 | E175: 0 | F175: 0 | G175: 0 | H175: =IFERROR(VLOOKUP(VLOOKUP(B175,TRAFOS,4,FALSE),'COSTO ELEMENTOS N1'!$C$321:$C$350,1),0) -> 0
A176: 166 | B176: ='TRAFOS MUESTRA'!B168 -> 0 | C176: 0 | D176: 0 | E176: 0 | F176: 0 | G176: 0 | H176: =IFERROR(VLOOKUP(VLOOKUP(B176,TRAFOS,4,FALSE),'COSTO ELEMENTOS N1'!$C$321:$C$350,1),0) -> 0
A177: 167 | B177: ='TRAFOS MUESTRA'!B169 -> 0 | C177: 0 | D177: 0 | E177: 0 | F177: 0 | G177: 0 | H177: =IFERROR(VLOOKUP(VLOOKUP(B177,TRAFOS,4,FALSE),'COSTO ELEMENTOS N1'!$C$321:$C$350,1),0) -> 0
A178: 168 | B178: ='TRAFOS MUESTRA'!B170 -> 0 | C178: 0 | D178: 0 | E178: 0 | F178: 0 | G178: 0 | H178: =IFERROR(VLOOKUP(VLOOKUP(B178,TRAFOS,4,FALSE),'COSTO ELEMENTOS N1'!$C$321:$C$350,1),0) -> 0
A179: 169 | B179: ='TRAFOS MUESTRA'!B171 -> 0 | C179: 0 | D179: 0 | E179: 0 | F179: 0 | G179: 0 | H179: =IFERROR(VLOOKUP(VLOOKUP(B179,TRAFOS,4,FALSE),'COSTO ELEMENTOS N1'!$C$321:$C$350,1),0) -> 0
A180: 170 | B180: ='TRAFOS MUESTRA'!B172 -> 0 | C180: 0 | D180: 0 | E180: 0 | F180: 0 | G180: 0 | H180: =IFERROR(VLOOKUP(VLOOKUP(B180,TRAFOS,4,FALSE),'COSTO ELEMENTOS N1'!$C$321:$C$350,1),0) -> 0
A181: 171 | B181: ='TRAFOS MUESTRA'!B173 -> 0 | C181: 0 | D181: 0 | E181: 0 | F181: 0 | G181: 0 | H181: =IFERROR(VLOOKUP(VLOOKUP(B181,TRAFOS,4,FALSE),'COSTO ELEMENTOS N1'!$C$321:$C$350,1),0) -> 0
A182: 172 | B182: ='TRAFOS MUESTRA'!B174 -> 0 | C182: 0 | D182: 0 | E182: 0 | F182: 0 | G182: 0 | H182: =IFERROR(VLOOKUP(VLOOKUP(B182,TRAFOS,4,FALSE),'COSTO ELEMENTOS N1'!$C$321:$C$350,1),0) -> 0
A183: 173 | B183: ='TRAFOS MUESTRA'!B175 -> 0 | C183: 0 | D183: 0 | E183: 0 | F183: 0 | G183: 0 | H183: =IFERROR(VLOOKUP(VLOOKUP(B183,TRAFOS,4,FALSE),'COSTO ELEMENTOS N1'!$C$321:$C$350,1),0) -> 0
A184: 174 | B184: ='TRAFOS MUESTRA'!B176 -> 0 | C184: 0 | D184: 0 | E184: 0 | F184: 0 | G184: 0 | H184: =IFERROR(VLOOKUP(VLOOKUP(B184,TRAFOS,4,FALSE),'COSTO ELEMENTOS N1'!$C$321:$C$350,1),0) -> 0
A185: 175 | B185: ='TRAFOS MUESTRA'!B177 -> 0 | C185: 0 | D185: 0 | E185: 0 | F185: 0 | G185: 0 | H185: =IFERROR(VLOOKUP(VLOOKUP(B185,TRAFOS,4,FALSE),'COSTO ELEMENTOS N1'!$C$321:$C$350,1),0) -> 0
A186: 176 | B186: ='TRAFOS MUESTRA'!B178 -> 0 | C186: 0 | D186: 0 | E186: 0 | F186: 0 | G186: 0 | H186: =IFERROR(VLOOKUP(VLOOKUP(B186,TRAFOS,4,FALSE),'COSTO ELEMENTOS N1'!$C$321:$C$350,1),0) -> 0
A187: 177 | B187: ='TRAFOS MUESTRA'!B179 -> 0 | C187: 0 | D187: 0 | E187: 0 | F187: 0 | G187: 0 | H187: =IFERROR(VLOOKUP(VLOOKUP(B187,TRAFOS,4,FALSE),'COSTO ELEMENTOS N1'!$C$321:$C$350,1),0) -> 0
A188: 178 | B188: ='TRAFOS MUESTRA'!B180 -> 0 | C188: 0 | D188: 0 | E188: 0 | F188: 0 | G188: 0 | H188: =IFERROR(VLOOKUP(VLOOKUP(B188,TRAFOS,4,FALSE),'COSTO ELEMENTOS N1'!$C$321:$C$350,1),0) -> 0
A189: 179 | B189: ='TRAFOS MUESTRA'!B181 -> 0 | C189: 0 | D189: 0 | E189: 0 | F189: 0 | G189: 0 | H189: =IFERROR(VLOOKUP(VLOOKUP(B189,TRAFOS,4,FALSE),'COSTO ELEMENTOS N1'!$C$321:$C$350,1),0) -> 0
A190: 180 | B190: ='TRAFOS MUESTRA'!B182 -> 0 | C190: 0 | D190: 0 | E190: 0 | F190: 0 | G190: 0 | H190: =IFERROR(VLOOKUP(VLOOKUP(B190,TRAFOS,4,FALSE),'COSTO ELEMENTOS N1'!$C$321:$C$350,1),0) -> 0
A191: 181 | B191: ='TRAFOS MUESTRA'!B183 -> 0 | C191: 0 | D191: 0 | E191: 0 | F191: 0 | G191: 0 | H191: =IFERROR(VLOOKUP(VLOOKUP(B191,TRAFOS,4,FALSE),'COSTO ELEMENTOS N1'!$C$321:$C$350,1),0) -> 0
A192: 182 | B192: ='TRAFOS MUESTRA'!B184 -> 0 | C192: 0 | D192: 0 | E192: 0 | F192: 0 | G192: 0 | H192: =IFERROR(VLOOKUP(VLOOKUP(B192,TRAFOS,4,FALSE),'COSTO ELEMENTOS N1'!$C$321:$C$350,1),0) -> 0
A193: 183 | B193: ='TRAFOS MUESTRA'!B185 -> 0 | C193: 0 | D193: 0 | E193: 0 | F193: 0 | G193: 0 | H193: =IFERROR(VLOOKUP(VLOOKUP(B193,TRAFOS,4,FALSE),'COSTO ELEMENTOS N1'!$C$321:$C$350,1),0) -> 0
A194: 184 | B194: ='TRAFOS MUESTRA'!B186 -> 0 | C194: 0 | D194: 0 | E194: 0 | F194: 0 | G194: 0 | H194: =IFERROR(VLOOKUP(VLOOKUP(B194,TRAFOS,4,FALSE),'COSTO ELEMENTOS N1'!$C$321:$C$350,1),0) -> 0
A195: 185 | B195: ='TRAFOS MUESTRA'!B187 -> 0 | C195: 0 | D195: 0 | E195: 0 | F195: 0 | G195: 0 | H195: =IFERROR(VLOOKUP(VLOOKUP(B195,TRAFOS,4,FALSE),'COSTO ELEMENTOS N1'!$C$321:$C$350,1),0) -> 0
A196: 186 | B196: ='TRAFOS MUESTRA'!B188 -> 0 | C196: 0 | D196: 0 | E196: 0 | F196: 0 | G196: 0 | H196: =IFERROR(VLOOKUP(VLOOKUP(B196,TRAFOS,4,FALSE),'COSTO ELEMENTOS N1'!$C$321:$C$350,1),0) -> 0
A197: 187 | B197: ='TRAFOS MUESTRA'!B189 -> 0 | C197: 0 | D197: 0 | E197: 0 | F197: 0 | G197: 0 | H197: =IFERROR(VLOOKUP(VLOOKUP(B197,TRAFOS,4,FALSE),'COSTO ELEMENTOS N1'!$C$321:$C$350,1),0) -> 0
A198: 188 | B198: ='TRAFOS MUESTRA'!B190 -> 0 | C198: 0 | D198: 0 | E198: 0 | F198: 0 | G198: 0 | H198: =IFERROR(VLOOKUP(VLOOKUP(B198,TRAFOS,4,FALSE),'COSTO ELEMENTOS N1'!$C$321:$C$350,1),0) -> 0
A199: 189 | B199: ='TRAFOS MUESTRA'!B191 -> 0 | C199: 0 | D199: 0 | E199: 0 | F199: 0 | G199: 0 | H199: =IFERROR(VLOOKUP(VLOOKUP(B199,TRAFOS,4,FALSE),'COSTO ELEMENTOS N1'!$C$321:$C$350,1),0) -> 0
A200: 190 | B200: ='TRAFOS MUESTRA'!B192 -> 0 | C200: 0 | D200: 0 | E200: 0 | F200: 0 | G200: 0 | H200: =IFERROR(VLOOKUP(VLOOKUP(B200,TRAFOS,4,FALSE),'COSTO ELEMENTOS N1'!$C$321:$C$350,1),0) -> 0
A201: 191 | B201: ='TRAFOS MUESTRA'!B193 -> 0 | C201: 0 | D201: 0 | E201: 0 | F201: 0 | G201: 0 | H201: =IFERROR(VLOOKUP(VLOOKUP(B201,TRAFOS,4,FALSE),'COSTO ELEMENTOS N1'!$C$321:$C$350,1),0) -> 0
... 1459 more rows

Sheet REDES MUESTRA
B2: INFORMACIÓN DE LA MUESTRA DE LAS REDES DE NIVEL 1 PRESENTADA POR LOS OPERADORES DE RED | AB2: COSTO CONDUCTOR | AK2: COSTO APOYOS (POSTES / CAMARAS) | AO2: CÓDIGOS TRAMOS Y APOYOS
A3: No. | B3: CÓDIGO TRANSFORMADOR | C3: No. | D3: POSTE MATERIAL | E3: POSTE ALTURA | F3: POSTE COMPARTIDO | G3: CAJA TIPO | H3: CAJA NO. DUCTOS | I3: CAJA COMPARTIDO | J3: LUMINARIA TIPO | K3: LUMINARIA POTENCIA | L3: PUESTA A TIERRA | M3: CÓDIGOS DE USUARIOS | N3: TRAMO NODO INICIAL | O3: TRAMO NODO FINAL | P3: TRAMO TIPO | Q3: TRAMO LONGITUD | R3: TIPO DE CABLE | S3: FASE NO. CONDUCTORES | T3: FASE CALIBRE | U3: FASE CLASE | V3: NEUTRO CALIBRE | W3: NEUTRO CLASE | X3: ALUMBRADO CALIBRE | Y3: ALUMBRADO CLASE | Z3: OBSERVACIONES | AA3: GRUPO DE CALIDAD | AB3: CONDUCTOR DE FASE | AC3: INSTALACIÓN FASE | AD3: CANALIZACIÓN | AE3: INSTALACIÓN CANALIZACIÓN | AF3: CONDUCTOR DE NEUTRO | AG3: INSTALACIÓN NEUTRO | AH3: TOTAL INVERSIÓN | AI3: TOTAL INSTALACIÓN | AJ3: TOTAL CONDUCTOR | AK3: COSTO APOYOS (POSTES / CÁMARAS) | AL3: ACCESORIOS (INCLUYE PUESTA A TIERRA | AM3: INSTALACIÓN | AN3: TOTAL APOYOS | AO3: TIPO CONDUCTOR FASE | AP3: TIPO CONDUCTOR NEUTRO | AQ3: TIPO RED / CONDUCTOR | AR3: GRUPO / TIPO CONDUCTOR | AS3: TIPO APOYO | AT3: CLASE APOYO
A4: 1 | B4: 10100006 | C4: 1 | D4: Co | E4: 10 | F4: 1 | L4: S | M4: 17408/17409/17397/17398/17399/17400/17401/17388/17389/17390/17391/17392/17393/17394/17395/17379/17380/17381/17382/17383/17384/17385/17386/17370/17371/17372/17374/17375/17376/17377/17245/51018/49455/17244/17369/17368 | N4: 0 | O4: 1 | P4: A | Q4: 67.4 | R4: D | S4: 3 | T4: 4 | U4: Al | V4: 4 | W4: Al | X4: 4 | Y4: Al | Z4: - | AA4: =IFERROR(VLOOKUP(B4,'TRAFOS MUESTRA'!$B$3:$D$2000,3,FALSE),"NA") -> 2 | AB4: =IFERROR((VLOOKUP(AO4,COSTO_CONDUCTORES,5,FALSE))*Q4*S4,0) -> 198972.2133 | AC4: =IFERROR(VLOOKUP($AQ4,COSTO_INSTALACIÓN_CONDUCTOR,2,FALSE)*Q4*S4,0) -> 375998.7009 | AD4: =IFERROR(VLOOKUP(AT4,COSTO_CANALIZACION_SUBTERRANEO,2,FALSE),0)*Q4 -> 0 | AE4: =IF(AD4>0,'COSTO ELEMENTOS N1'!$B$74*Q4,0) -> 0 | AF4: =IFERROR(VLOOKUP(AP4,COSTO_CONDUCTORES,5,FALSE),0)*Q4 -> 66324.0711 | AG4: =IFERROR(VLOOKUP($AQ4,COSTO_INSTALACIÓN_CONDUCTOR,2,FALSE),0)*Q4 -> 125332.9003 | AH4: =AB4+AD4+AF4 -> 265296.2844 | AI4: =AC4+AE4+AG4 -> 501331.6012 | AJ4: =SUM(AH4:AI4) -> 766627.8856 | AK4: =IFERROR(VLOOKUP($AT4,COSTO_APOYOS,5,FALSE),0) -> 266710.9748 | AL4: =IF(AS4="SD",0,IF(AS4="A",IFERROR(VLOOKUP(AR4,COSTO_INSTALACIÓN_APOYOS,2,FALSE),0),0))+IF(L4="S",PUESTA_TIERRA,0) -> 95211.40508 | AM4: =IF(AS4="SD",0,IF(AS4="S",IFERROR(VLOOKUP(G4,COSTO_INSTALACION_CAMARAS,2,FALSE),0),IF(AT4="N2",0,IFERROR(VLOOKUP(AR4,COSTO_INSTALACIÓN_APOYOS,3,FALSE),0)))) -> 233556.263 | AN4: =SUM(AK4:AM4) -> 595478.6429 | AO4: =$R4&"-"&$U4&"-"&$T4 -> D-Al-4 | AP4: =$R4&"-"&$W4&"-"&$V4 -> D-Al-4 | AQ4: =P4&"-"&R4 -> A-D | AR4: =AA4&"-"&IF(R4="","D",R4) -> 2-D | AS4: =IFERROR(VLOOKUP(D4&"-"&E4,COSTO_APOYOS,2,FALSE),IFERROR(VLOOKUP(G4&"-"&H4,COSTO_APOYOS,2,FALSE),"SD")) -> A | AT4: =IF(AS4="S",G4&"-"&H4,IF(E4>10,"N2",D4&"-"&E4)) -> Co-10
A5: =A4+1 -> 2 | B5: 10100107 | C5: 2 | D5: Co | E5: 10 | F5: 1 | L5: S | M5: 23417/23418/SD3432 | N5: 0 | O5: 1 | P5: A | Q5: 67.4 | R5: D | S5: 3 | T5: 4 | U5: Al | V5: 4 | W5: Al | X5: 4 | Y5: Al | Z5: - | AA5: =IFERROR(VLOOKUP(B5,'TRAFOS MUESTRA'!$B$3:$D$2000,3,FALSE),"NA") -> 2 | AB5: =IFERROR((VLOOKUP(AO5,COSTO_CONDUCTORES,5,FALSE))*Q5*S5,0) -> 198972.2133 | AC5: 375998.7009 | AD5: 0 | AE5: =IF(AD5>0,'COSTO ELEMENTOS N1'!$B$74*Q5,0) -> 0 | AF5: 66324.0711 | AG5: 125332.9003 | AH5: =AB5+AD5+AF5 -> 265296.2844 | AI5: =AC5+AE5+AG5 -> 501331.6012 | AJ5: =SUM(AH5:AI5) -> 766627.8856 | AK5: 266710.9748 | AL5: 95211.40508 | AM5: 233556.263 | AN5: =SUM(AK5:AM5) -> 595478.6429 | AO5: =$R5&"-"&$U5&"-"&$T5 -> D-Al-4 | AP5: =$R5&"-"&$W5&"-"&$V5 -> D-Al-4 | AQ5: =P5&"-"&R5 -> A-D | AR5: =AA5&"-"&IF(R5="","D",R5) -> 2-D | AS5: A | AT5: =IF(AS5="S",G5&"-"&H5,IF(E5>10,"N2",D5&"-"&E5)) -> Co-10
A6: =A5+1 -> 3 | B6: 10200408 | C6: 3 | D6: Co | E6: 10 | F6: 1 | J6: S | K6: 70 | L6: S | M6: 19246 | N6: 0 | O6: 1 | P6: A | Q6: 67.4 | R6: D | S6: 3 | T6: 4 | U6: Al | V6: 4 | W6: Al | X6: 4 | Y6: Al | Z6: - | AA6: =IFERROR(VLOOKUP(B6,'TRAFOS MUESTRA'!$B$3:$D$2000,3,FALSE),"NA") -> 2 | AB6: 198972.2133 | AC6: 375998.7009 | AD6: 0 | AE6: =IF(AD6>0,'COSTO ELEMENTOS N1'!$B$74*Q6,0) -> 0 | AF6: 66324.0711 | AG6: 125332.9003 | AH6: 265296.2844 | AI6: 501331.6012 | AJ6: 766627.8856 | AK6: 266710.9748 | AL6: 95211.40508 | AM6: 233556.263 | AN6: 595478.6429 | AO6: D-Al-4 | AP6: D-Al-4 | AQ6: A-D | AR6: 2-D | AS6: A | AT6: Co-10
A7: 4 | B7: 10200421 | C7: 4 | D7: Co | E7: 10 | F7: 1 | J7: S | K7: 70 | L7: S | M7: 19383 | N7: 0 | O7: 1 | P7: A | Q7: 7.6 | R7: D | S7: 3 | T7: 4 | U7: Al | V7: 4 | W7: Al | X7: 4 | Y7: Al | Z7: - | AA7: =IFERROR(VLOOKUP(B7,'TRAFOS MUESTRA'!$B$3:$D$2000,3,FALSE),"NA") -> 2 | AB7: 22436.03592 | AC7: 42397.47962 | AD7: 0 | AE7: =IF(AD7>0,'COSTO ELEMENTOS N1'!$B$74*Q7,0) -> 0 | AF7: 7478.678641 | AG7: 14132.49321 | AH7: 29914.71456 | AI7: 56529.97283 | AJ7: 86444.68739 | AK7: 266710.9748 | AL7: 95211.40508 | AM7: 233556.263 | AN7: 595478.6429 | AO7: D-Al-4 | AP7: D-Al-4 | AQ7: A-D | AR7: 2-D | AS7: A | AT7: Co-10
A8: 5 | B8: 10200801 | C8: 5 | D8: Co | E8: 10 | F8: 1 | L8: S | M8: 21719 | N8: 0 | O8: 1 | P8: A | Q8: 7.6 | R8: D | S8: 3 | T8: 4 | U8: Al | V8: 4 | W8: Al | X8: 4 | Y8: Al | Z8: - | AA8: =IFERROR(VLOOKUP(B8,'TRAFOS MUESTRA'!$B$3:$D$2000,3,FALSE),"NA") -> 2 | AB8: 22436.03592 | AC8: 42397.47962 | AD8: 0 | AE8: =IF(AD8>0,'COSTO ELEMENTOS N1'!$B$74*Q8,0) -> 0 | AF8: 7478.678641 | AG8: 14132.49321 | AH8: 29914.71456 | AI8: 56529.97283 | AJ8: 86444.68739 | AK8: 266710.9748 | AL8: 95211.40508 | AM8: 233556.263 | AN8: 595478.6429 | AO8: D-Al-4 | AP8: D-Al-4 | AQ8: A-D | AR8: 2-D | AS8: A | AT8: Co-10
A9: 6 | B9: 10201013 | C9: 6 | D9: Co | E9: 10 | F9: 1 | L9: S | M9: 54624 | N9: 0 | O9: 1 | P9: A | Q9: 7.6 | R9: D | S9: 3 | T9: 4 | U9: Al | V9: 4 | W9: Al | X9: 4 | Y9: Al | Z9: - | AA9: =IFERROR(VLOOKUP(B9,'TRAFOS MUESTRA'!$B$3:$D$2000,3,FALSE),"NA") -> 2 | AB9: 22436.03592 | AC9: 42397.47962 | AD9: 0 | AE9: =IF(AD9>0,'COSTO ELEMENTOS N1'!$B$74*Q9,0) -> 0 | AF9: 7478.678641 | AG9: 14132.49321 | AH9: 29914.71456 | AI9: 56529.97283 | AJ9: 86444.68739 | AK9: 266710.9748 | AL9: 95211.40508 | AM9: 233556.263 | AN9: 595478.6429 | AO9: D-Al-4 | AP9: D-Al-4 | AQ9: A-D | AR9: 2-D | AS9: A | AT9: Co-10
A10: 7 | B10: 10201510 | C10: 7 | D10: Co | E10: 10 | F10: 1 | J10: S | K10: 70 | L10: S | M10: 34665 | N10: 0 | O10: 1 | P10: A | Q10: 8.8 | R10: D | S10: 3 | T10: 4 | U10: Al | V10: 4 | W10: Al | X10: 4 | Y10: Al | Z10: - | AA10: =IFERROR(VLOOKUP(B10,'TRAFOS MUESTRA'!$B$3:$D$2000,3,FALSE),"NA") -> 2 | AB10: 25978.56791 | AC10: 49091.81851 | AD10: 0 | AE10: =IF(AD10>0,'COSTO ELEMENTOS N1'!$B$74*Q10,0) -> 0 | AF10: 8659.522636 | AG10: 16363.9395 | AH10: 34638.09055 | AI10: 65455.75802 | AJ10: 100093.8486 | AK10: 266710.9748 | AL10: 95211.40508 | AM10: 233556.263 | AN10: 595478.6429 | AO10: D-Al-4 | AP10: D-Al-4 | AQ10: A-D | AR10: 2-D | AS10: A | AT10: Co-10
A11: 8 | B11: 10202702 | C11: 8 | D11: Co | E11: 10 | F11: 1 | L11: S | M11: 55415 | N11: 0 | O11: 1 | P11: A | Q11: 8.8 | R11: D | S11: 3 | T11: 4 | U11: Al | V11: 4 | W11: Al | X11: 4 | Y11: Al | Z11: - | AA11: =IFERROR(VLOOKUP(B11,'TRAFOS MUESTRA'!$B$3:$D$2000,3,FALSE),"NA") -> 1 | AB11: 25978.56791 | AC11: 49091.81851 | AD11: 0 | AE11: =IF(AD11>0,'COSTO ELEMENTOS N1'!$B$74*Q11,0) -> 0 | AF11: 8659.522636 | AG11: 16363.9395 | AH11: 34638.09055 | AI11: 65455.75802 | AJ11: 100093.8486 | AK11: 266710.9748 | AL11: 95211.40508 | AM11: 233556.263 | AN11: 595478.6429 | AO11: D-Al-4 | AP11: D-Al-4 | AQ11: A-D | AR11: 1-D | AS11: A | AT11: Co-10
A12: 9 | B12: 10300011 | C12: 9 | D12: Co | E12: 10 | F12: 1 | J12: M | K12: 125 | L12: S | M12: 15462 | N12: 0 | O12: 1 | P12: A | Q12: 8.8 | R12: D | S12: 3 | T12: 4 | U12: Al | V12: 4 | W12: Al | X12: 4 | Y12: Al | Z12: - | AA12: =IFERROR(VLOOKUP(B12,'TRAFOS MUESTRA'!$B$3:$D$2000,3,FALSE),"NA") -> 2 | AB12: 25978.56791 | AC12: 49091.81851 | AD12: 0 | AE12: =IF(AD12>0,'COSTO ELEMENTOS N1'!$B$74*Q12,0) -> 0 | AF12: 8659.522636 | AG12: 16363.9395 | AH12: 34638.09055 | AI12: 65455.75802 | AJ12: 100093.8486 | AK12: 266710.9748 | AL12: 95211.40508 | AM12: 233556.263 | AN12: 595478.6429 | AO12: D-Al-4 | AP12: D-Al-4 | AQ12: A-D | AR12: 2-D | AS12: A | AT12: Co-10
A13: 10 | B13: 10300201 | C13: 10 | D13: Co | E13: 10 | F13: 1 | L13: S | M13: 16096 | N13: 0 | O13: 1 | P13: A | Q13: 7.6 | R13: D | S13: 3 | T13: 4 | U13: Al | V13: 4 | W13: Al | X13: 4 | Y13: Al | Z13: - | AA13: =IFERROR(VLOOKUP(B13,'TRAFOS MUESTRA'!$B$3:$D$2000,3,FALSE),"NA") -> 1 | AB13: 22436.03592 | AC13: 42397.47962 | AD13: 0 | AE13: =IF(AD13>0,'COSTO ELEMENTOS N1'!$B$74*Q13,0) -> 0 | AF13: 7478.678641 | AG13: 14132.49321 | AH13: 29914.71456 | AI13: 56529.97283 | AJ13: 86444.68739 | AK13: 266710.9748 | AL13: 95211.40508 | AM13: 233556.263 | AN13: 595478.6429 | AO13: D-Al-4 | AP13: D-Al-4 | AQ13: A-D | AR13: 1-D | AS13: A | AT13: Co-10
A14: 11 | B14: 10300806 | C14: 11 | D14: Co | E14: 10 | F14: 1 | J14: S | K14: 70 | L14: S | M14: 20855 | N14: 0 | O14: 1 | P14: A | Q14: 7.6 | R14: D | S14: 3 | T14: 4 | U14: Al | V14: 4 | W14: Al | X14: 4 | Y14: Al | Z14: - | AA14: =IFERROR(VLOOKUP(B14,'TRAFOS MUESTRA'!$B$3:$D$2000,3,FALSE),"NA") -> 2 | AB14: 22436.03592 | AC14: 42397.47962 | AD14: 0 | AE14: =IF(AD14>0,'COSTO ELEMENTOS N1'!$B$74*Q14,0) -> 0 | AF14: 7478.678641 | AG14: 14132.49321 | AH14: 29914.71456 | AI14: 56529.97283 | AJ14: 86444.68739 | AK14: 266710.9748 | AL14: 95211.40508 | AM14: 233556.263 | AN14: 595478.6429 | AO14: D-Al-4 | AP14: D-Al-4 | AQ14: A-D | AR14: 2-D | AS14: A | AT14: Co-10
A15: 12 | B15: 10301107 | C15: 12 | D15: Co | E15: 10 | F15: 1 | L15: S | M15: 23510 | N15: 0 | O15: 1 | P15: A | Q15: 7.6 | R15: D | S15: 3 | T15: 4 | U15: Al | V15: 4 | W15: Al | X15: 4 | Y15: Al | Z15: - | AA15: =IFERROR(VLOOKUP(B15,'TRAFOS MUESTRA'!$B$3:$D$2000,3,FALSE),"NA") -> 2 | AB15: 22436.03592 | AC15: 42397.47962 | AD15: 0 | AE15: =IF(AD15>0,'COSTO ELEMENTOS N1'!$B$74*Q15,0) -> 0 | AF15: 7478.678641 | AG15: 14132.49321 | AH15: 29914.71456 | AI15: 56529.97283 | AJ15: 86444.68739 | AK15: 266710.9748 | AL15: 95211.40508 | AM15: 233556.263 | AN15: 595478.6429 | AO15: D-Al-4 | AP15: D-Al-4 | AQ15: A-D | AR15: 2-D | AS15: A | AT15: Co-10
A16: 13 | B16: 10301606 | C16: 13 | D16: Co | E16: 10 | F16: 1 | L16: S | M16: 17945/59580 | N16: 0 | O16: 1 | P16: A | Q16: 5.2 | R16: D | S16: 3 | T16: 4 | U16: Al | V16: 4 | W16: Al | X16: 4 | Y16: Al | Z16: - | AA16: =IFERROR(VLOOKUP(B16,'TRAFOS MUESTRA'!$B$3:$D$2000,3,FALSE),"NA") -> 2 | AB16: 15350.97195 | AC16: 29008.80185 | AD16: 0 | AE16: =IF(AD16>0,'COSTO ELEMENTOS N1'!$B$74*Q16,0) -> 0 | AF16: 5116.990649 | AG16: 9669.600616 | AH16: 20467.9626 | AI16: 38678.40246 | AJ16: 59146.36506 | AK16: 266710.9748 | AL16: 95211.40508 | AM16: 233556.263 | AN16: 595478.6429 | AO16: D-Al-4 | AP16: D-Al-4 | AQ16: A-D | AR16: 2-D | AS16: A | AT16: Co-10
A17: 14 | B17: 10301607 | C17: 14 | D17: Co | E17: 10 | F17: 1 | L17: S | M17: 17973/17974/17975/17976 | N17: 0 | O17: 1 | P17: A | Q17: 5.2 | R17: D | S17: 3 | T17: 4 | U17: Al | V17: 4 | W17: Al | X17: 4 | Y17: Al | Z17: - | AA17: =IFERROR(VLOOKUP(B17,'TRAFOS MUESTRA'!$B$3:$D$2000,3,FALSE),"NA") -> 1 | AB17: 15350.97195 | AC17: 29008.80185 | AD17: 0 | AE17: =IF(AD17>0,'COSTO ELEMENTOS N1'!$B$74*Q17,0) -> 0 | AF17: 5116.990649 | AG17: 9669.600616 | AH17: 20467.9626 | AI17: 38678.40246 | AJ17: 59146.36506 | AK17: 266710.9748 | AL17: 95211.40508 | AM17: 233556.263 | AN17: 595478.6429 | AO17: D-Al-4 | AP17: D-Al-4 | AQ17: A-D | AR17: 1-D | AS17: A | AT17: Co-10
A18: 15 | B18: 10400601 | C18: 15 | D18: Co | E18: 10 | F18: 1 | L18: S | M18: 16396 | N18: 0 | O18: 1 | P18: A | Q18: 5.2 | R18: D | S18: 3 | T18: 4 | U18: Al | V18: 4 | W18: Al | X18: 4 | Y18: Al | Z18: - | AA18: =IFERROR(VLOOKUP(B18,'TRAFOS MUESTRA'!$B$3:$D$2000,3,FALSE),"NA") -> 1 | AB18: 15350.97195 | AC18: 29008.80185 | AD18: 0 | AE18: =IF(AD18>0,'COSTO ELEMENTOS N1'!$B$74*Q18,0) -> 0 | AF18: 5116.990649 | AG18: 9669.600616 | AH18: 20467.9626 | AI18: 38678.40246 | AJ18: 59146.36506 | AK18: 266710.9748 | AL18: 95211.40508 | AM18: 233556.263 | AN18: 595478.6429 | AO18: D-Al-4 | AP18: D-Al-4 | AQ18: A-D | AR18: 1-D | AS18: A | AT18: Co-10
A19: 16 | B19: 10401301 | C19: 16 | D19: Co | E19: 10 | F19: 1 | L19: S | M19: 23199 | N19: 0 | O19: 1 | P19: A | Q19: 11 | R19: D | S19: 3 | T19: 4 | U19: Al | V19: 4 | W19: Al | X19: 4 | Y19: Al | Z19: - | AA19: =IFERROR(VLOOKUP(B19,'TRAFOS MUESTRA'!$B$3:$D$2000,3,FALSE),"NA") -> 2 | AB19: 32473.20989 | AC19: 61364.77314 | AD19: 0 | AE19: =IF(AD19>0,'COSTO ELEMENTOS N1'!$B$74*Q19,0) -> 0 | AF19: 10824.4033 | AG19: 20454.92438 | AH19: 43297.61318 | AI19: 81819.69752 | AJ19: 125117.3107 | AK19: 266710.9748 | AL19: 95211.40508 | AM19: 233556.263 | AN19: 595478.6429 | AO19: D-Al-4 | AP19: D-Al-4 | AQ19: A-D | AR19: 2-D | AS19: A | AT19: Co-10
A20: 17 | B20: 10500011 | C20: 17 | D20: Co | E20: 10 | F20: 1 | L20: S | M20: 50710 | N20: 0 | O20: 1 | P20: A | Q20: 11 | R20: D | S20: 3 | T20: 4 | U20: Al | V20: 4 | W20: Al | X20: 4 | Y20: Al | Z20: - | AA20: =IFERROR(VLOOKUP(B20,'TRAFOS MUESTRA'!$B$3:$D$2000,3,FALSE),"NA") -> 2 | AB20: 32473.20989 | AC20: 61364.77314 | AD20: 0 | AE20: =IF(AD20>0,'COSTO ELEMENTOS N1'!$B$74*Q20,0) -> 0 | AF20: 10824.4033 | AG20: 20454.92438 | AH20: 43297.61318 | AI20: 81819.69752 | AJ20: 125117.3107 | AK20: 266710.9748 | AL20: 95211.40508 | AM20: 233556.263 | AN20: 595478.6429 | AO20: D-Al-4 | AP20: D-Al-4 | AQ20: A-D | AR20: 2-D | AS20: A | AT20: Co-10
A21: 18 | B21: 10500301 | C21: 18 | D21: Co | E21: 10 | F21: 1 | L21: S | M21: 47317 | N21: 0 | O21: 1 | P21: A | Q21: 11 | R21: D | S21: 3 | T21: 4 | U21: Al | V21: 4 | W21: Al | X21: 4 | Y21: Al | Z21: Uso esporadico | AA21: =IFERROR(VLOOKUP(B21,'TRAFOS MUESTRA'!$B$3:$D$2000,3,FALSE),"NA") -> 1 | AB21: 32473.20989 | AC21: 61364.77314 | AD21: 0 | AE21: =IF(AD21>0,'COSTO ELEMENTOS N1'!$B$74*Q21,0) -> 0 | AF21: 10824.4033 | AG21: 20454.92438 | AH21: 43297.61318 | AI21: 81819.69752 | AJ21: 125117.3107 | AK21: 266710.9748 | AL21: 95211.40508 | AM21: 233556.263 | AN21: 595478.6429 | AO21: D-Al-4 | AP21: D-Al-4 | AQ21: A-D | AR21: 1-D | AS21: A | AT21: Co-10
A22: 19 | B22: 10500511 | C22: 19 | D22: Co | E22: 10 | F22: 1 | L22: S | M22: 22216 | N22: 0 | O22: 1 | P22: A | Q22: 11 | R22: D | S22: 3 | T22: 4 | U22: Al | V22: 4 | W22: Al | X22: 4 | Y22: Al | Z22: - | AA22: =IFERROR(VLOOKUP(B22,'TRAFOS MUESTRA'!$B$3:$D$2000,3,FALSE),"NA") -> 2 | AB22: 32473.20989 | AC22: 61364.77314 | AD22: 0 | AE22: =IF(AD22>0,'COSTO ELEMENTOS N1'!$B$74*Q22,0) -> 0 | AF22: 10824.4033 | AG22: 20454.92438 | AH22: 43297.61318 | AI22: 81819.69752 | AJ22: 125117.3107 | AK22: 266710.9748 | AL22: 95211.40508 | AM22: 233556.263 | AN22: 595478.6429 | AO22: D-Al-4 | AP22: D-Al-4 | AQ22: A-D | AR22: 2-D | AS22: A | AT22: Co-10
A23: 20 | B23: 10500518 | C23: 20 | D23: Co | E23: 10 | F23: 1 | L23: S | M23: 22221 | N23: 0 | O23: 1 | P23: A | Q23: 11 | R23: D | S23: 3 | T23: 4 | U23: Al | V23: 4 | W23: Al | X23: 4 | Y23: Al | Z23: - | AA23: =IFERROR(VLOOKUP(B23,'TRAFOS MUESTRA'!$B$3:$D$2000,3,FALSE),"NA") -> 1 | AB23: 32473.20989 | AC23: 61364.77314 | AD23: 0 | AE23: =IF(AD23>0,'COSTO ELEMENTOS N1'!$B$74*Q23,0) -> 0 | AF23: 10824.4033 | AG23: 20454.92438 | AH23: 43297.61318 | AI23: 81819.69752 | AJ23: 125117.3107 | AK23: 266710.9748 | AL23: 95211.40508 | AM23: 233556.263 | AN23: 595478.6429 | AO23: D-Al-4 | AP23: D-Al-4 | AQ23: A-D | AR23: 1-D | AS23: A | AT23: Co-10
A24: 21 | B24: 10500518 | C24: 21 | D24: Co | E24: 10 | F24: 1 | L24: S | M24: 22221 | N24: 0 | O24: 1 | P24: A | Q24: 11 | R24: D | S24: 3 | T24: 4 | U24: Al | V24: 4 | W24: Al | X24: 4 | Y24: Al | Z24: - | AA24: =IFERROR(VLOOKUP(B24,'TRAFOS MUESTRA'!$B$3:$D$2000,3,FALSE),"NA") -> 1 | AB24: 32473.20989 | AC24: 61364.77314 | AD24: 0 | AE24: =IF(AD24>0,'COSTO ELEMENTOS N1'!$B$74*Q24,0) -> 0 | AF24: 10824.4033 | AG24: 20454.92438 | AH24: 43297.61318 | AI24: 81819.69752 | AJ24: 125117.3107 | AK24: 266710.9748 | AL24: 95211.40508 | AM24: 233556.263 | AN24: 595478.6429 | AO24: D-Al-4 | AP24: D-Al-4 | AQ24: A-D | AR24: 1-D | AS24: A | AT24: Co-10
A25: 22 | B25: 10500518 | C25: 22 | D25: Co | E25: 10 | F25: 1 | L25: S | M25: 22221 | N25: 0 | O25: 1 | P25: A | Q25: 11 | R25: D | S25: 3 | T25: 4 | U25: Al | V25: 4 | W25: Al | X25: 4 | Y25: Al | Z25: - | AA25: =IFERROR(VLOOKUP(B25,'TRAFOS MUESTRA'!$B$3:$D$2000,3,FALSE),"NA") -> 1 | AB25: 32473.20989 | AC25: 61364.77314 | AD25: 0 | AE25: =IF(AD25>0,'COSTO ELEMENTOS N1'!$B$74*Q25,0) -> 0 | AF25: 10824.4033 | AG25: 20454.92438 | AH25: 43297.61318 | AI25: 81819.69752 | AJ25: 125117.3107 | AK25: 266710.9748 | AL25: 95211.40508 | AM25: 233556.263 | AN25: 595478.6429 | AO25: D-Al-4 | AP25: D-Al-4 | AQ25: A-D | AR25: 1-D | AS25: A | AT25: Co-10
A26: 23 | B26: 10500518 | C26: 28 | D26: Co | E26: 8 | F26: 0 | L26: N | N26: 2 | O26: 3 | P26: A | Q26: 7.6 | R26: D | S26: 3 | T26: 4 | U26: Al | V26: 4 | W26: Al | X26: 4 | Y26: Al | Z26: - | AA26: =IFERROR(VLOOKUP(B26,'TRAFOS MUESTRA'!$B$3:$D$2000,3,FALSE),"NA") -> 1 | AB26: 22436.03592 | AC26: 42397.47962 | AD26: 0 | AE26: =IF(AD26>0,'COSTO ELEMENTOS N1'!$B$74*Q26,0) -> 0 | AF26: 7478.678641 | AG26: 14132.49321 | AH26: 29914.71456 | AI26: 56529.97283 | AJ26: 86444.68739 | AK26: 266710.9748 | AL26: 24117.88011 | AM26: 233556.263 | AN26: 524385.118 | AO26: D-Al-4 | AP26: D-Al-4 | AQ26: A-D | AR26: 1-D | AS26: A | AT26: Co-8
A27: 24 | B27: 10500518 | C27: 29 | D27: Co | E27: 8 | F27: 0 | J27: S | K27: 70 | L27: N | N27: 3 | O27: 4 | P27: A | Q27: 8.8 | R27: D | S27: 3 | T27: 4 | U27: Al | V27: 4 | W27: Al | X27: 4 | Y27: Al | Z27: - | AA27: =IFERROR(VLOOKUP(B27,'TRAFOS MUESTRA'!$B$3:$D$2000,3,FALSE),"NA") -> 1 | AB27: 25978.56791 | AC27: 49091.81851 | AD27: 0 | AE27: =IF(AD27>0,'COSTO ELEMENTOS N1'!$B$74*Q27,0) -> 0 | AF27: 8659.522636 | AG27: 16363.9395 | AH27: 34638.09055 | AI27: 65455.75802 | AJ27: 100093.8486 | AK27: 266710.9748 | AL27: 24117.88011 | AM27: 233556.263 | AN27: 524385.118 | AO27: D-Al-4 | AP27: D-Al-4 | AQ27: A-D | AR27: 1-D | AS27: A | AT27: Co-8
A28: 25 | B28: 10500518 | C28: 30 | D28: Co | E28: 8 | F28: 0 | J28: S | K28: 70 | L28: N | N28: 3 | O28: 4 | P28: A | Q28: 8.8 | R28: D | S28: 3 | T28: 4 | U28: Al | V28: 4 | W28: Al | X28: 4 | Y28: Al | Z28: - | AA28: =IFERROR(VLOOKUP(B28,'TRAFOS MUESTRA'!$B$3:$D$2000,3,FALSE),"NA") -> 1 | AB28: 25978.56791 | AC28: 49091.81851 | AD28: 0 | AE28: =IF(AD28>0,'COSTO ELEMENTOS N1'!$B$74*Q28,0) -> 0 | AF28: 8659.522636 | AG28: 16363.9395 | AH28: 34638.09055 | AI28: 65455.75802 | AJ28: 100093.8486 | AK28: 266710.9748 | AL28: 24117.88011 | AM28: 233556.263 | AN28: 524385.118 | AO28: D-Al-4 | AP28: D-Al-4 | AQ28: A-D | AR28: 1-D | AS28: A | AT28: Co-8
A29: 26 | B29: 10500518 | C29: 31 | D29: Co | E29: 8 | F29: 0 | J29: S | K29: 70 | L29: N | N29: 3 | O29: 4 | P29: A | Q29: 8.8 | R29: D | S29: 3 | T29: 4 | U29: Al | V29: 4 | W29: Al | X29: 4 | Y29: Al | Z29: - | AA29: =IFERROR(VLOOKUP(B29,'TRAFOS MUESTRA'!$B$3:$D$2000,3,FALSE),"NA") -> 1 | AB29: 25978.56791 | AC29: 49091.81851 | AD29: 0 | AE29: =IF(AD29>0,'COSTO ELEMENTOS N1'!$B$74*Q29,0) -> 0 | AF29: 8659.522636 | AG29: 16363.9395 | AH29: 34638.09055 | AI29: 65455.75802 | AJ29: 100093.8486 | AK29: 266710.9748 | AL29: 24117.88011 | AM29: 233556.263 | AN29: 524385.118 | AO29: D-Al-4 | AP29: D-Al-4 | AQ29: A-D | AR29: 1-D | AS29: A | AT29: Co-8
A30: 27 | B30: 10500518 | C30: 32 | D30: Co | E30: 8 | F30: 0 | L30: N | N30: 4 | O30: 5 | P30: A | Q30: 7.6 | R30: D | S30: 3 | T30: 4 | U30: Al | V30: 4 | W30: Al | X30: 4 | Y30: Al | Z30: - | AA30: =IFERROR(VLOOKUP(B30,'TRAFOS MUESTRA'!$B$3:$D$2000,3,FALSE),"NA") -> 1 | AB30: 22436.03592 | AC30: 42397.47962 | AD30: 0 | AE30: =IF(AD30>0,'COSTO ELEMENTOS N1'!$B$74*Q30,0) -> 0 | AF30: 7478.678641 | AG30: 14132.49321 | AH30: 29914.71456 | AI30: 56529.97283 | AJ30: 86444.68739 | AK30: 266710.9748 | AL30: 24117.88011 | AM30: 233556.263 | AN30: 524385.118 | AO30: D-Al-4 | AP30: D-Al-4 | AQ30: A-D | AR30: 1-D | AS30: A | AT30: Co-8
A31: 28 | B31: 10500518 | C31: 33 | D31: Co | E31: 8 | F31: 0 | L31: N | N31: 4 | O31: 5 | P31: A | Q31: 7.6 | R31: D | S31: 3 | T31: 4 | U31: Al | V31: 4 | W31: Al | X31: 4 | Y31: Al | Z31: - | AA31: =IFERROR(VLOOKUP(B31,'TRAFOS MUESTRA'!$B$3:$D$2000,3,FALSE),"NA") -> 1 | AB31: 22436.03592 | AC31: 42397.47962 | AD31: 0 | AE31: =IF(AD31>0,'COSTO ELEMENTOS N1'!$B$74*Q31,0) -> 0 | AF31: 7478.678641 | AG31: 14132.49321 | AH31: 29914.71456 | AI31: 56529.97283 | AJ31: 86444.68739 | AK31: 266710.9748 | AL31: 24117.88011 | AM31: 233556.263 | AN31: 524385.118 | AO31: D-Al-4 | AP31: D-Al-4 | AQ31: A-D | AR31: 1-D | AS31: A | AT31: Co-8
A32: 29 | B32: 10500518 | C32: 34 | D32: Co | E32: 8 | F32: 0 | L32: N | N32: 4 | O32: 5 | P32: A | Q32: 7.6 | R32: D | S32: 3 | T32: 4 | U32: Al | V32: 4 | W32: Al | X32: 4 | Y32: Al | Z32: - | AA32: =IFERROR(VLOOKUP(B32,'TRAFOS MUESTRA'!$B$3:$D$2000,3,FALSE),"NA") -> 1 | AB32: 22436.03592 | AC32: 42397.47962 | AD32: 0 | AE32: =IF(AD32>0,'COSTO ELEMENTOS N1'!$B$74*Q32,0) -> 0 | AF32: 7478.678641 | AG32: 14132.49321 | AH32: 29914.71456 | AI32: 56529.97283 | AJ32: 86444.68739 | AK32: 266710.9748 | AL32: 24117.88011 | AM32: 233556.263 | AN32: 524385.118 | AO32: D-Al-4 | AP32: D-Al-4 | AQ32: A-D | AR32: 1-D | AS32: A | AT32: Co-8
A33: 30 | B33: 10500518 | C33: 35 | D33: Co | E33: 8 | F33: 0 | J33: S | K33: 70 | L33: N | M33: 23210/47318 | N33: 5 | O33: 6 | P33: A | Q33: 5.2 | R33: D | S33: 3 | T33: 4 | U33: Al | V33: 4 | W33: Al | X33: 4 | Y33: Al | Z33: - | AA33: =IFERROR(VLOOKUP(B33,'TRAFOS MUESTRA'!$B$3:$D$2000,3,FALSE),"NA") -> 1 | AB33: 15350.97195 | AC33: 29008.80185 | AD33: 0 | AE33: =IF(AD33>0,'COSTO ELEMENTOS N1'!$B$74*Q33,0) -> 0 | AF33: 5116.990649 | AG33: 9669.600616 | AH33: 20467.9626 | AI33: 38678.40246 | AJ33: 59146.36506 | AK33: 266710.9748 | AL33: 24117.88011 | AM33: 233556.263 | AN33: 524385.118 | AO33: D-Al-4 | AP33: D-Al-4 | AQ33: A-D | AR33: 1-D | AS33: A | AT33: Co-8
A34: 31 | B34: 10500518 | C34: 36 | D34: Co | E34: 8 | F34: 0 | J34: S | K34: 70 | L34: N | M34: 23210/47318 | N34: 5 | O34: 6 | P34: A | Q34: 5.2 | R34: D | S34: 3 | T34: 4 | U34: Al | V34: 4 | W34: Al | X34: 4 | Y34: Al | Z34: - | AA34: =IFERROR(VLOOKUP(B34,'TRAFOS MUESTRA'!$B$3:$D$2000,3,FALSE),"NA") -> 1 | AB34: 15350.97195 | AC34: 29008.80185 | AD34: 0 | AE34: =IF(AD34>0,'COSTO ELEMENTOS N1'!$B$74*Q34,0) -> 0 | AF34: 5116.990649 | AG34: 9669.600616 | AH34: 20467.9626 | AI34: 38678.40246 | AJ34: 59146.36506 | AK34: 266710.9748 | AL34: 24117.88011 | AM34: 233556.263 | AN34: 524385.118 | AO34: D-Al-4 | AP34: D-Al-4 | AQ34: A-D | AR34: 1-D | AS34: A | AT34: Co-8
A35: 32 | B35: 10500518 | C35: 37 | D35: Co | E35: 8 | F35: 0 | J35: S | K35: 70 | L35: N | M35: 23210/47318 | N35: 5 | O35: 6 | P35: A | Q35: 5.2 | R35: D | S35: 3 | T35: 4 | U35: Al | V35: 4 | W35: Al | X35: 4 | Y35: Al | Z35: - | AA35: =IFERROR(VLOOKUP(B35,'TRAFOS MUESTRA'!$B$3:$D$2000,3,FALSE),"NA") -> 1 | AB35: 15350.97195 | AC35: 29008.80185 | AD35: 0 | AE35: =IF(AD35>0,'COSTO ELEMENTOS N1'!$B$74*Q35,0) -> 0 | AF35: 5116.990649 | AG35: 9669.600616 | AH35: 20467.9626 | AI35: 38678.40246 | AJ35: 59146.36506 | AK35: 266710.9748 | AL35: 24117.88011 | AM35: 233556.263 | AN35: 524385.118 | AO35: D-Al-4 | AP35: D-Al-4 | AQ35: A-D | AR35: 1-D | AS35: A | AT35: Co-8
A36: 33 | B36: 10500518 | C36: 38 | D36: Co | E36: 8 | F36: 0 | J36: S | K36: 70 | L36: N | N36: 6 | O36: 7 | P36: A | Q36: 11 | R36: D | S36: 3 | T36: 4 | U36: Al | V36: 4 | W36: Al | X36: 4 | Y36: Al | Z36: - | AA36: =IFERROR(VLOOKUP(B36,'TRAFOS MUESTRA'!$B$3:$D$2000,3,FALSE),"NA") -> 1 | AB36: 32473.20989 | AC36: 61364.77314 | AD36: 0 | AE36: =IF(AD36>0,'COSTO ELEMENTOS N1'!$B$74*Q36,0) -> 0 | AF36: 10824.4033 | AG36: 20454.92438 | AH36: 43297.61318 | AI36: 81819.69752 | AJ36: 125117.3107 | AK36: 266710.9748 | AL36: 24117.88011 | AM36: 233556.263 | AN36: 524385.118 | AO36: D-Al-4 | AP36: D-Al-4 | AQ36: A-D | AR36: 1-D | AS36: A | AT36: Co-8
A37: 34 | B37: 10500518 | C37: 39 | D37: Co | E37: 8 | F37: 0 | J37: S | K37: 70 | L37: N | N37: 6 | O37: 7 | P37: A | Q37: 11 | R37: D | S37: 3 | T37: 4 | U37: Al | V37: 4 | W37: Al | X37: 4 | Y37: Al | Z37: - | AA37: =IFERROR(VLOOKUP(B37,'TRAFOS MUESTRA'!$B$3:$D$2000,3,FALSE),"NA") -> 1 | AB37: 32473.20989 | AC37: 61364.77314 | AD37: 0 | AE37: =IF(AD37>0,'COSTO ELEMENTOS N1'!$B$74*Q37,0) -> 0 | AF37: 10824.4033 | AG37: 20454.92438 | AH37: 43297.61318 | AI37: 81819.69752 | AJ37: 125117.3107 | AK37: 266710.9748 | AL37: 24117.88011 | AM37: 233556.263 | AN37: 524385.118 | AO37: D-Al-4 | AP37: D-Al-4 | AQ37: A-D | AR37: 1-D | AS37: A | AT37: Co-8
A38: 35 | B38: 10500518 | C38: 40 | D38: Co | E38: 8 | F38: 0 | J38: S | K38: 70 | L38: N | N38: 6 | O38: 7 | P38: A | Q38: 11 | R38: D | S38: 3 | T38: 4 | U38: Al | V38: 4 | W38: Al | X38: 4 | Y38: Al | Z38: - | AA38: =IFERROR(VLOOKUP(B38,'TRAFOS MUESTRA'!$B$3:$D$2000,3,FALSE),"NA") -> 1 | AB38: 32473.20989 | AC38: 61364.77314 | AD38: 0 | AE38: =IF(AD38>0,'COSTO ELEMENTOS N1'!$B$74*Q38,0) -> 0 | AF38: 10824.4033 | AG38: 20454.92438 | AH38: 43297.61318 | AI38: 81819.69752 | AJ38: 125117.3107 | AK38: 266710.9748 | AL38: 24117.88011 | AM38: 233556.263 | AN38: 524385.118 | AO38: D-Al-4 | AP38: D-Al-4 | AQ38: A-D | AR38: 1-D | AS38: A | AT38: Co-8
A39: 36 | B39: 10500518 | C39: 41 | D39: Co | E39: 8 | F39: 0 | J39: S | K39: 70 | L39: N | N39: 7 | O39: 8 | P39: A | Q39: 13.5 | R39: A | S39: 3 | T39: 8 | U39: Cu | V39: 8 | W39: Cu | X39: 8 | Y39: Cu | Z39: - | AA39: =IFERROR(VLOOKUP(B39,'TRAFOS MUESTRA'!$B$3:$D$2000,3,FALSE),"NA") -> 1 | AB39: 80710.95871 | AC39: 75311.31249 | AD39: 0 | AE39: =IF(AD39>0,'COSTO ELEMENTOS N1'!$B$74*Q39,0) -> 0 | AF39: 26903.6529 | AG39: 25103.77083 | AH39: 107614.6116 | AI39: 100415.0833 | AJ39: 208029.6949 | AK39: 266710.9748 | AL39: 24117.88011 | AM39: 233556.263 | AN39: 524385.118 | AO39: A-Cu-8 | AP39: A-Cu-8 | AQ39: A-A | AR39: 1-A | AS39: A | AT39: Co-8
A40: 37 | B40: 10500518 | C40: 42 | D40: Co | E40: 8 | F40: 0 | J40: S | K40: 70 | L40: N | N40: 7 | O40: 8 | P40: A | Q40: 13.5 | R40: A | S40: 3 | T40: 8 | U40: Cu | V40: 8 | W40: Cu | X40: 8 | Y40: Cu | Z40: - | AA40: =IFERROR(VLOOKUP(B40,'TRAFOS MUESTRA'!$B$3:$D$2000,3,FALSE),"NA") -> 1 | AB40: 80710.95871 | AC40: 75311.31249 | AD40: 0 | AE40: =IF(AD40>0,'COSTO ELEMENTOS N1'!$B$74*Q40,0) -> 0 | AF40: 26903.6529 | AG40: 25103.77083 | AH40: 107614.6116 | AI40: 100415.0833 | AJ40: 208029.6949 | AK40: 266710.9748 | AL40: 24117.88011 | AM40: 233556.263 | AN40: 524385.118 | AO40: A-Cu-8 | AP40: A-Cu-8 | AQ40: A-A | AR40: 1-A | AS40: A | AT40: Co-8
A41: 38 | B41: 10500518 | C41: 43 | D41: Co | E41: 8 | F41: 0 | J41: S | K41: 70 | L41: N | N41: 7 | O41: 8 | P41: A | Q41: 13.5 | R41: A | S41: 3 | T41: 8 | U41: Cu | V41: 8 | W41: Cu | X41: 8 | Y41: Cu | Z41: - | AA41: =IFERROR(VLOOKUP(B41,'TRAFOS MUESTRA'!$B$3:$D$2000,3,FALSE),"NA") -> 1 | AB41: 80710.95871 | AC41: 75311.31249 | AD41: 0 | AE41: =IF(AD41>0,'COSTO ELEMENTOS N1'!$B$74*Q41,0) -> 0 | AF41: 26903.6529 | AG41: 25103.77083 | AH41: 107614.6116 | AI41: 100415.0833 | AJ41: 208029.6949 | AK41: 266710.9748 | AL41: 24117.88011 | AM41: 233556.263 | AN41: 524385.118 | AO41: A-Cu-8 | AP41: A-Cu-8 | AQ41: A-A | AR41: 1-A | AS41: A | AT41: Co-8
A42: 39 | B42: 10500518 | C42: 44 | D42: Co | E42: 8 | F42: 0 | J42: S | K42: 70 | L42: N | N42: 8 | O42: 9 | P42: A | Q42: 11 | R42: A | S42: 3 | T42: 8 | U42: Cu | V42: 8 | W42: Cu | X42: 8 | Y42: Cu | Z42: - | AA42: =IFERROR(VLOOKUP(B42,'TRAFOS MUESTRA'!$B$3:$D$2000,3,FALSE),"NA") -> 1 | AB42: 65764.48487 | AC42: 61364.77314 | AD42: 0 | AE42: =IF(AD42>0,'COSTO ELEMENTOS N1'!$B$74*Q42,0) -> 0 | AF42: 21921.49496 | AG42: 20454.92438 | AH42: 87685.97983 | AI42: 81819.69752 | AJ42: 169505.6774 | AK42: 266710.9748 | AL42: 24117.88011 | AM42: 233556.263 | AN42: 524385.118 | AO42: A-Cu-8 | AP42: A-Cu-8 | AQ42: A-A | AR42: 1-A | AS42: A | AT42: Co-8
A43: 40 | B43: 10500518 | C43: 45 | D43: Co | E43: 8 | F43: 0 | J43: S | K43: 70 | L43: N | N43: 8 | O43: 9 | P43: A | Q43: 11 | R43: A | S43: 3 | T43: 8 | U43: Cu | V43: 8 | W43: Cu | X43: 8 | Y43: Cu | Z43: - | AA43: =IFERROR(VLOOKUP(B43,'TRAFOS MUESTRA'!$B$3:$D$2000,3,FALSE),"NA") -> 1 | AB43: 65764.48487 | AC43: 61364.77314 | AD43: 0 | AE43: =IF(AD43>0,'COSTO ELEMENTOS N1'!$B$74*Q43,0) -> 0 | AF43: 21921.49496 | AG43: 20454.92438 | AH43: 87685.97983 | AI43: 81819.69752 | AJ43: 169505.6774 | AK43: 266710.9748 | AL43: 24117.88011 | AM43: 233556.263 | AN43: 524385.118 | AO43: A-Cu-8 | AP43: A-Cu-8 | AQ43: A-A | AR43: 1-A | AS43: A | AT43: Co-8
A44: 41 | B44: 10500518 | C44: 46 | D44: Co | E44: 8 | F44: 0 | J44: S | K44: 70 | L44: N | N44: 8 | O44: 9 | P44: A | Q44: 11 | R44: A | S44: 3 | T44: 8 | U44: Cu | V44: 8 | W44: Cu | X44: 8 | Y44: Cu | Z44: - | AA44: =IFERROR(VLOOKUP(B44,'TRAFOS MUESTRA'!$B$3:$D$2000,3,FALSE),"NA") -> 1 | AB44: 65764.48487 | AC44: 61364.77314 | AD44: 0 | AE44: =IF(AD44>0,'COSTO ELEMENTOS N1'!$B$74*Q44,0) -> 0 | AF44: 21921.49496 | AG44: 20454.92438 | AH44: 87685.97983 | AI44: 81819.69752 | AJ44: 169505.6774 | AK44: 266710.9748 | AL44: 24117.88011 | AM44: 233556.263 | AN44: 524385.118 | AO44: A-Cu-8 | AP44: A-Cu-8 | AQ44: A-A | AR44: 1-A | AS44: A | AT44: Co-8
A45: 42 | B45: 10500518 | C45: 47 | D45: Co | E45: 8 | F45: 0 | J45: S | K45: 70 | L45: N | N45: 9 | O45: 10 | P45: A | Q45: 11.3 | R45: A | S45: 3 | T45: 10 | U45: Cu | V45: 10 | W45: Cu | X45: 10 | Y45: Cu | Z45: - | AA45: =IFERROR(VLOOKUP(B45,'TRAFOS MUESTRA'!$B$3:$D$2000,3,FALSE),"NA") -> 1 | AB45: 46718.77855 | AC45: 63038.35786 | AD45: 0 | AE45: =IF(AD45>0,'COSTO ELEMENTOS N1'!$B$74*Q45,0) -> 0 | AF45: 15572.92618 | AG45: 21012.78595 | AH45: 62291.70473 | AI45: 84051.14382 | AJ45: 146342.8485 | AK45: 266710.9748 | AL45: 24117.88011 | AM45: 233556.263 | AN45: 524385.118 | AO45: A-Cu-10 | AP45: A-Cu-10 | AQ45: A-A | AR45: 1-A | AS45: A | AT45: Co-8
A46: 43 | B46: 10500518 | C46: 48 | D46: Co | E46: 8 | F46: 0 | J46: S | K46: 70 | L46: N | N46: 9 | O46: 10 | P46: A | Q46: 11.3 | R46: A | S46: 3 | T46: 10 | U46: Cu | V46: 10 | W46: Cu | X46: 10 | Y46: Cu | Z46: - | AA46: =IFERROR(VLOOKUP(B46,'TRAFOS MUESTRA'!$B$3:$D$2000,3,FALSE),"NA") -> 1 | AB46: 46718.77855 | AC46: 63038.35786 | AD46: 0 | AE46: =IF(AD46>0,'COSTO ELEMENTOS N1'!$B$74*Q46,0) -> 0 | AF46: 15572.92618 | AG46: 21012.78595 | AH46: 62291.70473 | AI46: 84051.14382 | AJ46: 146342.8485 | AK46: 266710.9748 | AL46: 24117.88011 | AM46: 233556.263 | AN46: 524385.118 | AO46: A-Cu-10 | AP46: A-Cu-10 | AQ46: A-A | AR46: 1-A | AS46: A | AT46: Co-8
A47: 44 | B47: 10500518 | C47: 49 | D47: Co | E47: 8 | F47: 0 | J47: S | K47: 70 | L47: N | N47: 9 | O47: 10 | P47: A | Q47: 11.3 | R47: A | S47: 3 | T47: 10 | U47: Cu | V47: 10 | W47: Cu | X47: 10 | Y47: Cu | Z47: - | AA47: =IFERROR(VLOOKUP(B47,'TRAFOS MUESTRA'!$B$3:$D$2000,3,FALSE),"NA") -> 1 | AB47: 46718.77855 | AC47: 63038.35786 | AD47: 0 | AE47: =IF(AD47>0,'COSTO ELEMENTOS N1'!$B$74*Q47,0) -> 0 | AF47: 15572.92618 | AG47: 21012.78595 | AH47: 62291.70473 | AI47: 84051.14382 | AJ47: 146342.8485 | AK47: 266710.9748 | AL47: 24117.88011 | AM47: 233556.263 | AN47: 524385.118 | AO47: A-Cu-10 | AP47: A-Cu-10 | AQ47: A-A | AR47: 1-A | AS47: A | AT47: Co-8
A48: 45 | B48: 10500518 | C48: 50 | D48: Co | E48: 8 | F48: 0 | J48: S | K48: 70 | L48: N | N48: 10 | O48: 11 | P48: A | Q48: 5.9 | R48: A | S48: 3 | T48: 10 | U48: Cu | V48: 10 | W48: Cu | X48: 10 | Y48: Cu | Z48: - | AA48: =IFERROR(VLOOKUP(B48,'TRAFOS MUESTRA'!$B$3:$D$2000,3,FALSE),"NA") -> 1 | AB48: 24392.99057 | AC48: 32913.83287 | AD48: 0 | AE48: =IF(AD48>0,'COSTO ELEMENTOS N1'!$B$74*Q48,0) -> 0 | AF48: 8130.996857 | AG48: 10971.27762 | AH48: 32523.98743 | AI48: 43885.11049 | AJ48: 76409.09791 | AK48: 266710.9748 | AL48: 24117.88011 | AM48: 233556.263 | AN48: 524385.118 | AO48: A-Cu-10 | AP48: A-Cu-10 | AQ48: A-A | AR48: 1-A | AS48: A | AT48: Co-8
A49: 46 | B49: 10500518 | C49: 51 | D49: Co | E49: 8 | F49: 0 | J49: S | K49: 70 | L49: N | N49: 10 | O49: 11 | P49: A | Q49: 5.9 | R49: A | S49: 3 | T49: 10 | U49: Cu | V49: 10 | W49: Cu | X49: 10 | Y49: Cu | Z49: - | AA49: =IFERROR(VLOOKUP(B49,'TRAFOS MUESTRA'!$B$3:$D$2000,3,FALSE),"NA") -> 1 | AB49: 24392.99057 | AC49: 32913.83287 | AD49: 0 | AE49: =IF(AD49>0,'COSTO ELEMENTOS N1'!$B$74*Q49,0) -> 0 | AF49: 8130.996857 | AG49: 10971.27762 | AH49: 32523.98743 | AI49: 43885.11049 | AJ49: 76409.09791 | AK49: 266710.9748 | AL49: 24117.88011 | AM49: 233556.263 | AN49: 524385.118 | AO49: A-Cu-10 | AP49: A-Cu-10 | AQ49: A-A | AR49: 1-A | AS49: A | AT49: Co-8
A50: 47 | B50: 10500518 | C50: 52 | D50: Co | E50: 8 | F50: 0 | J50: S | K50: 70 | L50: N | N50: 10 | O50: 11 | P50: A | Q50: 5.9 | R50: A | S50: 3 | T50: 10 | U50: Cu | V50: 10 | W50: Cu | X50: 10 | Y50: Cu | Z50: - | AA50: =IFERROR(VLOOKUP(B50,'TRAFOS MUESTRA'!$B$3:$D$2000,3,FALSE),"NA") -> 1 | AB50: 24392.99057 | AC50: 32913.83287 | AD50: 0 | AE50: =IF(AD50>0,'COSTO ELEMENTOS N1'!$B$74*Q50,0) -> 0 | AF50: 8130.996857 | AG50: 10971.27762 | AH50: 32523.98743 | AI50: 43885.11049 | AJ50: 76409.09791 | AK50: 266710.9748 | AL50: 24117.88011 | AM50: 233556.263 | AN50: 524385.118 | AO50: A-Cu-10 | AP50: A-Cu-10 | AQ50: A-A | AR50: 1-A | AS50: A | AT50: Co-8
A51: 48 | B51: 10500518 | C51: 53 | D51: Co | E51: 8 | F51: 0 | J51: S | K51: 70 | L51: S | N51: 11 | O51: 12 | P51: A | Q51: 7 | R51: A | S51: 3 | T51: 10 | U51: Cu | V51: 10 | W51: Cu | X51: 10 | Y51: Cu | Z51: - | AA51: =IFERROR(VLOOKUP(B51,'TRAFOS MUESTRA'!$B$3:$D$2000,3,FALSE),"NA") -> 1 | AB51: 28940.83627 | AC51: 39050.31018 | AD51: 0 | AE51: =IF(AD51>0,'COSTO ELEMENTOS N1'!$B$74*Q51,0) -> 0 | AF51: 9646.945423 | AG51: 13016.77006 | AH51: 38587.78169 | AI51: 52067.08024 | AJ51: 90654.86193 | AK51: 266710.9748 | AL51: 95211.40508 | AM51: 233556.263 | AN51: 595478.6429 | AO51: A-Cu-10 | AP51: A-Cu-10 | AQ51: A-A | AR51: 1-A | AS51: A | AT51: Co-8
A52: 49 | B52: 10500518 | C52: 54 | D52: Co | E52: 8 | F52: 0 | J52: S | K52: 70 | L52: S | N52: 11 | O52: 12 | P52: A | Q52: 7 | R52: A | S52: 3 | T52: 10 | U52: Cu | V52: 10 | W52: Cu | X52: 10 | Y52: Cu | Z52: - | AA52: =IFERROR(VLOOKUP(B52,'TRAFOS MUESTRA'!$B$3:$D$2000,3,FALSE),"NA") -> 1 | AB52: 28940.83627 | AC52: 39050.31018 | AD52: 0 | AE52: =IF(AD52>0,'COSTO ELEMENTOS N1'!$B$74*Q52,0) -> 0 | AF52: 9646.945423 | AG52: 13016.77006 | AH52: 38587.78169 | AI52: 52067.08024 | AJ52: 90654.86193 | AK52: 266710.9748 | AL52: 95211.40508 | AM52: 233556.263 | AN52: 595478.6429 | AO52: A-Cu-10 | AP52: A-Cu-10 | AQ52: A-A | AR52: 1-A | AS52: A | AT52: Co-8
A53: 50 | B53: 10500518 | C53: 55 | D53: Co | E53: 8 | F53: 0 | J53: S | K53: 70 | L53: S | N53: 11 | O53: 12 | P53: A | Q53: 7 | R53: A | S53: 3 | T53: 10 | U53: Cu | V53: 10 | W53: Cu | X53: 10 | Y53: Cu | Z53: - | AA53: =IFERROR(VLOOKUP(B53,'TRAFOS MUESTRA'!$B$3:$D$2000,3,FALSE),"NA") -> 1 | AB53: 28940.83627 | AC53: 39050.31018 | AD53: 0 | AE53: =IF(AD53>0,'COSTO ELEMENTOS N1'!$B$74*Q53,0) -> 0 | AF53: 9646.945423 | AG53: 13016.77006 | AH53: 38587.78169 | AI53: 52067.08024 | AJ53: 90654.86193 | AK53: 266710.9748 | AL53: 95211.40508 | AM53: 233556.263 | AN53: 595478.6429 | AO53: A-Cu-10 | AP53: A-Cu-10 | AQ53: A-A | AR53: 1-A | AS53: A | AT53: Co-8
A54: 51 | B54: 10500518 | C54: 56 | D54: Co | E54: 8 | F54: 0 | L54: N | N54: 2 | O54: 13 | P54: A | Q54: 17.1 | R54: D | S54: 3 | T54: 2 | U54: Al | V54: 2 | W54: Al | X54: 2 | Y54: Al | Z54: - | AA54: =IFERROR(VLOOKUP(B54,'TRAFOS MUESTRA'!$B$3:$D$2000,3,FALSE),"NA") -> 1 | AB54: 71820.68259 | AC54: 95394.32915 | AD54: 0 | AE54: =IF(AD54>0,'COSTO ELEMENTOS N1'!$B$74*Q54,0) -> 0 | AF54: 23940.22753 | AG54: 31798.10972 | AH54: 95760.91013 | AI54: 127192.4389 | AJ54: 222953.349 | AK54: 266710.9748 | AL54: 24117.88011 | AM54: 233556.263 | AN54: 524385.118 | AO54: D-Al-2 | AP54: D-Al-2 | AQ54: A-D | AR54: 1-D | AS54: A | AT54: Co-8
A55: 52 | B55: 10500518 | C55: 57 | D55: Co | E55: 8 | F55: 0 | L55: N | N55: 2 | O55: 13 | P55: A | Q55: 17.1 | R55: D | S55: 3 | T55: 2 | U55: Al | V55: 2 | W55: Al | X55: 2 | Y55: Al | Z55: - | AA55: =IFERROR(VLOOKUP(B55,'TRAFOS MUESTRA'!$B$3:$D$2000,3,FALSE),"NA") -> 1 | AB55: 71820.68259 | AC55: 95394.32915 | AD55: 0 | AE55: =IF(AD55>0,'COSTO ELEMENTOS N1'!$B$74*Q55,0) -> 0 | AF55: 23940.22753 | AG55: 31798.10972 | AH55: 95760.91013 | AI55: 127192.4389 | AJ55: 222953.349 | AK55: 266710.9748 | AL55: 24117.88011 | AM55: 233556.263 | AN55: 524385.118 | AO55: D-Al-2 | AP55: D-Al-2 | AQ55: A-D | AR55: 1-D | AS55: A | AT55: Co-8
A56: 53 | B56: 10500518 | C56: 58 | D56: Co | E56: 8 | F56: 0 | L56: N | N56: 2 | O56: 13 | P56: A | Q56: 17.1 | R56: D | S56: 3 | T56: 2 | U56: Al | V56: 2 | W56: Al | X56: 2 | Y56: Al | Z56: - | AA56: =IFERROR(VLOOKUP(B56,'TRAFOS MUESTRA'!$B$3:$D$2000,3,FALSE),"NA") -> 1 | AB56: 71820.68259 | AC56: 95394.32915 | AD56: 0 | AE56: =IF(AD56>0,'COSTO ELEMENTOS N1'!$B$74*Q56,0) -> 0 | AF56: 23940.22753 | AG56: 31798.10972 | AH56: 95760.91013 | AI56: 127192.4389 | AJ56: 222953.349 | AK56: 266710.9748 | AL56: 24117.88011 | AM56: 233556.263 | AN56: 524385.118 | AO56: D-Al-2 | AP56: D-Al-2 | AQ56: A-D | AR56: 1-D | AS56: A | AT56: Co-8
A57: 54 | B57: 10500518 | C57: 59 | D57: Co | E57: 8 | F57: 0 | L57: N | N57: 13 | O57: 14 | P57: A | Q57: 9.9 | R57: D | S57: 3 | T57: 2 | U57: Al | V57: 2 | W57: Al | X57: 2 | Y57: Al | Z57: - | AA57: =IFERROR(VLOOKUP(B57,'TRAFOS MUESTRA'!$B$3:$D$2000,3,FALSE),"NA") -> 1 | AB57: 41580.39519 | AC57: 55228.29583 | AD57: 0 | AE57: =IF(AD57>0,'COSTO ELEMENTOS N1'!$B$74*Q57,0) -> 0 | AF57: 13860.13173 | AG57: 18409.43194 | AH57: 55440.52691 | AI57: 73637.72777 | AJ57: 129078.2547 | AK57: 266710.9748 | AL57: 24117.88011 | AM57: 233556.263 | AN57: 524385.118 | AO57: D-Al-2 | AP57: D-Al-2 | AQ57: A-D | AR57: 1-D | AS57: A | AT57: Co-8
A58: 55 | B58: 10500518 | C58: 60 | D58: Co | E58: 8 | F58: 0 | L58: N | N58: 13 | O58: 14 | P58: A | Q58: 9.9 | R58: D | S58: 3 | T58: 2 | U58: Al | V58: 2 | W58: Al | X58: 2 | Y58: Al | Z58: - | AA58: =IFERROR(VLOOKUP(B58,'TRAFOS MUESTRA'!$B$3:$D$2000,3,FALSE),"NA") -> 1 | AB58: 41580.39519 | AC58: 55228.29583 | AD58: 0 | AE58: =IF(AD58>0,'COSTO ELEMENTOS N1'!$B$74*Q58,0) -> 0 | AF58: 13860.13173 | AG58: 18409.43194 | AH58: 55440.52691 | AI58: 73637.72777 | AJ58: 129078.2547 | AK58: 266710.9748 | AL58: 24117.88011 | AM58: 233556.263 | AN58: 524385.118 | AO58: D-Al-2 | AP58: D-Al-2 | AQ58: A-D | AR58: 1-D | AS58: A | AT58: Co-8
A59: 56 | B59: 10500518 | C59: 61 | D59: Co | E59: 8 | F59: 0 | L59: N | N59: 13 | O59: 14 | P59: A | Q59: 9.9 | R59: D | S59: 3 | T59: 2 | U59: Al | V59: 2 | W59: Al | X59: 2 | Y59: Al | Z59: - | AA59: =IFERROR(VLOOKUP(B59,'TRAFOS MUESTRA'!$B$3:$D$2000,3,FALSE),"NA") -> 1 | AB59: 41580.39519 | AC59: 55228.29583 | AD59: 0 | AE59: =IF(AD59>0,'COSTO ELEMENTOS N1'!$B$74*Q59,0) -> 0 | AF59: 13860.13173 | AG59: 18409.43194 | AH59: 55440.52691 | AI59: 73637.72777 | AJ59: 129078.2547 | AK59: 266710.9748 | AL59: 24117.88011 | AM59: 233556.263 | AN59: 524385.118 | AO59: D-Al-2 | AP59: D-Al-2 | AQ59: A-D | AR59: 1-D | AS59: A | AT59: Co-8
A60: 57 | B60: 10500518 | C60: 62 | D60: Co | E60: 8 | F60: 0 | L60: N | N60: 14 | O60: 15 | P60: A | Q60: 10 | R60: D | S60: 3 | T60: 2 | U60: Al | V60: 2 | W60: Al | X60: 2 | Y60: Al | Z60: - | AA60: =IFERROR(VLOOKUP(B60,'TRAFOS MUESTRA'!$B$3:$D$2000,3,FALSE),"NA") -> 1 | AB60: 42000.39918 | AC60: 55786.1574 | AD60: 0 | AE60: =IF(AD60>0,'COSTO ELEMENTOS N1'!$B$74*Q60,0) -> 0 | AF60: 14000.13306 | AG60: 18595.3858 | AH60: 56000.53224 | AI60: 74381.5432 | AJ60: 130382.0754 | AK60: 266710.9748 | AL60: 24117.88011 | AM60: 233556.263 | AN60: 524385.118 | AO60: D-Al-2 | AP60: D-Al-2 | AQ60: A-D | AR60: 1-D | AS60: A | AT60: Co-8
A61: 58 | B61: 10500518 | C61: 63 | D61: Co | E61: 8 | F61: 0 | L61: N | N61: 14 | O61: 15 | P61: A | Q61: 10 | R61: D | S61: 3 | T61: 2 | U61: Al | V61: 2 | W61: Al | X61: 2 | Y61: Al | Z61: - | AA61: =IFERROR(VLOOKUP(B61,'TRAFOS MUESTRA'!$B$3:$D$2000,3,FALSE),"NA") -> 1 | AB61: 42000.39918 | AC61: 55786.1574 | AD61: 0 | AE61: =IF(AD61>0,'COSTO ELEMENTOS N1'!$B$74*Q61,0) -> 0 | AF61: 14000.13306 | AG61: 18595.3858 | AH61: 56000.53224 | AI61: 74381.5432 | AJ61: 130382.0754 | AK61: 266710.9748 | AL61: 24117.88011 | AM61: 233556.263 | AN61: 524385.118 | AO61: D-Al-2 | AP61: D-Al-2 | AQ61: A-D | AR61: 1-D | AS61: A | AT61: Co-8
A62: 59 | B62: 10500518 | C62: 64 | D62: Co | E62: 8 | F62: 0 | L62: N | N62: 14 | O62: 15 | P62: A | Q62: 10 | R62: D | S62: 3 | T62: 2 | U62: Al | V62: 2 | W62: Al | X62: 2 | Y62: Al | Z62: - | AA62: =IFERROR(VLOOKUP(B62,'TRAFOS MUESTRA'!$B$3:$D$2000,3,FALSE),"NA") -> 1 | AB62: 42000.39918 | AC62: 55786.1574 | AD62: 0 | AE62: =IF(AD62>0,'COSTO ELEMENTOS N1'!$B$74*Q62,0) -> 0 | AF62: 14000.13306 | AG62: 18595.3858 | AH62: 56000.53224 | AI62: 74381.5432 | AJ62: 130382.0754 | AK62: 266710.9748 | AL62: 24117.88011 | AM62: 233556.263 | AN62: 524385.118 | AO62: D-Al-2 | AP62: D-Al-2 | AQ62: A-D | AR62: 1-D | AS62: A | AT62: Co-8
A63: 60 | B63: 10500518 | C63: 65 | D63: Co | E63: 8 | F63: 0 | J63: S | K63: 70 | L63: N | N63: 5 | O63: 16 | P63: A | Q63: 38.7 | R63: A | S63: 2 | T63: 10 | U63: Cu | V63: 10 | W63: Cu | X63: 10 | Y63: Cu | Z63: - | AA63: =IFERROR(VLOOKUP(B63,'TRAFOS MUESTRA'!$B$3:$D$2000,3,FALSE),"NA") -> 1 | AB63: =IFERROR((VLOOKUP(AO63,COSTO_CONDUCTORES,5,FALSE))*Q63*S63,0) -> 106667.6537 | AC63: =IFERROR(VLOOKUP($AQ63,COSTO_INSTALACIÓN_CONDUCTOR,2,FALSE)*Q63*S63,0) -> 143928.2861 | AD63: =IFERROR(VLOOKUP(AT63,COSTO_CANALIZACION_SUBTERRANEO,2,FALSE),0)*Q63 -> 0 | AE63: =IF(AD63>0,'COSTO ELEMENTOS N1'!$B$74*Q63,0) -> 0 | AF63: =IFERROR(VLOOKUP(AP63,COSTO_CONDUCTORES,5,FALSE),0)*Q63 -> 53333.82684 | AG63: =IFERROR(VLOOKUP($AQ63,COSTO_INSTALACIÓN_CONDUCTOR,2,FALSE),0)*Q63 -> 71964.14305 | AH63: 160001.4805 | AI63: 215892.4291 | AJ63: 375893.9097 | AK63: =IFERROR(VLOOKUP($AT63,COSTO_APOYOS,5,FALSE),0) -> 266710.9748 | AL63: =IF(AS63="SD",0,IF(AS63="A",IFERROR(VLOOKUP(AR63,COSTO_INSTALACIÓN_APOYOS,2,FALSE),0),0))+IF(L63="S",PUESTA_TIERRA,0) -> 24117.88011 | AM63: =IF(AS63="SD",0,IF(AS63="S",IFERROR(VLOOKUP(G63,COSTO_INSTALACION_CAMARAS,2,FALSE),0),IF(AT63="N2",0,IFERROR(VLOOKUP(AR63,COSTO_INSTALACIÓN_APOYOS,3,FALSE),0)))) -> 233556.263 | AN63: 524385.118 | AO63: A-Cu-10 | AP63: A-Cu-10 | AQ63: A-A | AR63: 1-A | AS63: =IFERROR(VLOOKUP(D63&"-"&E63,COSTO_APOYOS,2,FALSE),IFERROR(VLOOKUP(G63&"-"&H63,COSTO_APOYOS,2,FALSE),"SD")) -> A | AT63: Co-8
A64: 61 | B64: 10500518 | C64: 66 | D64: Co | E64: 8 | F64: 0 | J64: S | K64: 70 | L64: N | N64: 5 | O64: 16 | P64: A | Q64: 38.7 | R64: A | S64: 2 | T64: 10 | U64: Cu | V64: 10 | W64: Cu | X64: 10 | Y64: Cu | Z64: - | AA64: =IFERROR(VLOOKUP(B64,'TRAFOS MUESTRA'!$B$3:$D$2000,3,FALSE),"NA") -> 1 | AB64: 106667.6537 | AC64: 143928.2861 | AD64: 0 | AE64: =IF(AD64>0,'COSTO ELEMENTOS N1'!$B$74*Q64,0) -> 0 | AF64: 53333.82684 | AG64: 71964.14305 | AH64: =AB64+AD64+AF64 -> 160001.4805 | AI64: =AC64+AE64+AG64 -> 215892.4291 | AJ64: =SUM(AH64:AI64) -> 375893.9097 | AK64: 266710.9748 | AL64: 24117.88011 | AM64: 233556.263 | AN64: =SUM(AK64:AM64) -> 524385.118 | AO64: =$R64&"-"&$U64&"-"&$T64 -> A-Cu-10 | AP64: =$R64&"-"&$W64&"-"&$V64 -> A-Cu-10 | AQ64: =P64&"-"&R64 -> A-A | AR64: =AA64&"-"&IF(R64="","D",R64) -> 1-A | AS64: A | AT64: =IF(AS64="S",G64&"-"&H64,IF(E64>10,"N2",D64&"-"&E64)) -> Co-8
A65: 62 | B65: 10500518 | C65: 67 | D65: Co | E65: 8 | F65: 0 | J65: S | K65: 70 | L65: N | N65: 5 | O65: 16 | P65: A | Q65: 38.7 | R65: A | S65: 1 | T65: 10 | U65: Cu | V65: 10 | W65: Cu | X65: 10 | Y65: Cu | Z65: - | AA65: =IFERROR(VLOOKUP(B65,'TRAFOS MUESTRA'!$B$3:$D$2000,3,FALSE),"NA") -> 1 | AB65: 53333.82684 | AC65: 71964.14305 | AD65: 0 | AE65: =IF(AD65>0,'COSTO ELEMENTOS N1'!$B$74*Q65,0) -> 0 | AF65: 53333.82684 | AG65: 71964.14305 | AH65: 106667.6537 | AI65: 143928.2861 | AJ65: 250595.9398 | AK65: 266710.9748 | AL65: 24117.88011 | AM65: 233556.263 | AN65: 524385.118 | AO65: A-Cu-10 | AP65: A-Cu-10 | AQ65: A-A | AR65: 1-A | AS65: A | AT65: Co-8
A66: 63 | B66: 10501108 | C66: 68 | D66: Co | E66: 12 | F66: 1 | L66: S | M66: 56680, 58773, 58774, 58775, 58776, 58777, 58778, 58779, 58780, 58781, 58782, 58783, 58784, 58785, 58786,60964, 60973, 60975, 60976, 60977, 60978, 60979, 60984, 60985 | N66: 0 | O66: 1 | Z66: - | AA66: =IFERROR(VLOOKUP(B66,'TRAFOS MUESTRA'!$B$3:$D$2000,3,FALSE),"NA") -> 1 | AB66: 0 | AC66: 0 | AD66: 0 | AE66: =IF(AD66>0,'COSTO ELEMENTOS N1'!$B$74*Q66,0) -> 0 | AF66: 0 | AG66: 0 | AH66: 0 | AI66: 0 | AJ66: 0 | AK66: 0 | AL66: 95211.40508 | AM66: 0 | AN66: 95211.40508 | AO66: -- | AP66: -- | AQ66: - | AR66: 1-D | AS66: A | AT66: N2
A67: 64 | B67: 10503202 | C67: 69 | D67: Co | E67: 12 | F67: 1 | L67: S | N67: 0 | O67: 1 | Z67: - | AA67: =IFERROR(VLOOKUP(B67,'TRAFOS MUESTRA'!$B$3:$D$2000,3,FALSE),"NA") -> NA | AB67: 0 | AC67: 0 | AD67: 0 | AE67: =IF(AD67>0,'COSTO ELEMENTOS N1'!$B$74*Q67,0) -> 0 | AF67: 0 | AG67: 0 | AH67: 0 | AI67: 0 | AJ67: 0 | AK67: 0 | AL67: 71093.52497 | AM67: 0 | AN67: 71093.52497 | AO67: -- | AP67: -- | AQ67: - | AR67: NA-D | AS67: A | AT67: N2
A68: 65 | B68: 10503202 | C68: 70 | D68: Co | E68: 8 | F68: 0 | L68: N | N68: 1 | O68: 2 | P68: A | Q68: 22.1 | R68: D | S68: 2 | T68: 2 | U68: Al | V68: 2 | W68: Al | Z68: - | AA68: =IFERROR(VLOOKUP(B68,'TRAFOS MUESTRA'!$B$3:$D$2000,3,FALSE),"NA") -> NA | AB68: 61880.58812 | AC68: 82191.60524 | AD68: 0 | AE68: =IF(AD68>0,'COSTO ELEMENTOS N1'!$B$74*Q68,0) -> 0 | AF68: 30940.29406 | AG68: 41095.80262 | AH68: 92820.88218 | AI68: 123287.4079 | AJ68: 216108.29 | AK68: 266710.9748 | AL68: 0 | AM68: 0 | AN68: 266710.9748 | AO68: D-Al-2 | AP68: D-Al-2 | AQ68: A-D | AR68: NA-D | AS68: A | AT68: Co-8
A69: 66 | B69: 10503202 | C69: 71 | D69: Co | E69: 8 | F69: 0 | L69: N | N69: 2 | O69: 3 | P69: A | Q69: 28.7 | R69: D | S69: 2 | T69: 2 | U69: Al | V69: 2 | W69: Al | Z69: - | AA69: =IFERROR(VLOOKUP(B69,'TRAFOS MUESTRA'!$B$3:$D$2000,3,FALSE),"NA") -> NA | AB69: 80360.76376 | AC69: 106737.5145 | AD69: 0 | AE69: =IF(AD69>0,'COSTO ELEMENTOS N1'!$B$74*Q69,0) -> 0 | AF69: 40180.38188 | AG69: 53368.75725 | AH69: 120541.1456 | AI69: 160106.2717 | AJ69: 280647.4174 | AK69: 266710.9748 | AL69: 0 | AM69: 0 | AN69: 266710.9748 | AO69: D-Al-2 | AP69: D-Al-2 | AQ69: A-D | AR69: NA-D | AS69: A | AT69: Co-8
A70: =A69+1 -> 67 | B70: 10503202 | C70: 72 | D70: Co | E70: 8 | F70: 0 | L70: N | M70: 34355, 59531 | N70: 3 | O70: 4 | P70: A | Q70: 28.5 | R70: D | S70: 2 | T70: 2 | U70: Al | V70: 2 | W70: Al | Z70: - | AA70: =IFERROR(VLOOKUP(B70,'TRAFOS MUESTRA'!$B$3:$D$2000,3,FALSE),"NA") -> NA | AB70: 79800.75844 | AC70: 105993.6991 | AD70: 0 | AE70: =IF(AD70>0,'COSTO ELEMENTOS N1'!$B$74*Q70,0) -> 0 | AF70: 39900.37922 | AG70: 52996.84953 | AH70: 119701.1377 | AI70: 158990.5486 | AJ70: 278691.6862 | AK70: 266710.9748 | AL70: 0 | AM70: 0 | AN70: 266710.9748 | AO70: D-Al-2 | AP70: D-Al-2 | AQ70: A-D | AR70: NA-D | AS70: A | AT70: Co-8
A71: 68 | B71: 10503203 | C71: 73 | D71: Co | E71: 12 | F71: 1 | L71: S | M71: 24363 | N71: 0 | O71: 1 | P71: A | Q71: 38.5 | R71: D | S71: 2 | T71: 2 | U71: Al | V71: 2 | W71: Al | Z71: - | AA71: =IFERROR(VLOOKUP(B71,'TRAFOS MUESTRA'!$B$3:$D$2000,3,FALSE),"NA") -> NA | AB71: 107801.0246 | AC71: 143184.4707 | AD71: 0 | AE71: =IF(AD71>0,'COSTO ELEMENTOS N1'!$B$74*Q71,0) -> 0 | AF71: 53900.51228 | AG71: 71592.23533 | AH71: 161701.5368 | AI71: 214776.706 | AJ71: 376478.2428 | AK71: 0 | AL71: 71093.52497 | AM71: 0 | AN71: 71093.52497 | AO71: D-Al-2 | AP71: D-Al-2 | AQ71: A-D | AR71: NA-D | AS71: A | AT71: N2
A72: 69 | B72: 10506901 | C72: 74 | D72: Co | E72: 12 | F72: 1 | L72: S | M72: 57593 | N72: 0 | O72: 1 | P72: A | Q72: 38.5 | R72: D | S72: 2 | T72: 2 | U72: Al | V72: 2 | W72: Al | Z72: - | AA72: =IFERROR(VLOOKUP(B72,'TRAFOS MUESTRA'!$B$3:$D$2000,3,FALSE),"NA") -> NA | AB72: 107801.0246 | AC72: 143184.4707 | AD72: 0 | AE72: =IF(AD72>0,'COSTO ELEMENTOS N1'!$B$74*Q72,0) -> 0 | AF72: 53900.51228 | AG72: 71592.23533 | AH72: 161701.5368 | AI72: 214776.706 | AJ72: 376478.2428 | AK72: 0 | AL72: 71093.52497 | AM72: 0 | AN72: 71093.52497 | AO72: D-Al-2 | AP72: D-Al-2 | AQ72: A-D | AR72: NA-D | AS72: A | AT72: N2
A73: 70 | B73: 20100101 | C73: 75 | D73: Co | E73: 12 | F73: 1 | L73: S | M73: 10639 | N73: 0 | O73: 1 | P73: A | Q73: 38.5 | R73: D | S73: 2 | T73: 2 | U73: Al | V73: 2 | W73: Al | Z73: - | AA73: =IFERROR(VLOOKUP(B73,'TRAFOS MUESTRA'!$B$3:$D$2000,3,FALSE),"NA") -> 3 | AB73: 107801.0246 | AC73: 143184.4707 | AD73: 0 | AE73: =IF(AD73>0,'COSTO ELEMENTOS N1'!$B$74*Q73,0) -> 0 | AF73: 53900.51228 | AG73: 71592.23533 | AH73: 161701.5368 | AI73: 214776.706 | AJ73: 376478.2428 | AK73: 0 | AL73: 95211.40508 | AM73: 0 | AN73: 95211.40508 | AO73: D-Al-2 | AP73: D-Al-2 | AQ73: A-D | AR73: 3-D | AS73: A | AT73: N2
A74: 71 | B74: 20101201 | C74: 76 | D74: Co | E74: 12 | F74: 1 | L74: S | N74: 0 | O74: 1 | P74: A | Q74: 38.5 | R74: D | S74: 2 | T74: 2 | U74: Al | V74: 2 | W74: Al | Z74: - | AA74: =IFERROR(VLOOKUP(B74,'TRAFOS MUESTRA'!$B$3:$D$2000,3,FALSE),"NA") -> 4 | AB74: 107801.0246 | AC74: 143184.4707 | AD74: 0 | AE74: =IF(AD74>0,'COSTO ELEMENTOS N1'!$B$74*Q74,0) -> 0 | AF74: 53900.51228 | AG74: 71592.23533 | AH74: 161701.5368 | AI74: 214776.706 | AJ74: 376478.2428 | AK74: 0 | AL74: 95211.40508 | AM74: 0 | AN74: 95211.40508 | AO74: D-Al-2 | AP74: D-Al-2 | AQ74: A-D | AR74: 4-D | AS74: A | AT74: N2
A75: 72 | B75: 20101201 | C75: 77 | D75: Co | E75: 12 | F75: 1 | L75: S | N75: 0 | O75: 1 | P75: A | Q75: 38.5 | R75: D | S75: 2 | T75: 2 | U75: Al | V75: 2 | W75: Al | Z75: - | AA75: =IFERROR(VLOOKUP(B75,'TRAFOS MUESTRA'!$B$3:$D$2000,3,FALSE),"NA") -> 4 | AB75: 107801.0246 | AC75: 143184.4707 | AD75: 0 | AE75: =IF(AD75>0,'COSTO ELEMENTOS N1'!$B$74*Q75,0) -> 0 | AF75: 53900.51228 | AG75: 71592.23533 | AH75: 161701.5368 | AI75: 214776.706 | AJ75: 376478.2428 | AK75: 0 | AL75: 95211.40508 | AM75: 0 | AN75: 95211.40508 | AO75: D-Al-2 | AP75: D-Al-2 | AQ75: A-D | AR75: 4-D | AS75: A | AT75: N2
A76: 73 | B76: 20101201 | C76: 78 | D76: Co | E76: 12 | F76: 1 | L76: S | N76: 0 | O76: 1 | P76: A | Q76: 38.5 | R76: D | S76: 2 | T76: 2 | U76: Al | V76: 2 | W76: Al | Z76: - | AA76: =IFERROR(VLOOKUP(B76,'TRAFOS MUESTRA'!$B$3:$D$2000,3,FALSE),"NA") -> 4 | AB76: 107801.0246 | AC76: 143184.4707 | AD76: 0 | AE76: =IF(AD76>0,'COSTO ELEMENTOS N1'!$B$74*Q76,0) -> 0 | AF76: 53900.51228 | AG76: 71592.23533 | AH76: 161701.5368 | AI76: 214776.706 | AJ76: 376478.2428 | AK76: 0 | AL76: 95211.40508 | AM76: 0 | AN76: 95211.40508 | AO76: D-Al-2 | AP76: D-Al-2 | AQ76: A-D | AR76: 4-D | AS76: A | AT76: N2
A77: 74 | B77: 20200508 | C77: 79 | D77: Co | E77: 12 | F77: 1 | L77: S | M77: 11814/11815/11816 | N77: 0 | O77: 1 | P77: A | Q77: 38.5 | R77: D | S77: 2 | T77: 2 | U77: Al | V77: 2 | W77: Al | Z77: Limitacion orden publico | AA77: =IFERROR(VLOOKUP(B77,'TRAFOS MUESTRA'!$B$3:$D$2000,3,FALSE),"NA") -> 4 | AB77: 107801.0246 | AC77: 143184.4707 | AD77: 0 | AE77: =IF(AD77>0,'COSTO ELEMENTOS N1'!$B$74*Q77,0) -> 0 | AF77: 53900.51228 | AG77: 71592.23533 | AH77: 161701.5368 | AI77: 214776.706 | AJ77: 376478.2428 | AK77: 0 | AL77: 95211.40508 | AM77: 0 | AN77: 95211.40508 | AO77: D-Al-2 | AP77: D-Al-2 | AQ77: A-D | AR77: 4-D | AS77: A | AT77: N2
A78: 75 | B78: 20204908 | C78: 80 | D78: Co | E78: 12 | F78: 1 | L78: S | M78: 24055 | N78: 0 | O78: 1 | P78: A | Q78: 38.5 | R78: D | S78: 2 | T78: 2 | U78: Al | V78: 2 | W78: Al | Z78: - | AA78: =IFERROR(VLOOKUP(B78,'TRAFOS MUESTRA'!$B$3:$D$2000,3,FALSE),"NA") -> NA | AB78: 107801.0246 | AC78: 143184.4707 | AD78: 0 | AE78: =IF(AD78>0,'COSTO ELEMENTOS N1'!$B$74*Q78,0) -> 0 | AF78: 53900.51228 | AG78: 71592.23533 | AH78: 161701.5368 | AI78: 214776.706 | AJ78: 376478.2428 | AK78: 0 | AL78: 71093.52497 | AM78: 0 | AN78: 71093.52497 | AO78: D-Al-2 | AP78: D-Al-2 | AQ78: A-D | AR78: NA-D | AS78: A | AT78: N2
A79: 76 | B79: 20204913 | C79: 81 | D79: Co | E79: 12 | F79: 1 | L79: S | M79: 12475, 12477 | N79: 0 | O79: 1 | P79: A | Q79: 38.5 | R79: D | S79: 2 | T79: 2 | U79: Al | V79: 2 | W79: Al | Z79: - | AA79: =IFERROR(VLOOKUP(B79,'TRAFOS MUESTRA'!$B$3:$D$2000,3,FALSE),"NA") -> NA | AB79: 107801.0246 | AC79: 143184.4707 | AD79: 0 | AE79: =IF(AD79>0,'COSTO ELEMENTOS N1'!$B$74*Q79,0) -> 0 | AF79: 53900.51228 | AG79: 71592.23533 | AH79: 161701.5368 | AI79: 214776.706 | AJ79: 376478.2428 | AK79: 0 | AL79: 71093.52497 | AM79: 0 | AN79: 71093.52497 | AO79: D-Al-2 | AP79: D-Al-2 | AQ79: A-D | AR79: NA-D | AS79: A | AT79: N2
A80: 77 | B80: 20205902 | C80: 82 | D80: Co | E80: 12 | F80: 1 | L80: S | M80: 12178/12171/12180/12181 | N80: 0 | O80: 1 | P80: A | Q80: 38.5 | R80: D | S80: 2 | T80: 2 | U80: Al | V80: 2 | W80: Al | Z80: Limitacion orden publico | AA80: =IFERROR(VLOOKUP(B80,'TRAFOS MUESTRA'!$B$3:$D$2000,3,FALSE),"NA") -> 4 | AB80: 107801.0246 | AC80: 143184.4707 | AD80: 0 | AE80: =IF(AD80>0,'COSTO ELEMENTOS N1'!$B$74*Q80,0) -> 0 | AF80: 53900.51228 | AG80: 71592.23533 | AH80: 161701.5368 | AI80: 214776.706 | AJ80: 376478.2428 | AK80: 0 | AL80: 95211.40508 | AM80: 0 | AN80: 95211.40508 | AO80: D-Al-2 | AP80: D-Al-2 | AQ80: A-D | AR80: 4-D | AS80: A | AT80: N2
A81: 78 | B81: 20211205 | C81: 83 | D81: Co | E81: 12 | F81: 1 | L81: S | N81: 0 | O81: 1 | P81: A | Q81: 38.5 | R81: D | S81: 2 | T81: 2 | U81: Al | V81: 2 | W81: Al | Z81: - | AA81: =IFERROR(VLOOKUP(B81,'TRAFOS MUESTRA'!$B$3:$D$2000,3,FALSE),"NA") -> NA | AB81: 107801.0246 | AC81: 143184.4707 | AD81: 0 | AE81: =IF(AD81>0,'COSTO ELEMENTOS N1'!$B$74*Q81,0) -> 0 | AF81: 53900.51228 | AG81: 71592.23533 | AH81: 161701.5368 | AI81: 214776.706 | AJ81: 376478.2428 | AK81: 0 | AL81: 71093.52497 | AM81: 0 | AN81: 71093.52497 | AO81: D-Al-2 | AP81: D-Al-2 | AQ81: A-D | AR81: NA-D | AS81: A | AT81: N2
A82: 79 | B82: 20211205 | C82: 84 | D82: Co | E82: 8 | F82: 0 | L82: N | M82: 48980, 48954 | N82: 1 | O82: 2 | P82: A | Q82: 38.5 | R82: D | S82: 2 | T82: 2 | U82: Al | V82: 2 | W82: Al | Z82: - | AA82: =IFERROR(VLOOKUP(B82,'TRAFOS MUESTRA'!$B$3:$D$2000,3,FALSE),"NA") -> NA | AB82: 107801.0246 | AC82: 143184.4707 | AD82: 0 | AE82: =IF(AD82>0,'COSTO ELEMENTOS N1'!$B$74*Q82,0) -> 0 | AF82: 53900.51228 | AG82: 71592.23533 | AH82: 161701.5368 | AI82: 214776.706 | AJ82: 376478.2428 | AK82: 266710.9748 | AL82: 0 | AM82: 0 | AN82: 266710.9748 | AO82: D-Al-2 | AP82: D-Al-2 | AQ82: A-D | AR82: NA-D | AS82: A | AT82: Co-8
A83: 80 | B83: 20211205 | C83: 85 | D83: Co | E83: 8 | F83: 0 | L83: N | M83: 48976, 48981 | N83: 2 | O83: 3 | P83: A | Q83: 37.5 | R83: D | S83: 2 | T83: 2 | U83: Al | V83: 2 | W83: Al | Z83: - | AA83: =IFERROR(VLOOKUP(B83,'TRAFOS MUESTRA'!$B$3:$D$2000,3,FALSE),"NA") -> NA | AB83: 105000.9979 | AC83: 139465.3935 | AD83: 0 | AE83: =IF(AD83>0,'COSTO ELEMENTOS N1'!$B$74*Q83,0) -> 0 | AF83: 52500.49897 | AG83: 69732.69675 | AH83: 157501.4969 | AI83: 209198.0903 | AJ83: 366699.5872 | AK83: 266710.9748 | AL83: 0 | AM83: 0 | AN83: 266710.9748 | AO83: D-Al-2 | AP83: D-Al-2 | AQ83: A-D | AR83: NA-D | AS83: A | AT83: Co-8
A84: 81 | B84: 20211205 | C84: 86 | D84: Co | E84: 8 | F84: 0 | L84: N | N84: 3 | O84: 4 | P84: A | Q84: 37.9 | R84: D | S84: 2 | T84: 2 | U84: Al | V84: 2 | W84: Al | Z84: - | AA84: =IFERROR(VLOOKUP(B84,'TRAFOS MUESTRA'!$B$3:$D$2000,3,FALSE),"NA") -> NA | AB84: 106121.0086 | AC84: 140953.0244 | AD84: 0 | AE84: =IF(AD84>0,'COSTO ELEMENTOS N1'!$B$74*Q84,0) -> 0 | AF84: 53060.50429 | AG84: 70476.51218 | AH84: 159181.5129 | AI84: 211429.5365 | AJ84: 370611.0494 | AK84: 266710.9748 | AL84: 0 | AM84: 0 | AN84: 266710.9748 | AO84: D-Al-2 | AP84: D-Al-2 | AQ84: A-D | AR84: NA-D | AS84: A | AT84: Co-8
A85: 82 | B85: 20211205 | C85: 87 | D85: Co | E85: 8 | F85: 0 | L85: N | N85: 4 | O85: 5 | P85: A | Q85: 36.6 | R85: D | S85: 2 | T85: 2 | U85: Al | V85: 2 | W85: Al | Z85: - | AA85: =IFERROR(VLOOKUP(B85,'TRAFOS MUESTRA'!$B$3:$D$2000,3,FALSE),"NA") -> NA | AB85: 102480.974 | AC85: 136118.2241 | AD85: 0 | AE85: =IF(AD85>0,'COSTO ELEMENTOS N1'!$B$74*Q85,0) -> 0 | AF85: 51240.487 | AG85: 68059.11203 | AH85: 153721.461 | AI85: 204177.3361 | AJ85: 357898.7971 | AK85: 266710.9748 | AL85: 0 | AM85: 0 | AN85: 266710.9748 | AO85: D-Al-2 | AP85: D-Al-2 | AQ85: A-D | AR85: NA-D | AS85: A | AT85: Co-8
A86: 83 | B86: 20211205 | C86: 88 | D86: Co | E86: 8 | F86: 0 | L86: N | N86: 5 | O86: 6 | P86: A | Q86: 37 | R86: D | S86: 2 | T86: 2 | U86: Al | V86: 2 | W86: Al | Z86: - | AA86: =IFERROR(VLOOKUP(B86,'TRAFOS MUESTRA'!$B$3:$D$2000,3,FALSE),"NA") -> NA | AB86: 103600.9846 | AC86: 137605.8549 | AD86: 0 | AE86: =IF(AD86>0,'COSTO ELEMENTOS N1'!$B$74*Q86,0) -> 0 | AF86: 51800.49232 | AG86: 68802.92746 | AH86: 155401.477 | AI86: 206408.7824 | AJ86: 361810.2593 | AK86: 266710.9748 | AL86: 0 | AM86: 0 | AN86: 266710.9748 | AO86: D-Al-2 | AP86: D-Al-2 | AQ86: A-D | AR86: NA-D | AS86: A | AT86: Co-8
A87: 84 | B87: 20211205 | C87: 89 | D87: Co | E87: 8 | F87: 0 | L87: N | N87: 6 | O87: 7 | P87: A | Q87: 61.6 | R87: D | S87: 2 | T87: 2 | U87: Al | V87: 2 | W87: Al | Z87: - | AA87: =IFERROR(VLOOKUP(B87,'TRAFOS MUESTRA'!$B$3:$D$2000,3,FALSE),"NA") -> NA | AB87: 172481.6393 | AC87: 229095.1531 | AD87: 0 | AE87: =IF(AD87>0,'COSTO ELEMENTOS N1'!$B$74*Q87,0) -> 0 | AF87: 86240.81965 | AG87: 114547.5765 | AH87: 258722.4589 | AI87: 343642.7296 | AJ87: 602365.1885 | AK87: 266710.9748 | AL87: 0 | AM87: 0 | AN87: 266710.9748 | AO87: D-Al-2 | AP87: D-Al-2 | AQ87: A-D | AR87: NA-D | AS87: A | AT87: Co-8
A88: 85 | B88: 20211205 | C88: 90 | D88: Co | E88: 8 | F88: 0 | L88: N | N88: 7 | O88: 8 | P88: A | Q88: 60.5 | R88: D | S88: 2 | T88: 2 | U88: Al | V88: 2 | W88: Al | Z88: - | AA88: =IFERROR(VLOOKUP(B88,'TRAFOS MUESTRA'!$B$3:$D$2000,3,FALSE),"NA") -> NA | AB88: 169401.61 | AC88: 225004.1682 | AD88: 0 | AE88: =IF(AD88>0,'COSTO ELEMENTOS N1'!$B$74*Q88,0) -> 0 | AF88: 84700.80501 | AG88: 112502.0841 | AH88: 254102.415 | AI88: 337506.2523 | AJ88: 591608.6673 | AK88: 266710.9748 | AL88: 0 | AM88: 0 | AN88: 266710.9748 | AO88: D-Al-2 | AP88: D-Al-2 | AQ88: A-D | AR88: NA-D | AS88: A | AT88: Co-8
A89: 86 | B89: 20211205 | C89: 91 | D89: Co | E89: 8 | F89: 0 | L89: N | M89: 48837 | N89: 8 | O89: 9 | P89: A | Q89: 61.1 | R89: D | S89: 2 | T89: 2 | U89: Al | V89: 2 | W89: Al | Z89: - | AA89: =IFERROR(VLOOKUP(B89,'TRAFOS MUESTRA'!$B$3:$D$2000,3,FALSE),"NA") -> NA | AB89: 171081.626 | AC89: 227235.6145 | AD89: 0 | AE89: =IF(AD89>0,'COSTO ELEMENTOS N1'!$B$74*Q89,0) -> 0 | AF89: 85540.81299 | AG89: 113617.8072 | AH89: 256622.439 | AI89: 340853.4217 | AJ89: 597475.8607 | AK89: 266710.9748 | AL89: 0 | AM89: 0 | AN89: 266710.9748 | AO89: D-Al-2 | AP89: D-Al-2 | AQ89: A-D | AR89: NA-D | AS89: A | AT89: Co-8
A90: 87 | B90: 20211205 | C90: 92 | D90: Co | E90: 8 | F90: 0 | L90: N | N90: 9 | O90: 10 | P90: A | Q90: 45.3 | R90: D | S90: 2 | T90: 2 | U90: Al | V90: 2 | W90: Al | Z90: - | AA90: =IFERROR(VLOOKUP(B90,'TRAFOS MUESTRA'!$B$3:$D$2000,3,FALSE),"NA") -> NA | AB90: 126841.2055 | AC90: 168474.1953 | AD90: 0 | AE90: =IF(AD90>0,'COSTO ELEMENTOS N1'!$B$74*Q90,0) -> 0 | AF90: 63420.60276 | AG90: 84237.09767 | AH90: 190261.8083 | AI90: 252711.293 | AJ90: 442973.1013 | AK90: 266710.9748 | AL90: 0 | AM90: 0 | AN90: 266710.9748 | AO90: D-Al-2 | AP90: D-Al-2 | AQ90: A-D | AR90: NA-D | AS90: A | AT90: Co-8
A91: 88 | B91: 20211205 | C91: 93 | D91: Co | E91: 8 | F91: 0 | L91: N | N91: 10 | O91: 11 | P91: A | Q91: 37.9 | R91: D | S91: 1 | T91: 2 | U91: Al | V91: 2 | W91: Al | Z91: - | AA91: =IFERROR(VLOOKUP(B91,'TRAFOS MUESTRA'!$B$3:$D$2000,3,FALSE),"NA") -> NA | AB91: 53060.50429 | AC91: 70476.51218 | AD91: 0 | AE91: =IF(AD91>0,'COSTO ELEMENTOS N1'!$B$74*Q91,0) -> 0 | AF91: 53060.50429 | AG91: 70476.51218 | AH91: 106121.0086 | AI91: 140953.0244 | AJ91: 247074.033 | AK91: 266710.9748 | AL91: 0 | AM91: 0 | AN91: 266710.9748 | AO91: D-Al-2 | AP91: D-Al-2 | AQ91: A-D | AR91: NA-D | AS91: A | AT91: Co-8
A92: 89 | B92: 20211205 | C92: 94 | D92: Co | E92: 8 | F92: 0 | L92: N | N92: 11 | O92: 12 | P92: A | Q92: 35.9 | R92: D | S92: 1 | T92: 2 | U92: Al | V92: 2 | W92: Al | Z92: - | AA92: =IFERROR(VLOOKUP(B92,'TRAFOS MUESTRA'!$B$3:$D$2000,3,FALSE),"NA") -> NA | AB92: 50260.47768 | AC92: 66757.43502 | AD92: 0 | AE92: =IF(AD92>0,'COSTO ELEMENTOS N1'!$B$74*Q92,0) -> 0 | AF92: 50260.47768 | AG92: 66757.43502 | AH92: 100520.9554 | AI92: 133514.87 | AJ92: 234035.8254 | AK92: 266710.9748 | AL92: 0 | AM92: 0 | AN92: 266710.9748 | AO92: D-Al-2 | AP92: D-Al-2 | AQ92: A-D | AR92: NA-D | AS92: A | AT92: Co-8
A93: 90 | B93: 20211205 | C93: 95 | D93: Co | E93: 8 | F93: 0 | L93: N | M93: 48975, 48835 | N93: 2 | O93: 13 | P93: A | Q93: 42.9 | R93: D | S93: 2 | T93: 2 | U93: Al | V93: 2 | W93: Al | Z93: - | AA93: =IFERROR(VLOOKUP(B93,'TRAFOS MUESTRA'!$B$3:$D$2000,3,FALSE),"NA") -> NA | AB93: 120121.1416 | AC93: 159548.4102 | AD93: 0 | AE93: =IF(AD93>0,'COSTO ELEMENTOS N1'!$B$74*Q93,0) -> 0 | AF93: 60060.57082 | AG93: 79774.20508 | AH93: 180181.7125 | AI93: 239322.6152 | AJ93: 419504.3277 | AK93: 266710.9748 | AL93: 0 | AM93: 0 | AN93: 266710.9748 | AO93: D-Al-2 | AP93: D-Al-2 | AQ93: A-D | AR93: NA-D | AS93: A | AT93: Co-8
A94: 91 | B94: 20211205 | C94: 96 | D94: Co | E94: 8 | F94: 0 | L94: N | M94: 48834, 48985 | N94: 13 | O94: 14 | P94: A | Q94: 44.5 | R94: D | S94: 2 | T94: 2 | U94: Al | V94: 2 | W94: Al | Z94: - | AA94: =IFERROR(VLOOKUP(B94,'TRAFOS MUESTRA'!$B$3:$D$2000,3,FALSE),"NA") -> NA | AB94: 124601.1842 | AC94: 165498.9336 | AD94: 0 | AE94: =IF(AD94>0,'COSTO ELEMENTOS N1'!$B$74*Q94,0) -> 0 | AF94: 62300.59211 | AG94: 82749.46681 | AH94: 186901.7763 | AI94: 248248.4004 | AJ94: 435150.1768 | AK94: 266710.9748 | AL94: 0 | AM94: 0 | AN94: 266710.9748 | AO94: D-Al-2 | AP94: D-Al-2 | AQ94: A-D | AR94: NA-D | AS94: A | AT94: Co-8
A95: 92 | B95: 20211205 | C95: 97 | D95: Co | E95: 8 | F95: 0 | L95: N | M95: 49473 | N95: 14 | O95: 15 | P95: A | Q95: 41.9 | R95: D | S95: 2 | T95: 2 | U95: Al | V95: 2 | W95: Al | Z95: - | AA95: =IFERROR(VLOOKUP(B95,'TRAFOS MUESTRA'!$B$3:$D$2000,3,FALSE),"NA") -> NA | AB95: 117321.115 | AC95: 155829.333 | AD95: 0 | AE95: =IF(AD95>0,'COSTO ELEMENTOS N1'!$B$74*Q95,0) -> 0 | AF95: 58660.55752 | AG95: 77914.6665 | AH95: 175981.6726 | AI95: 233743.9995 | AJ95: 409725.6721 | AK95: 266710.9748 | AL95: 0 | AM95: 0 | AN95: 266710.9748 | AO95: D-Al-2 | AP95: D-Al-2 | AQ95: A-D | AR95: NA-D | AS95: A | AT95: Co-8
A96: 93 | B96: 20211205 | C96: 98 | D96: Co | E96: 8 | F96: 0 | L96: N | M96: 48984 | N96: 2 | O96: 16 | P96: A | Q96: 47.8 | R96: D | S96: 2 | T96: 2 | U96: Al | V96: 2 | W96: Al | Z96: - | AA96: =IFERROR(VLOOKUP(B96,'TRAFOS MUESTRA'!$B$3:$D$2000,3,FALSE),"NA") -> NA | AB96: 133841.272 | AC96: 177771.8882 | AD96: 0 | AE96: =IF(AD96>0,'COSTO ELEMENTOS N1'!$B$74*Q96,0) -> 0 | AF96: 66920.63602 | AG96: 88885.94412 | AH96: 200761.9081 | AI96: 266657.8324 | AJ96: 467419.7404 | AK96: 266710.9748 | AL96: 0 | AM96: 0 | AN96: 266710.9748 | AO96: D-Al-2 | AP96: D-Al-2 | AQ96: A-D | AR96: NA-D | AS96: A | AT96: Co-8
A97: 94 | B97: 20211205 | C97: 99 | D97: Co | E97: 8 | F97: 0 | L97: N | N97: 16 | O97: 17 | P97: A | Q97: 47.1 | R97: D | S97: 2 | T97: 2 | U97: Al | V97: 2 | W97: Al | Z97: - | AA97: =IFERROR(VLOOKUP(B97,'TRAFOS MUESTRA'!$B$3:$D$2000,3,FALSE),"NA") -> NA | AB97: 131881.2534 | AC97: 175168.5342 | AD97: 0 | AE97: =IF(AD97>0,'COSTO ELEMENTOS N1'!$B$74*Q97,0) -> 0 | AF97: 65940.62671 | AG97: 87584.26712 | AH97: 197821.8801 | AI97: 262752.8014 | AJ97: 460574.6815 | AK97: 266710.9748 | AL97: 0 | AM97: 0 | AN97: 266710.9748 | AO97: D-Al-2 | AP97: D-Al-2 | AQ97: A-D | AR97: NA-D | AS97: A | AT97: Co-8
A98: 95 | B98: 20300701 | C98: 100 | D98: Co | E98: 12 | F98: 1 | L98: S | M98: 11588/11593 | N98: 0 | O98: 1 | Z98: Limitacion orden publico | AA98: =IFERROR(VLOOKUP(B98,'TRAFOS MUESTRA'!$B$3:$D$2000,3,FALSE),"NA") -> 4 | AB98: 0 | AC98: 0 | AD98: 0 | AE98: =IF(AD98>0,'COSTO ELEMENTOS N1'!$B$74*Q98,0) -> 0 | AF98: 0 | AG98: 0 | AH98: 0 | AI98: 0 | AJ98: 0 | AK98: 0 | AL98: 95211.40508 | AM98: 0 | AN98: 95211.40508 | AO98: -- | AP98: -- | AQ98: - | AR98: 4-D | AS98: A | AT98: N2
A99: 96 | B99: 20301202 | C99: 101 | D99: Co | E99: 12 | F99: 1 | L99: S | M99: 35160 | N99: 0 | O99: 1 | P99: A | R99: D | Z99: - | AA99: =IFERROR(VLOOKUP(B99,'TRAFOS MUESTRA'!$B$3:$D$2000,3,FALSE),"NA") -> NA | AB99: 0 | AC99: 0 | AD99: 0 | AE99: =IF(AD99>0,'COSTO ELEMENTOS N1'!$B$74*Q99,0) -> 0 | AF99: 0 | AG99: 0 | AH99: 0 | AI99: 0 | AJ99: 0 | AK99: 0 | AL99: 71093.52497 | AM99: 0 | AN99: 71093.52497 | AO99: D-- | AP99: D-- | AQ99: A-D | AR99: NA-D | AS99: A | AT99: N2
A100: 97 | B100: 20301202 | C100: 102 | D100: Co | E100: 8 | F100: 0 | L100: N | N100: 1 | O100: 2 | P100: A | Q100: 48.1 | R100: D | S100: 2 | T100: 1/0 | U100: Al | V100: 1/0 | W100: Al | Z100: - | AA100: =IFERROR(VLOOKUP(B100,'TRAFOS MUESTRA'!$B$3:$D$2000,3,FALSE),"NA") -> NA | AB100: 198330.0395 | AC100: 178887.6114 | AD100: 0 | AE100: =IF(AD100>0,'COSTO ELEMENTOS N1'!$B$74*Q100,0) -> 0 | AF100: 99165.01973 | AG100: 89443.8057 | AH100: 297495.0592 | AI100: 268331.4171 | AJ100: 565826.4763 | AK100: 266710.9748 | AL100: 0 | AM100: 0 | AN100: 266710.9748 | AO100: D-Al-1/0 | AP100: D-Al-1/0 | AQ100: A-D | AR100: NA-D | AS100: A | AT100: Co-8
A101: 98 | B101: 20301202 | C101: 103 | D101: Co | E101: 12 | F101: 1 | L101: N | N101: 2 | O101: 3 | P101: A | Q101: 54.6 | R101: D | S101: 2 | T101: 1/0 | U101: Al | V101: 1/0 | W101: Al | Z101: - | AA101: =IFERROR(VLOOKUP(B101,'TRAFOS MUESTRA'!$B$3:$D$2000,3,FALSE),"NA") -> NA | AB101: 225131.3961 | AC101: 203061.6129 | AD101: 0 | AE101: =IF(AD101>0,'COSTO ELEMENTOS N1'!$B$74*Q101,0) -> 0 | AF101: 112565.6981 | AG101: 101530.8065 | AH101: 337697.0942 | AI101: 304592.4194 | AJ101: 642289.5136 | AK101: 0 | AL101: 0 | AM101: 0 | AN101: 0 | AO101: D-Al-1/0 | AP101: D-Al-1/0 | AQ101: A-D | AR101: NA-D | AS101: A | AT101: N2
A102: 99 | B102: 20301202 | C102: 104 | D102: Co | E102: 8 | F102: 0 | L102: N | N102: 3 | O102: 4 | P102: A | Q102: 49 | R102: D | S102: 2 | T102: 1/0 | U102: Al | V102: 1/0 | W102: Al | Z102: - | AA102: =IFERROR(VLOOKUP(B102,'TRAFOS MUESTRA'!$B$3:$D$2000,3,FALSE),"NA") -> NA | AB102: 202040.9965 | AC102: 182234.7808 | AD102: 0 | AE102: =IF(AD102>0,'COSTO ELEMENTOS N1'!$B$74*Q102,0) -> 0 | AF102: 101020.4983 | AG102: 91117.39042 | AH102: 303061.4948 | AI102: 273352.1713 | AJ102: 576413.6661 | AK102: 266710.9748 | AL102: 0 | AM102: 0 | AN102: 266710.9748 | AO102: D-Al-1/0 | AP102: D-Al-1/0 | AQ102: A-D | AR102: NA-D | AS102: A | AT102: Co-8
A103: 100 | B103: 20301202 | C103: 105 | D103: Co | E103: 12 | F103: 1 | L103: N | N103: 4 | O103: 5 | P103: A | Q103: 50 | R103: D | S103: 2 | T103: 1/0 | U103: Al | V103: 1/0 | W103: Al | Z103: - | AA103: =IFERROR(VLOOKUP(B103,'TRAFOS MUESTRA'!$B$3:$D$2000,3,FALSE),"NA") -> NA | AB103: 206164.2822 | AC103: 185953.858 | AD103: 0 | AE103: =IF(AD103>0,'COSTO ELEMENTOS N1'!$B$74*Q103,0) -> 0 | AF103: 103082.1411 | AG103: 92976.929 | AH103: 309246.4233 | AI103: 278930.787 | AJ103: 588177.2103 | AK103: 0 | AL103: 0 | AM103: 0 | AN103: 0 | AO103: D-Al-1/0 | AP103: D-Al-1/0 | AQ103: A-D | AR103: NA-D | AS103: A | AT103: N2
A104: 101 | B104: 20301202 | C104: 106 | D104: Co | E104: 8 | F104: 0 | L104: N | M104: 31161 | N104: 5 | O104: 6 | P104: A | Q104: 69.5 | R104: D | S104: 2 | T104: 1/0 | U104: Al | V104: 1/0 | W104: Al | Z104: - | AA104: =IFERROR(VLOOKUP(B104,'TRAFOS MUESTRA'!$B$3:$D$2000,3,FALSE),"NA") -> NA | AB104: 286568.3522 | AC104: 258475.8626 | AD104: 0 | AE104: =IF(AD104>0,'COSTO ELEMENTOS N1'!$B$74*Q104,0) -> 0 | AF104: 143284.1761 | AG104: 129237.9313 | AH104: 429852.5283 | AI104: 387713.7939 | AJ104: 817566.3223 | AK104: 266710.9748 | AL104: 0 | AM104: 0 | AN104: 266710.9748 | AO104: D-Al-1/0 | AP104: D-Al-1/0 | AQ104: A-D | AR104: NA-D | AS104: A | AT104: Co-8
A105: 102 | B105: 20301202 | C105: 107 | D105: Co | E105: 8 | F105: 0 | L105: N | M105: SD39154 | N105: 5 | O105: 7 | P105: A | Q105: 53.8 | R105: D | S105: 2 | T105: 1/0 | U105: Al | V105: 1/0 | W105: Al | Z105: - | AA105: =IFERROR(VLOOKUP(B105,'TRAFOS MUESTRA'!$B$3:$D$2000,3,FALSE),"NA") -> NA | AB105: 221832.7676 | AC105: 200086.3512 | AD105: 0 | AE105: =IF(AD105>0,'COSTO ELEMENTOS N1'!$B$74*Q105,0) -> 0 | AF105: 110916.3838 | AG105: 100043.1756 | AH105: 332749.1514 | AI105: 300129.5268 | AJ105: 632878.6782 | AK105: 266710.9748 | AL105: 0 | AM105: 0 | AN105: 266710.9748 | AO105: D-Al-1/0 | AP105: D-Al-1/0 | AQ105: A-D | AR105: NA-D | AS105: A | AT105: Co-8
A106: 103 | B106: 20400302 | C106: 108 | D106: Co | E106: 12 | F106: 1 | L106: S | M106: 74 usuarios | N106: 0 | O106: 1 | Z106: Limitacion orden publico | AA106: =IFERROR(VLOOKUP(B106,'TRAFOS MUESTRA'!$B$3:$D$2000,3,FALSE),"NA") -> NA | AB106: 0 | AC106: 0 | AD106: 0 | AE106: =IF(AD106>0,'COSTO ELEMENTOS N1'!$B$74*Q106,0) -> 0 | AF106: 0 | AG106: 0 | AH106: 0 | AI106: 0 | AJ106: 0 | AK106: 0 | AL106: 71093.52497 | AM106: 0 | AN106: 71093.52497 | AO106: -- | AP106: -- | AQ106: - | AR106: NA-D | AS106: A | AT106: N2
A107: 104 | B107: 30100105 | C107: 109 | D107: Co | E107: 12 | F107: 1 | L107: S | N107: 0 | O107: 1 | Z107: - | AA107: =IFERROR(VLOOKUP(B107,'TRAFOS MUESTRA'!$B$3:$D$2000,3,FALSE),"NA") -> 1 | AB107: 0 | AC107: 0 | AD107: 0 | AE107: =IF(AD107>0,'COSTO ELEMENTOS N1'!$B$74*Q107,0) -> 0 | AF107: 0 | AG107: 0 | AH107: 0 | AI107: 0 | AJ107: 0 | AK107: 0 | AL107: 95211.40508 | AM107: 0 | AN107: 95211.40508 | AO107: -- | AP107: -- | AQ107: - | AR107: 1-D | AS107: A | AT107: N2
A108: 105 | B108: 30100105 | C108: 110 | D108: Co | E108: 8 | F108: 0 | J108: S | K108: 70 | L108: N | M108: 31335 | N108: 2 | O108: 3 | P108: A | Q108: 35 | R108: D | S108: 3 | T108: 1/0 | U108: Al | V108: 2 | W108: Al | X108: 4 | Y108: Al | Z108: - | AA108: =IFERROR(VLOOKUP(B108,'TRAFOS MUESTRA'!$B$3:$D$2000,3,FALSE),"NA") -> 1 | AB108: 216472.4963 | AC108: 195251.5509 | AD108: 0 | AE108: =IF(AD108>0,'COSTO ELEMENTOS N1'!$B$74*Q108,0) -> 0 | AF108: 49000.46571 | AG108: 65083.8503 | AH108: 265472.962 | AI108: 260335.4012 | AJ108: 525808.3632 | AK108: 266710.9748 | AL108: 24117.88011 | AM108: 233556.263 | AN108: 524385.118 | AO108: D-Al-1/0 | AP108: D-Al-2 | AQ108: A-D | AR108: 1-D | AS108: A | AT108: Co-8
A109: 106 | B109: 30100105 | C109: 111 | D109: Co | E109: 8 | F109: 0 | J109: M | K109: 125 | L109: N | M109: 31336, 31337 | N109: 4 | O109: 5 | P109: A | Q109: 11.6 | R109: D | S109: 3 | T109: 1/0 | U109: Al | V109: 2 | W109: Al | X109: 4 | Y109: Al | Z109: - | AA109: =IFERROR(VLOOKUP(B109,'TRAFOS MUESTRA'!$B$3:$D$2000,3,FALSE),"NA") -> 1 | AB109: 71745.1702 | AC109: 64711.94258 | AD109: 0 | AE109: =IF(AD109>0,'COSTO ELEMENTOS N1'!$B$74*Q109,0) -> 0 | AF109: 16240.15435 | AG109: 21570.64753 | AH109: 87985.32455 | AI109: 86282.59011 | AJ109: 174267.9147 | AK109: 266710.9748 | AL109: 24117.88011 | AM109: 233556.263 | AN109: 524385.118 | AO109: D-Al-1/0 | AP109: D-Al-2 | AQ109: A-D | AR109: 1-D | AS109: A | AT109: Co-8
A110: 107 | B110: 30100105 | C110: 112 | D110: Co | E110: 8 | F110: 0 | J110: M | K110: 125 | L110: N | M110: 31334, 31331, 31332 | N110: 5 | O110: 6 | P110: A | Q110: 21.4 | R110: D | S110: 3 | T110: 1/0 | U110: Al | V110: 2 | W110: Al | X110: 4 | Y110: Al | Z110: - | AA110: =IFERROR(VLOOKUP(B110,'TRAFOS MUESTRA'!$B$3:$D$2000,3,FALSE),"NA") -> 1 | AB110: 132357.4692 | AC110: 119382.3768 | AD110: 0 | AE110: =IF(AD110>0,'COSTO ELEMENTOS N1'!$B$74*Q110,0) -> 0 | AF110: 29960.28475 | AG110: 39794.12561 | AH110: 162317.7539 | AI110: 159176.5024 | AJ110: 321494.2564 | AK110: 266710.9748 | AL110: 24117.88011 | AM110: 233556.263 | AN110: 524385.118 | AO110: D-Al-1/0 | AP110: D-Al-2 | AQ110: A-D | AR110: 1-D | AS110: A | AT110: Co-8
A111: 108 | B111: 30100105 | C111: 113 | D111: Co | E111: 8 | F111: 0 | J111: M | K111: 125 | L111: N | M111: SD33402 | N111: 4 | O111: 7 | P111: A | Q111: 9.2 | R111: D | S111: 3 | T111: 1/0 | U111: Al | V111: 2 | W111: Al | X111: 4 | Y111: Al | Z111: - | AA111: =IFERROR(VLOOKUP(B111,'TRAFOS MUESTRA'!$B$3:$D$2000,3,FALSE),"NA") -> 1 | AB111: 56901.34188 | AC111: 51323.26481 | AD111: 0 | AE111: =IF(AD111>0,'COSTO ELEMENTOS N1'!$B$74*Q111,0) -> 0 | AF111: 12880.12241 | AG111: 17107.75494 | AH111: 69781.46429 | AI111: 68431.01974 | AJ111: 138212.484 | AK111: 266710.9748 | AL111: 24117.88011 | AM111: 233556.263 | AN111: 524385.118 | AO111: D-Al-1/0 | AP111: D-Al-2 | AQ111: A-D | AR111: 1-D | AS111: A | AT111: Co-8
A112: 109 | B112: 30100105 | C112: 114 | D112: Co | E112: 8 | F112: 0 | J112: M | K112: 125 | L112: N | N112: 7 | O112: 8 | P112: A | Q112: 32.1 | R112: D | S112: 3 | T112: 1/0 | U112: Al | V112: 2 | W112: Al | X112: 4 | Y112: Al | Z112: - | AA112: =IFERROR(VLOOKUP(B112,'TRAFOS MUESTRA'!$B$3:$D$2000,3,FALSE),"NA") -> 1 | AB112: 198536.2037 | AC112: 179073.5653 | AD112: 0 | AE112: =IF(AD112>0,'COSTO ELEMENTOS N1'!$B$74*Q112,0) -> 0 | AF112: 44940.42712 | AG112: 59691.18842 | AH112: 243476.6309 | AI112: 238764.7537 | AJ112: 482241.3845 | AK112: 266710.9748 | AL112: 24117.88011 | AM112: 233556.263 | AN112: 524385.118 | AO112: D-Al-1/0 | AP112: D-Al-2 | AQ112: A-D | AR112: 1-D | AS112: A | AT112: Co-8
A113: 110 | B113: 30100105 | C113: 115 | D113: Co | E113: 8 | F113: 0 | J113: M | K113: 125 | L113: N | M113: 31338, 30176, 31339, 31340 | N113: 4 | O113: 9 | P113: A | Q113: 30.3 | R113: D | S113: 3 | T113: 1/0 | U113: Al | V113: 2 | W113: Al | X113: 4 | Y113: Al | Z113: - | AA113: =IFERROR(VLOOKUP(B113,'TRAFOS MUESTRA'!$B$3:$D$2000,3,FALSE),"NA") -> 1 | AB113: 187403.3325 | AC113: 169032.0569 | AD113: 0 | AE113: =IF(AD113>0,'COSTO ELEMENTOS N1'!$B$74*Q113,0) -> 0 | AF113: 42420.40317 | AG113: 56344.01897 | AH113: 229823.7357 | AI113: 225376.0759 | AJ113: 455199.8116 | AK113: 266710.9748 | AL113: 24117.88011 | AM113: 233556.263 | AN113: 524385.118 | AO113: D-Al-1/0 | AP113: D-Al-2 | AQ113: A-D | AR113: 1-D | AS113: A | AT113: Co-8
A114: 111 | B114: 30100105 | C114: 116 | D114: Co | E114: 8 | F114: 0 | J114: M | K114: 125 | L114: N | N114: 9 | O114: 10 | P114: A | Q114: 39 | R114: D | S114: 3 | T114: 1/0 | U114: Al | V114: 2 | W114: Al | X114: 4 | Y114: Al | Z114: - | AA114: =IFERROR(VLOOKUP(B114,'TRAFOS MUESTRA'!$B$3:$D$2000,3,FALSE),"NA") -> 1 | AB114: 241212.2101 | AC114: 217566.0139 | AD114: 0 | AE114: =IF(AD114>0,'COSTO ELEMENTOS N1'!$B$74*Q114,0) -> 0 | AF114: 54600.51893 | AG114: 72522.00462 | AH114: 295812.7291 | AI114: 290088.0185 | AJ114: 585900.7476 | AK114: 266710.9748 | AL114: 24117.88011 | AM114: 233556.263 | AN114: 524385.118 | AO114: D-Al-1/0 | AP114: D-Al-2 | AQ114: A-D | AR114: 1-D | AS114: A | AT114: Co-8
A115: 112 | B115: 30100105 | C115: 117 | D115: Co | E115: 8 | F115: 0 | J115: S | K115: 70 | L115: N | M115: 31433, 30182, 31435 | N115: 11 | O115: 12 | P115: A | Q115: 26.9 | R115: D | S115: 3 | T115: 1/0 | U115: Al | V115: 2 | W115: Al | X115: 4 | Y115: Al | Z115: - | AA115: =IFERROR(VLOOKUP(B115,'TRAFOS MUESTRA'!$B$3:$D$2000,3,FALSE),"NA") -> 1 | AB115: 166374.5757 | AC115: 150064.7634 | AD115: 0 | AE115: =IF(AD115>0,'COSTO ELEMENTOS N1'!$B$74*Q115,0) -> 0 | AF115: 37660.35793 | AG115: 50021.5878 | AH115: 204034.9336 | AI115: 200086.3512 | AJ115: 404121.2849 | AK115: 266710.9748 | AL115: 24117.88011 | AM115: 233556.263 | AN115: 524385.118 | AO115: D-Al-1/0 | AP115: D-Al-2 | AQ115: A-D | AR115: 1-D | AS115: A | AT115: Co-8
A116: 113 | B116: 30100105 | C116: 118 | D116: Co | E116: 12 | F116: 1 | J116: M | K116: 125 | L116: N | M116: 31432, 31431, 31430 | N116: 12 | O116: 13 | P116: A | Q116: 36 | R116: D | S116: 3 | T116: 1/0 | U116: Al | V116: 2 | W116: Al | X116: 4 | Y116: Al | Z116: - | AA116: =IFERROR(VLOOKUP(B116,'TRAFOS MUESTRA'!$B$3:$D$2000,3,FALSE),"NA") -> 1 | AB116: 222657.4247 | AC116: 200830.1666 | AD116: 0 | AE116: =IF(AD116>0,'COSTO ELEMENTOS N1'!$B$74*Q116,0) -> 0 | AF116: 50400.47901 | AG116: 66943.38888 | AH116: 273057.9038 | AI116: 267773.5555 | AJ116: 540831.4593 | AK116: 0 | AL116: 24117.88011 | AM116: 0 | AN116: 24117.88011 | AO116: D-Al-1/0 | AP116: D-Al-2 | AQ116: A-D | AR116: 1-D | AS116: A | AT116: N2
A117: 114 | B117: 30100105 | C117: 119 | D117: Co | E117: 8 | F117: 0 | J117: M | K117: 125 | L117: N | M117: 31436, 33354 | N117: 11 | O117: 14 | P117: A | Q117: 9.8 | R117: D | S117: 3 | T117: 1/0 | U117: Al | V117: 2 | W117: Al | X117: 4 | Y117: Al | Z117: - | AA117: =IFERROR(VLOOKUP(B117,'TRAFOS MUESTRA'!$B$3:$D$2000,3,FALSE),"NA") -> 1 | AB117: 60612.29896 | AC117: 54670.43425 | AD117: 0 | AE117: =IF(AD117>0,'COSTO ELEMENTOS N1'!$B$74*Q117,0) -> 0 | AF117: 13720.1304 | AG117: 18223.47808 | AH117: 74332.42936 | AI117: 72893.91234 | AJ117: 147226.3417 | AK117: 266710.9748 | AL117: 24117.88011 | AM117: 233556.263 | AN117: 524385.118 | AO117: D-Al-1/0 | AP117: D-Al-2 | AQ117: A-D | AR117: 1-D | AS117: A | AT117: Co-8
A118: 115 | B118: 30100105 | C118: 120 | D118: Co | E118: 12 | F118: 1 | J118: M | K118: 125 | L118: N | M118: 52537, 33354 | N118: 14 | O118: 15 | P118: A | Q118: 21.4 | R118: D | S118: 3 | T118: 1/0 | U118: Al | V118: 2 | W118: Al | X118: 4 | Y118: Al | Z118: - | AA118: =IFERROR(VLOOKUP(B118,'TRAFOS MUESTRA'!$B$3:$D$2000,3,FALSE),"NA") -> 1 | AB118: 132357.4692 | AC118: 119382.3768 | AD118: 0 | AE118: =IF(AD118>0,'COSTO ELEMENTOS N1'!$B$74*Q118,0) -> 0 | AF118: 29960.28475 | AG118: 39794.12561 | AH118: 162317.7539 | AI118: 159176.5024 | AJ118: 321494.2564 | AK118: 0 | AL118: 24117.88011 | AM118: 0 | AN118: 24117.88011 | AO118: D-Al-1/0 | AP118: D-Al-2 | AQ118: A-D | AR118: 1-D | AS118: A | AT118: N2
A119: 116 | B119: 30100105 | C119: 121 | D119: Co | E119: 12 | F119: 1 | J119: M | K119: 125 | L119: N | M119: 31437, 30183 | N119: 11 | O119: 16 | P119: A | Q119: 30.8 | R119: D | S119: 3 | T119: 1/0 | U119: Al | V119: 2 | W119: Al | X119: 4 | Y119: Al | Z119: - | AA119: =IFERROR(VLOOKUP(B119,'TRAFOS MUESTRA'!$B$3:$D$2000,3,FALSE),"NA") -> 1 | AB119: 190495.7967 | AC119: 171821.3648 | AD119: 0 | AE119: =IF(AD119>0,'COSTO ELEMENTOS N1'!$B$74*Q119,0) -> 0 | AF119: 43120.40982 | AG119: 57273.78826 | AH119: 233616.2066 | AI119: 229095.1531 | AJ119: 462711.3596 | AK119: 0 | AL119: 24117.88011 | AM119: 0 | AN119: 24117.88011 | AO119: D-Al-1/0 | AP119: D-Al-2 | AQ119: A-D | AR119: 1-D | AS119: A | AT119: N2
A120: 117 | B120: 30100105 | C120: 122 | D120: Co | E120: 8 | F120: 0 | J120: M | K120: 125 | L120: N | M120: 30188, 30190, 30184, 30185, 30186 | N120: 16 | O120: 17 | P120: A | Q120: 24.3 | R120: D | S120: 3 | T120: 1/0 | U120: Al | V120: 2 | W120: Al | X120: 4 | Y120: Al | Z120: - | AA120: =IFERROR(VLOOKUP(B120,'TRAFOS MUESTRA'!$B$3:$D$2000,3,FALSE),"NA") -> 1 | AB120: 150293.7617 | AC120: 135560.3625 | AD120: 0 | AE120: =IF(AD120>0,'COSTO ELEMENTOS N1'!$B$74*Q120,0) -> 0 | AF120: 34020.32333 | AG120: 45186.78749 | AH120: 184314.085 | AI120: 180747.15 | AJ120: 365061.235 | AK120: 266710.9748 | AL120: 24117.88011 | AM120: 233556.263 | AN120: 524385.118 | AO120: D-Al-1/0 | AP120: D-Al-2 | AQ120: A-D | AR120: 1-D | AS120: A | AT120: Co-8
A121: 118 | B121: 30100105 | C121: 123 | D121: Co | E121: 12 | F121: 1 | J121: M | K121: 125 | L121: N | M121: 30187 | N121: 17 | O121: 18 | P121: A | Q121: 26.1 | R121: D | S121: 3 | T121: 1/0 | U121: Al | V121: 2 | W121: Al | X121: 4 | Y121: Al | Z121: - | AA121: =IFERROR(VLOOKUP(B121,'TRAFOS MUESTRA'!$B$3:$D$2000,3,FALSE),"NA") -> 1 | AB121: 161426.6329 | AC121: 145601.8708 | AD121: 0 | AE121: =IF(AD121>0,'COSTO ELEMENTOS N1'!$B$74*Q121,0) -> 0 | AF121: 36540.34728 | AG121: 48533.95694 | AH121: 197966.9802 | AI121: 194135.8278 | AJ121: 392102.808 | AK121: 0 | AL121: 24117.88011 | AM121: 0 | AN121: 24117.88011 | AO121: D-Al-1/0 | AP121: D-Al-2 | AQ121: A-D | AR121: 1-D | AS121: A | AT121: N2
A122: 119 | B122: 30100105 | C122: 124 | D122: Co | E122: 8 | F122: 0 | J122: M | K122: 125 | L122: N | N122: 18 | O122: 19 | P122: A | Q122: 29.3 | R122: D | S122: 3 | T122: 1/0 | U122: Al | V122: 2 | W122: Al | X122: 4 | Y122: Al | Z122: - | AA122: =IFERROR(VLOOKUP(B122,'TRAFOS MUESTRA'!$B$3:$D$2000,3,FALSE),"NA") -> 1 | AB122: 181218.404 | AC122: 163453.4412 | AD122: 0 | AE122: =IF(AD122>0,'COSTO ELEMENTOS N1'!$B$74*Q122,0) -> 0 | AF122: 41020.38986 | AG122: 54484.48039 | AH122: 222238.7939 | AI122: 217937.9216 | AJ122: 440176.7155 | AK122: 266710.9748 | AL122: 24117.88011 | AM122: 233556.263 | AN122: 524385.118 | AO122: D-Al-1/0 | AP122: D-Al-2 | AQ122: A-D | AR122: 1-D | AS122: A | AT122: Co-8
A123: 120 | B123: 30100506 | C123: 125 | D123: Co | E123: 12 | F123: 1 | L123: S | M123: 44497 | N123: 0 | O123: 1 | P123: A | Q123: 38.5 | R123: D | S123: 2 | T123: 2 | U123: Al | V123: 2 | W123: Al | Z123: - | AA123: =IFERROR(VLOOKUP(B123,'TRAFOS MUESTRA'!$B$3:$D$2000,3,FALSE),"NA") -> NA | AB123: 107801.0246 | AC123: 143184.4707 | AD123: 0 | AE123: =IF(AD123>0,'COSTO ELEMENTOS N1'!$B$74*Q123,0) -> 0 | AF123: 53900.51228 | AG123: 71592.23533 | AH123: 161701.5368 | AI123: 214776.706 | AJ123: 376478.2428 | AK123: 0 | AL123: 71093.52497 | AM123: 0 | AN123: 71093.52497 | AO123: D-Al-2 | AP123: D-Al-2 | AQ123: A-D | AR123: NA-D | AS123: A | AT123: N2
A124: 121 | B124: 30100701 | C124: 126 | D124: Co | E124: 12 | F124: 1 | L124: S | M124: 33141 | N124: 0 | O124: 1 | P124: A | Q124: 38.5 | R124: D | S124: 2 | T124: 2 | U124: Al | V124: 2 | W124: Al | Z124: - | AA124: =IFERROR(VLOOKUP(B124,'TRAFOS MUESTRA'!$B$3:$D$2000,3,FALSE),"NA") -> 3 | AB124: 107801.0246 | AC124: 143184.4707 | AD124: 0 | AE124: =IF(AD124>0,'COSTO ELEMENTOS N1'!$B$74*Q124,0) -> 0 | AF124: 53900.51228 | AG124: 71592.23533 | AH124: 161701.5368 | AI124: 214776.706 | AJ124: 376478.2428 | AK124: 0 | AL124: 95211.40508 | AM124: 0 | AN124: 95211.40508 | AO124: D-Al-2 | AP124: D-Al-2 | AQ124: A-D | AR124: 3-D | AS124: A | AT124: N2
A125: 122 | B125: 30101001 | C125: 127 | D125: Co | E125: 12 | F125: 1 | L125: S | M125: 34049/35788/45205 | N125: 0 | O125: 1 | P125: A | Q125: 38.5 | R125: D | S125: 2 | T125: 2 | U125: Al | V125: 2 | W125: Al | Z125: Limitacion orden publico | AA125: =IFERROR(VLOOKUP(B125,'TRAFOS MUESTRA'!$B$3:$D$2000,3,FALSE),"NA") -> NA | AB125: 107801.0246 | AC125: 143184.4707 | AD125: 0 | AE125: =IF(AD125>0,'COSTO ELEMENTOS N1'!$B$74*Q125,0) -> 0 | AF125: 53900.51228 | AG125: 71592.23533 | AH125: 161701.5368 | AI125: 214776.706 | AJ125: 376478.2428 | AK125: 0 | AL125: 71093.52497 | AM125: 0 | AN125: 71093.52497 | AO125: D-Al-2 | AP125: D-Al-2 | AQ125: A-D | AR125: NA-D | AS125: A | AT125: N2
A126: 123 | B126: 30101606 | C126: 128 | D126: Co | E126: 12 | F126: 1 | L126: S | M126: 45 usuarios | N126: 0 | O126: 1 | P126: A | Q126: 38.5 | R126: D | S126: 2 | T126: 2 | U126: Al | V126: 2 | W126: Al | Z126: Limitacion orden publico | AA126: =IFERROR(VLOOKUP(B126,'TRAFOS MUESTRA'!$B$3:$D$2000,3,FALSE),"NA") -> NA | AB126: 107801.0246 | AC126: 143184.4707 | AD126: 0 | AE126: =IF(AD126>0,'COSTO ELEMENTOS N1'!$B$74*Q126,0) -> 0 | AF126: 53900.51228 | AG126: 71592.23533 | AH126: 161701.5368 | AI126: 214776.706 | AJ126: 376478.2428 | AK126: 0 | AL126: 71093.52497 | AM126: 0 | AN126: 71093.52497 | AO126: D-Al-2 | AP126: D-Al-2 | AQ126: A-D | AR126: NA-D | AS126: A | AT126: N2
A127: 124 | B127: 30102009 | C127: 129 | D127: Co | E127: 12 | F127: 1 | L127: S | M127: 52575 | N127: 0 | O127: 1 | P127: A | Q127: 38.5 | R127: D | S127: 2 | T127: 2 | U127: Al | V127: 2 | W127: Al | Z127: - | AA127: =IFERROR(VLOOKUP(B127,'TRAFOS MUESTRA'!$B$3:$D$2000,3,FALSE),"NA") -> NA | AB127: =IFERROR((VLOOKUP(AO127,COSTO_CONDUCTORES,5,FALSE))*Q127*S127,0) -> 107801.0246 | AC127: =IFERROR(VLOOKUP($AQ127,COSTO_INSTALACIÓN_CONDUCTOR,2,FALSE)*Q127*S127,0) -> 143184.4707 | AD127: =IFERROR(VLOOKUP(AT127,COSTO_CANALIZACION_SUBTERRANEO,2,FALSE),0)*Q127 -> 0 | AE127: =IF(AD127>0,'COSTO ELEMENTOS N1'!$B$74*Q127,0) -> 0 | AF127: =IFERROR(VLOOKUP(AP127,COSTO_CONDUCTORES,5,FALSE),0)*Q127 -> 53900.51228 | AG127: =IFERROR(VLOOKUP($AQ127,COSTO_INSTALACIÓN_CONDUCTOR,2,FALSE),0)*Q127 -> 71592.23533 | AH127: 161701.5368 | AI127: 214776.706 | AJ127: 376478.2428 | AK127: =IFERROR(VLOOKUP($AT127,COSTO_APOYOS,5,FALSE),0) -> 0 | AL127: =IF(AS127="SD",0,IF(AS127="A",IFERROR(VLOOKUP(AR127,COSTO_INSTALACIÓN_APOYOS,2,FALSE),0),0))+IF(L127="S",PUESTA_TIERRA,0) -> 71093.52497 | AM127: =IF(AS127="SD",0,IF(AS127="S",IFERROR(VLOOKUP(G127,COSTO_INSTALACION_CAMARAS,2,FALSE),0),IF(AT127="N2",0,IFERROR(VLOOKUP(AR127,COSTO_INSTALACIÓN_APOYOS,3,FALSE),0)))) -> 0 | AN127: 71093.52497 | AO127: D-Al-2 | AP127: D-Al-2 | AQ127: A-D | AR127: NA-D | AS127: =IFERROR(VLOOKUP(D127&"-"&E127,COSTO_APOYOS,2,FALSE),IFERROR(VLOOKUP(G127&"-"&H127,COSTO_APOYOS,2,FALSE),"SD")) -> A | AT127: N2
A128: 125 | B128: 30102009 | C128: 130 | D128: Co | E128: 8 | F128: 0 | L128: N | N128: 1 | O128: 2 | P128: A | Q128: 42.5 | R128: D | S128: 2 | T128: 2 | U128: Al | V128: 4 | W128: Al | Z128: - | AA128: =IFERROR(VLOOKUP(B128,'TRAFOS MUESTRA'!$B$3:$D$2000,3,FALSE),"NA") -> NA | AB128: 119001.131 | AC128: 158060.7793 | AD128: 0 | AE128: =IF(AD128>0,'COSTO ELEMENTOS N1'!$B$74*Q128,0) -> 0 | AF128: 41821.55819 | AG128: 79030.38965 | AH128: =AB128+AD128+AF128 -> 160822.6892 | AI128: =AC128+AE128+AG128 -> 237091.1689 | AJ128: =SUM(AH128:AI128) -> 397913.8581 | AK128: 266710.9748 | AL128: 0 | AM128: 0 | AN128: =SUM(AK128:AM128) -> 266710.9748 | AO128: =$R128&"-"&$U128&"-"&$T128 -> D-Al-2 | AP128: =$R128&"-"&$W128&"-"&$V128 -> D-Al-4 | AQ128: =P128&"-"&R128 -> A-D | AR128: =AA128&"-"&IF(R128="","D",R128) -> NA-D | AS128: A | AT128: =IF(AS128="S",G128&"-"&H128,IF(E128>10,"N2",D128&"-"&E128)) -> Co-8
A129: 126 | B129: 30102009 | C129: 131 | D129: Co | E129: 12 | F129: 1 | L129: N | N129: 2 | O129: 3 | P129: A | Q129: 42.5 | R129: D | S129: 2 | T129: 2 | U129: Al | V129: 4 | W129: Al | Z129: - | AA129: =IFERROR(VLOOKUP(B129,'TRAFOS MUESTRA'!$B$3:$D$2000,3,FALSE),"NA") -> NA | AB129: 119001.131 | AC129: 158060.7793 | AD129: 0 | AE129: =IF(AD129>0,'COSTO ELEMENTOS N1'!$B$74*Q129,0) -> 0 | AF129: 41821.55819 | AG129: 79030.38965 | AH129: 160822.6892 | AI129: 237091.1689 | AJ129: 397913.8581 | AK129: 0 | AL129: 0 | AM129: 0 | AN129: 0 | AO129: D-Al-2 | AP129: D-Al-4 | AQ129: A-D | AR129: NA-D | AS129: A | AT129: N2
A130: 127 | B130: 30102009 | C130: 132 | D130: Co | E130: 8 | F130: 0 | L130: N | N130: 3 | O130: 4 | P130: A | Q130: 42.5 | R130: D | S130: 2 | T130: 2 | U130: Al | V130: 4 | W130: Al | Z130: - | AA130: =IFERROR(VLOOKUP(B130,'TRAFOS MUESTRA'!$B$3:$D$2000,3,FALSE),"NA") -> NA | AB130: 119001.131 | AC130: 158060.7793 | AD130: 0 | AE130: =IF(AD130>0,'COSTO ELEMENTOS N1'!$B$74*Q130,0) -> 0 | AF130: 41821.55819 | AG130: 79030.38965 | AH130: 160822.6892 | AI130: 237091.1689 | AJ130: 397913.8581 | AK130: 266710.9748 | AL130: 0 | AM130: 0 | AN130: 266710.9748 | AO130: D-Al-2 | AP130: D-Al-4 | AQ130: A-D | AR130: NA-D | AS130: A | AT130: Co-8
A131: 128 | B131: 30102009 | C131: 133 | D131: Co | E131: 8 | F131: 0 | L131: N | N131: 4 | O131: 5 | P131: A | Q131: 42.5 | R131: D | S131: 2 | T131: 2 | U131: Al | V131: 4 | W131: Al | Z131: - | AA131: =IFERROR(VLOOKUP(B131,'TRAFOS MUESTRA'!$B$3:$D$2000,3,FALSE),"NA") -> NA | AB131: 119001.131 | AC131: 158060.7793 | AD131: 0 | AE131: =IF(AD131>0,'COSTO ELEMENTOS N1'!$B$74*Q131,0) -> 0 | AF131: 41821.55819 | AG131: 79030.38965 | AH131: 160822.6892 | AI131: 237091.1689 | AJ131: 397913.8581 | AK131: 266710.9748 | AL131: 0 | AM131: 0 | AN131: 266710.9748 | AO131: D-Al-2 | AP131: D-Al-4 | AQ131: A-D | AR131: NA-D | AS131: A | AT131: Co-8
A132: 129 | B132: 30102009 | C132: 134 | D132: Co | E132: 8 | F132: 0 | L132: N | N132: 5 | O132: 6 | P132: A | Q132: 58 | R132: D | S132: 2 | T132: 2 | U132: Al | V132: 4 | W132: Al | Z132: - | AA132: =IFERROR(VLOOKUP(B132,'TRAFOS MUESTRA'!$B$3:$D$2000,3,FALSE),"NA") -> NA | AB132: 162401.5435 | AC132: 215706.4753 | AD132: 0 | AE132: =IF(AD132>0,'COSTO ELEMENTOS N1'!$B$74*Q132,0) -> 0 | AF132: 57074.12647 | AG132: 107853.2376 | AH132: 219475.67 | AI132: 323559.7129 | AJ132: 543035.3829 | AK132: 266710.9748 | AL132: 0 | AM132: 0 | AN132: 266710.9748 | AO132: D-Al-2 | AP132: D-Al-4 | AQ132: A-D | AR132: NA-D | AS132: A | AT132: Co-8
A133: 130 | B133: 30102009 | C133: 135 | D133: Co | E133: 8 | F133: 0 | L133: S | M133: 33027 | N133: 6 | O133: 7 | P133: A | Q133: 58 | R133: D | S133: 2 | T133: 2 | U133: Al | V133: 4 | W133: Al | Z133: - | AA133: =IFERROR(VLOOKUP(B133,'TRAFOS MUESTRA'!$B$3:$D$2000,3,FALSE),"NA") -> NA | AB133: 162401.5435 | AC133: 215706.4753 | AD133: 0 | AE133: =IF(AD133>0,'COSTO ELEMENTOS N1'!$B$74*Q133,0) -> 0 | AF133: 57074.12647 | AG133: 107853.2376 | AH133: 219475.67 | AI133: 323559.7129 | AJ133: 543035.3829 | AK133: 266710.9748 | AL133: 71093.52497 | AM133: 0 | AN133: 337804.4998 | AO133: D-Al-2 | AP133: D-Al-4 | AQ133: A-D | AR133: NA-D | AS133: A | AT133: Co-8
A134: =A133+1 -> 131 | B134: 30102009 | C134: 136 | D134: Co | E134: 8 | F134: 0 | L134: N | N134: 7 | O134: 8 | P134: A | Q134: 58 | R134: D | S134: 2 | T134: 2 | U134: Al | V134: 4 | W134: Al | Z134: - | AA134: =IFERROR(VLOOKUP(B134,'TRAFOS MUESTRA'!$B$3:$D$2000,3,FALSE),"NA") -> NA | AB134: 162401.5435 | AC134: 215706.4753 | AD134: 0 | AE134: =IF(AD134>0,'COSTO ELEMENTOS N1'!$B$74*Q134,0) -> 0 | AF134: 57074.12647 | AG134: 107853.2376 | AH134: 219475.67 | AI134: 323559.7129 | AJ134: 543035.3829 | AK134: 266710.9748 | AL134: 0 | AM134: 0 | AN134: 266710.9748 | AO134: D-Al-2 | AP134: D-Al-4 | AQ134: A-D | AR134: NA-D | AS134: A | AT134: Co-8
A135: 132 | B135: 30102009 | C135: 137 | D135: Co | E135: 12 | F135: 1 | L135: N | N135: 1 | O135: 9 | P135: A | Q135: 58 | R135: D | S135: 2 | T135: 2 | U135: Al | V135: 4 | W135: Al | Z135: - | AA135: =IFERROR(VLOOKUP(B135,'TRAFOS MUESTRA'!$B$3:$D$2000,3,FALSE),"NA") -> NA | AB135: 162401.5435 | AC135: 215706.4753 | AD135: 0 | AE135: =IF(AD135>0,'COSTO ELEMENTOS N1'!$B$74*Q135,0) -> 0 | AF135: 57074.12647 | AG135: 107853.2376 | AH135: 219475.67 | AI135: 323559.7129 | AJ135: 543035.3829 | AK135: 0 | AL135: 0 | AM135: 0 | AN135: 0 | AO135: D-Al-2 | AP135: D-Al-4 | AQ135: A-D | AR135: NA-D | AS135: A | AT135: N2
A136: 133 | B136: 30102009 | C136: 138 | D136: Co | E136: 8 | F136: 0 | L136: N | N136: 9 | O136: 10 | P136: A | Q136: 63 | R136: D | S136: 2 | T136: 2 | U136: Al | V136: 4 | W136: Al | Z136: - | AA136: =IFERROR(VLOOKUP(B136,'TRAFOS MUESTRA'!$B$3:$D$2000,3,FALSE),"NA") -> NA | AB136: 176401.6765 | AC136: 234301.8611 | AD136: 0 | AE136: =IF(AD136>0,'COSTO ELEMENTOS N1'!$B$74*Q136,0) -> 0 | AF136: 61994.30978 | AG136: 117150.9305 | AH136: 238395.9863 | AI136: 351452.7916 | AJ136: 589848.778 | AK136: 266710.9748 | AL136: 0 | AM136: 0 | AN136: 266710.9748 | AO136: D-Al-2 | AP136: D-Al-4 | AQ136: A-D | AR136: NA-D | AS136: A | AT136: Co-8
A137: 134 | B137: 30102009 | C137: 139 | D137: Co | E137: 8 | F137: 0 | L137: S | M137: 33733 | N137: 10 | O137: 11 | P137: A | Q137: 64 | R137: D | S137: 2 | T137: 2 | U137: Al | V137: 4 | W137: Al | Z137: - | AA137: =IFERROR(VLOOKUP(B137,'TRAFOS MUESTRA'!$B$3:$D$2000,3,FALSE),"NA") -> NA | AB137: 179201.7032 | AC137: 238020.9382 | AD137: 0 | AE137: =IF(AD137>0,'COSTO ELEMENTOS N1'!$B$74*Q137,0) -> 0 | AF137: 62978.34645 | AG137: 119010.4691 | AH137: 242180.0496 | AI137: 357031.4074 | AJ137: 599211.457 | AK137: 266710.9748 | AL137: 71093.52497 | AM137: 0 | AN137: 337804.4998 | AO137: D-Al-2 | AP137: D-Al-4 | AQ137: A-D | AR137: NA-D | AS137: A | AT137: Co-8
A138: 135 | B138: 30102205 | C138: 140 | D138: Co | E138: 12 | F138: 1 | L138: S | N138: 0 | O138: 1 | Z138: - | AA138: =IFERROR(VLOOKUP(B138,'TRAFOS MUESTRA'!$B$3:$D$2000,3,FALSE),"NA") -> 1 | AB138: 0 | AC138: 0 | AD138: 0 | AE138: =IF(AD138>0,'COSTO ELEMENTOS N1'!$B$74*Q138,0) -> 0 | AF138: 0 | AG138: 0 | AH138: 0 | AI138: 0 | AJ138: 0 | AK138: 0 | AL138: 95211.40508 | AM138: 0 | AN138: 95211.40508 | AO138: -- | AP138: -- | AQ138: - | AR138: 1-D | AS138: A | AT138: N2
A139: 136 | B139: 30102205 | C139: 141 | D139: Co | E139: 8 | F139: 0 | L139: N | N139: 1 | O139: 2 | P139: A | Q139: 52.7 | R139: D | S139: 1 | T139: 2 | U139: Al | V139: 4 | W139: Al | Z139: - | AA139: =IFERROR(VLOOKUP(B139,'TRAFOS MUESTRA'!$B$3:$D$2000,3,FALSE),"NA") -> 1 | AB139: 73780.70122 | AC139: 97997.68317 | AD139: 0 | AE139: =IF(AD139>0,'COSTO ELEMENTOS N1'!$B$74*Q139,0) -> 0 | AF139: 51858.73215 | AG139: 97997.68317 | AH139: 125639.4334 | AI139: 195995.3663 | AJ139: 321634.7997 | AK139: 266710.9748 | AL139: 24117.88011 | AM139: 233556.263 | AN139: 524385.118 | AO139: D-Al-2 | AP139: D-Al-4 | AQ139: A-D | AR139: 1-D | AS139: A | AT139: Co-8
A140: 137 | B140: 30102205 | C140: 142 | D140: Co | E140: 8 | F140: 0 | L140: N | N140: 2 | O140: 3 | P140: A | Q140: 49.6 | R140: D | S140: 1 | T140: 2 | U140: Al | V140: 4 | W140: Al | Z140: - | AA140: =IFERROR(VLOOKUP(B140,'TRAFOS MUESTRA'!$B$3:$D$2000,3,FALSE),"NA") -> 1 | AB140: 69440.65997 | AC140: 92233.11357 | AD140: 0 | AE140: =IF(AD140>0,'COSTO ELEMENTOS N1'!$B$74*Q140,0) -> 0 | AF140: 48808.2185 | AG140: 92233.11357 | AH140: 118248.8785 | AI140: 184466.2271 | AJ140: 302715.1056 | AK140: 266710.9748 | AL140: 24117.88011 | AM140: 233556.263 | AN140: 524385.118 | AO140: D-Al-2 | AP140: D-Al-4 | AQ140: A-D | AR140: 1-D | AS140: A | AT140: Co-8
A141: 138 | B141: 30102205 | C141: 143 | D141: Co | E141: 8 | F141: 0 | L141: N | N141: 3 | O141: 4 | P141: A | Q141: 50.3 | R141: D | S141: 1 | T141: 2 | U141: Al | V141: 4 | W141: Al | Z141: - | AA141: =IFERROR(VLOOKUP(B141,'TRAFOS MUESTRA'!$B$3:$D$2000,3,FALSE),"NA") -> 1 | AB141: 70420.66929 | AC141: 93534.79057 | AD141: 0 | AE141: =IF(AD141>0,'COSTO ELEMENTOS N1'!$B$74*Q141,0) -> 0 | AF141: 49497.04416 | AG141: 93534.79057 | AH141: 119917.7134 | AI141: 187069.5811 | AJ141: 306987.2946 | AK141: 266710.9748 | AL141: 24117.88011 | AM141: 233556.263 | AN141: 524385.118 | AO141: D-Al-2 | AP141: D-Al-4 | AQ141: A-D | AR141: 1-D | AS141: A | AT141: Co-8
A142: 139 | B142: 30102205 | C142: 144 | D142: Co | E142: 8 | F142: 0 | L142: N | M142: 36497 | N142: 4 | O142: 5 | P142: A | Q142: 68.5 | R142: D | S142: 1 | T142: 2 | U142: Al | V142: 4 | W142: Al | Z142: - | AA142: =IFERROR(VLOOKUP(B142,'TRAFOS MUESTRA'!$B$3:$D$2000,3,FALSE),"NA") -> 1 | AB142: 95900.91146 | AC142: 127378.3927 | AD142: 0 | AE142: =IF(AD142>0,'COSTO ELEMENTOS N1'!$B$74*Q142,0) -> 0 | AF142: 67406.51143 | AG142: 127378.3927 | AH142: 163307.4229 | AI142: 254756.7855 | AJ142: 418064.2083 | AK142: 266710.9748 | AL142: 24117.88011 | AM142: 233556.263 | AN142: 524385.118 | AO142: D-Al-2 | AP142: D-Al-4 | AQ142: A-D | AR142: 1-D | AS142: A | AT142: Co-8
A143: 140 | B143: 30102205 | C143: 145 | D143: Co | E143: 8 | F143: 0 | L143: N | N143: 5 | O143: 6 | P143: A | Q143: 54.6 | R143: D | S143: 1 | T143: 2 | U143: Al | V143: 4 | W143: Al | Z143: - | AA143: =IFERROR(VLOOKUP(B143,'TRAFOS MUESTRA'!$B$3:$D$2000,3,FALSE),"NA") -> 1 | AB143: 76440.7265 | AC143: 101530.8065 | AD143: 0 | AE143: =IF(AD143>0,'COSTO ELEMENTOS N1'!$B$74*Q143,0) -> 0 | AF143: 53728.40181 | AG143: 101530.8065 | AH143: 130169.1283 | AI143: 203061.6129 | AJ143: 333230.7413 | AK143: 266710.9748 | AL143: 24117.88011 | AM143: 233556.263 | AN143: 524385.118 | AO143: D-Al-2 | AP143: D-Al-4 | AQ143: A-D | AR143: 1-D | AS143: A | AT143: Co-8
A144: 141 | B144: 30102205 | C144: 146 | D144: Co | E144: 8 | F144: 0 | L144: N | N144: 6 | O144: 7 | P144: A | Q144: 50.3 | R144: D | S144: 1 | T144: 2 | U144: Al | V144: 4 | W144: Al | Z144: - | AA144: =IFERROR(VLOOKUP(B144,'TRAFOS MUESTRA'!$B$3:$D$2000,3,FALSE),"NA") -> 1 | AB144: 70420.66929 | AC144: 93534.79057 | AD144: 0 | AE144: =IF(AD144>0,'COSTO ELEMENTOS N1'!$B$74*Q144,0) -> 0 | AF144: 49497.04416 | AG144: 93534.79057 | AH144: 119917.7134 | AI144: 187069.5811 | AJ144: 306987.2946 | AK144: 266710.9748 | AL144: 24117.88011 | AM144: 233556.263 | AN144: 524385.118 | AO144: D-Al-2 | AP144: D-Al-4 | AQ144: A-D | AR144: 1-D | AS144: A | AT144: Co-8
A145: 142 | B145: 30102205 | C145: 147 | D145: Co | E145: 8 | F145: 0 | L145: N | M145: 36498 | N145: 7 | O145: 8 | P145: A | Q145: 63.7 | R145: D | S145: 1 | T145: 2 | U145: Al | V145: 4 | W145: Al | Z145: - | AA145: =IFERROR(VLOOKUP(B145,'TRAFOS MUESTRA'!$B$3:$D$2000,3,FALSE),"NA") -> 1 | AB145: 89180.84759 | AC145: 118452.6075 | AD145: 0 | AE145: =IF(AD145>0,'COSTO ELEMENTOS N1'!$B$74*Q145,0) -> 0 | AF145: 62683.13545 | AG145: 118452.6075 | AH145: 151863.983 | AI145: 236905.2151 | AJ145: 388769.1981 | AK145: 266710.9748 | AL145: 24117.88011 | AM145: 233556.263 | AN145: 524385.118 | AO145: D-Al-2 | AP145: D-Al-4 | AQ145: A-D | AR145: 1-D | AS145: A | AT145: Co-8
A146: 143 | B146: 30102205 | C146: 148 | D146: Co | E146: 8 | F146: 0 | L146: N | N146: 1 | O146: 9 | P146: A | Q146: 72.4 | R146: D | S146: 2 | T146: 2 | U146: Al | V146: 4 | W146: Al | Z146: - | AA146: =IFERROR(VLOOKUP(B146,'TRAFOS MUESTRA'!$B$3:$D$2000,3,FALSE),"NA") -> 1 | AB146: 202721.9267 | AC146: 269261.1864 | AD146: 0 | AE146: =IF(AD146>0,'COSTO ELEMENTOS N1'!$B$74*Q146,0) -> 0 | AF146: 71244.25442 | AG146: 134630.5932 | AH146: 273966.1811 | AI146: 403891.7796 | AJ146: 677857.9607 | AK146: 266710.9748 | AL146: 24117.88011 | AM146: 233556.263 | AN146: 524385.118 | AO146: D-Al-2 | AP146: D-Al-4 | AQ146: A-D | AR146: 1-D | AS146: A | AT146: Co-8
A147: 144 | B147: 30102205 | C147: 149 | D147: Co | E147: 12 | F147: 1 | L147: N | N147: 9 | O147: 10 | P147: A | Q147: 69.1 | R147: D | S147: 2 | T147: 2 | U147: Al | V147: 4 | W147: Al | Z147: - | AA147: =IFERROR(VLOOKUP(B147,'TRAFOS MUESTRA'!$B$3:$D$2000,3,FALSE),"NA") -> 1 | AB147: 193481.8389 | AC147: 256988.2318 | AD147: 0 | AE147: =IF(AD147>0,'COSTO ELEMENTOS N1'!$B$74*Q147,0) -> 0 | AF147: 67996.93343 | AG147: 128494.1159 | AH147: 261478.7723 | AI147: 385482.3476 | AJ147: 646961.1199 | AK147: 0 | AL147: 24117.88011 | AM147: 0 | AN147: 24117.88011 | AO147: D-Al-2 | AP147: D-Al-4 | AQ147: A-D | AR147: 1-D | AS147: A | AT147: N2
A148: 145 | B148: 30102205 | C148: 150 | D148: Co | E148: 8 | F148: 0 | L148: N | N148: 10 | O148: 11 | P148: A | Q148: 69.9 | R148: D | S148: 2 | T148: 2 | U148: Al | V148: 4 | W148: Al | Z148: - | AA148: =IFERROR(VLOOKUP(B148,'TRAFOS MUESTRA'!$B$3:$D$2000,3,FALSE),"NA") -> 1 | AB148: 195721.8602 | AC148: 259963.4935 | AD148: 0 | AE148: =IF(AD148>0,'COSTO ELEMENTOS N1'!$B$74*Q148,0) -> 0 | AF148: 68784.16276 | AG148: 129981.7467 | AH148: 264506.0229 | AI148: 389945.2402 | AJ148: 654451.2632 | AK148: 266710.9748 | AL148: 24117.88011 | AM148: 233556.263 | AN148: 524385.118 | AO148: D-Al-2 | AP148: D-Al-4 | AQ148: A-D | AR148: 1-D | AS148: A | AT148: Co-8
A149: 146 | B149: 30102205 | C149: 151 | D149: Co | E149: 12 | F149: 1 | L149: N | N149: 11 | O149: 12 | P149: A | Q149: 71.2 | R149: D | S149: 2 | T149: 2 | U149: Al | V149: 4 | W149: Al | Z149: - | AA149: =IFERROR(VLOOKUP(B149,'TRAFOS MUESTRA'!$B$3:$D$2000,3,FALSE),"NA") -> 1 | AB149: 199361.8948 | AC149: 264798.2938 | AD149: 0 | AE149: =IF(AD149>0,'COSTO ELEMENTOS N1'!$B$74*Q149,0) -> 0 | AF149: 70063.41042 | AG149: 132399.1469 | AH149: 269425.3052 | AI149: 397197.4407 | AJ149: 666622.7459 | AK149: 0 | AL149: 24117.88011 | AM149: 0 | AN149: 24117.88011 | AO149: D-Al-2 | AP149: D-Al-4 | AQ149: A-D | AR149: 1-D | AS149: A | AT149: N2
A150: 147 | B150: 30102205 | C150: 152 | D150: Co | E150: 8 | F150: 0 | L150: N | M150: 36499 | N150: 12 | O150: 13 | P150: A | Q150: 55.5 | R150: D | S150: 2 | T150: 2 | U150: Al | V150: 4 | W150: Al | Z150: - | AA150: =IFERROR(VLOOKUP(B150,'TRAFOS MUESTRA'!$B$3:$D$2000,3,FALSE),"NA") -> 1 | AB150: 155401.477 | AC150: 206408.7824 | AD150: 0 | AE150: =IF(AD150>0,'COSTO ELEMENTOS N1'!$B$74*Q150,0) -> 0 | AF150: 54614.03481 | AG150: 103204.3912 | AH150: 210015.5118 | AI150: 309613.1736 | AJ150: 519628.6853 | AK150: 266710.9748 | AL150: 24117.88011 | AM150: 233556.263 | AN150: 524385.118 | AO150: D-Al-2 | AP150: D-Al-4 | AQ150: A-D | AR150: 1-D | AS150: A | AT150: Co-8
A151: 148 | B151: 30102205 | C151: 153 | D151: Co | E151: 8 | F151: 0 | L151: N | M151: 36496 | N151: 13 | O151: 14 | P151: A | Q151: 61.6 | R151: D | S151: 2 | T151: 2 | U151: Al | V151: 4 | W151: Al | Z151: - | AA151: =IFERROR(VLOOKUP(B151,'TRAFOS MUESTRA'!$B$3:$D$2000,3,FALSE),"NA") -> 1 | AB151: 172481.6393 | AC151: 229095.1531 | AD151: 0 | AE151: =IF(AD151>0,'COSTO ELEMENTOS N1'!$B$74*Q151,0) -> 0 | AF151: 60616.65845 | AG151: 114547.5765 | AH151: 233098.2977 | AI151: 343642.7296 | AJ151: 576741.0273 | AK151: 266710.9748 | AL151: 24117.88011 | AM151: 233556.263 | AN151: 524385.118 | AO151: D-Al-2 | AP151: D-Al-4 | AQ151: A-D | AR151: 1-D | AS151: A | AT151: Co-8
A152: 149 | B152: 30102205 | C152: 154 | D152: Co | E152: 8 | F152: 0 | L152: N | N152: 14 | O152: 15 | P152: A | Q152: 59.7 | R152: D | S152: 2 | T152: 2 | U152: Al | V152: 4 | W152: Al | Z152: - | AA152: =IFERROR(VLOOKUP(B152,'TRAFOS MUESTRA'!$B$3:$D$2000,3,FALSE),"NA") -> 1 | AB152: 167161.5887 | AC152: 222028.9065 | AD152: 0 | AE152: =IF(AD152>0,'COSTO ELEMENTOS N1'!$B$74*Q152,0) -> 0 | AF152: 58746.98879 | AG152: 111014.4532 | AH152: 225908.5775 | AI152: 333043.3597 | AJ152: 558951.9372 | AK152: 266710.9748 | AL152: 24117.88011 | AM152: 233556.263 | AN152: 524385.118 | AO152: D-Al-2 | AP152: D-Al-4 | AQ152: A-D | AR152: 1-D | AS152: A | AT152: Co-8
A153: 150 | B153: 30102205 | C153: 155 | D153: Co | E153: 8 | F153: 0 | L153: N | N153: 15 | O153: 16 | P153: A | Q153: 65 | R153: D | S153: 1 | T153: 2 | U153: Al | V153: 4 | W153: Al | Z153: - | AA153: =IFERROR(VLOOKUP(B153,'TRAFOS MUESTRA'!$B$3:$D$2000,3,FALSE),"NA") -> 1 | AB153: 91000.86489 | AC153: 120870.0077 | AD153: 0 | AE153: =IF(AD153>0,'COSTO ELEMENTOS N1'!$B$74*Q153,0) -> 0 | AF153: 63962.38311 | AG153: 120870.0077 | AH153: 154963.248 | AI153: 241740.0154 | AJ153: 396703.2634 | AK153: 266710.9748 | AL153: 24117.88011 | AM153: 233556.263 | AN153: 524385.118 | AO153: D-Al-2 | AP153: D-Al-4 | AQ153: A-D | AR153: 1-D | AS153: A | AT153: Co-8
A154: 151 | B154: 30102911 | C154: 156 | D154: Co | E154: 12 | F154: 1 | L154: S | M154: 52835 | N154: 0 | O154: 1 | Z154: Limitacion orden publico | AA154: =IFERROR(VLOOKUP(B154,'TRAFOS MUESTRA'!$B$3:$D$2000,3,FALSE),"NA") -> NA | AB154: 0 | AC154: 0 | AD154: 0 | AE154: =IF(AD154>0,'COSTO ELEMENTOS N1'!$B$74*Q154,0) -> 0 | AF154: 0 | AG154: 0 | AH154: 0 | AI154: 0 | AJ154: 0 | AK154: 0 | AL154: 71093.52497 | AM154: 0 | AN154: 71093.52497 | AO154: -- | AP154: -- | AQ154: - | AR154: NA-D | AS154: A | AT154: N2
A155: 152 | B155: 30200601 | C155: 157 | D155: Co | E155: 12 | F155: 1 | J155: M | K155: 125 | L155: S | M155: 31470 | N155: 0 | O155: 1 | Z155: - | AA155: =IFERROR(VLOOKUP(B155,'TRAFOS MUESTRA'!$B$3:$D$2000,3,FALSE),"NA") -> 3 | AB155: 0 | AC155: 0 | AD155: 0 | AE155: =IF(AD155>0,'COSTO ELEMENTOS N1'!$B$74*Q155,0) -> 0 | AF155: 0 | AG155: 0 | AH155: 0 | AI155: 0 | AJ155: 0 | AK155: 0 | AL155: 95211.40508 | AM155: 0 | AN155: 95211.40508 | AO155: -- | AP155: -- | AQ155: - | AR155: 3-D | AS155: A | AT155: N2
A156: 153 | B156: 30200801 | C156: 158 | D156: Co | E156: 12 | F156: 1 | L156: S | M156: 28499 | N156: 0 | O156: 1 | Z156: - | AA156: =IFERROR(VLOOKUP(B156,'TRAFOS MUESTRA'!$B$3:$D$2000,3,FALSE),"NA") -> 3 | AB156: 0 | AC156: 0 | AD156: 0 | AE156: =IF(AD156>0,'COSTO ELEMENTOS N1'!$B$74*Q156,0) -> 0 | AF156: 0 | AG156: 0 | AH156: 0 | AI156: 0 | AJ156: 0 | AK156: 0 | AL156: 95211.40508 | AM156: 0 | AN156: 95211.40508 | AO156: -- | AP156: -- | AQ156: - | AR156: 3-D | AS156: A | AT156: N2
A157: 154 | B157: 30201507 | C157: 159 | D157: Co | E157: 12 | F157: 1 | L157: S | N157: 0 | O157: 1 | Z157: - | AA157: =IFERROR(VLOOKUP(B157,'TRAFOS MUESTRA'!$B$3:$D$2000,3,FALSE),"NA") -> NA | AB157: 0 | AC157: 0 | AD157: 0 | AE157: =IF(AD157>0,'COSTO ELEMENTOS N1'!$B$74*Q157,0) -> 0 | AF157: 0 | AG157: 0 | AH157: 0 | AI157: 0 | AJ157: 0 | AK157: 0 | AL157: 71093.52497 | AM157: 0 | AN157: 71093.52497 | AO157: -- | AP157: -- | AQ157: - | AR157: NA-D | AS157: A | AT157: N2
A158: 155 | B158: 30201507 | C158: 160 | D158: Co | E158: 8 | F158: 0 | L158: N | M158: 37034 | N158: 1 | O158: 2 | P158: A | Q158: 57.1 | R158: D | S158: 2 | T158: 2 | U158: Al | V158: 2 | W158: Al | Z158: - | AA158: =IFERROR(VLOOKUP(B158,'TRAFOS MUESTRA'!$B$3:$D$2000,3,FALSE),"NA") -> NA | AB158: 159881.5195 | AC158: 212359.3058 | AD158: 0 | AE158: =IF(AD158>0,'COSTO ELEMENTOS N1'!$B$74*Q158,0) -> 0 | AF158: 79940.75977 | AG158: 106179.6529 | AH158: 239822.2793 | AI158: 318538.9588 | AJ158: 558361.2381 | AK158: 266710.9748 | AL158: 0 | AM158: 0 | AN158: 266710.9748 | AO158: D-Al-2 | AP158: D-Al-2 | AQ158: A-D | AR158: NA-D | AS158: A | AT158: Co-8
A159: 156 | B159: 30201507 | C159: 161 | D159: Co | E159: 8 | F159: 0 | L159: N | N159: 2 | O159: 3 | P159: A | Q159: 53.2 | R159: D | S159: 2 | T159: 2 | U159: Al | V159: 2 | W159: Al | Z159: - | AA159: =IFERROR(VLOOKUP(B159,'TRAFOS MUESTRA'!$B$3:$D$2000,3,FALSE),"NA") -> NA | AB159: 148961.4158 | AC159: 197854.9049 | AD159: 0 | AE159: =IF(AD159>0,'COSTO ELEMENTOS N1'!$B$74*Q159,0) -> 0 | AF159: 74480.70788 | AG159: 98927.45246 | AH159: 223442.1236 | AI159: 296782.3574 | AJ159: 520224.481 | AK159: 266710.9748 | AL159: 0 | AM159: 0 | AN159: 266710.9748 | AO159: D-Al-2 | AP159: D-Al-2 | AQ159: A-D | AR159: NA-D | AS159: A | AT159: Co-8
A160: 157 | B160: 30201507 | C160: 162 | D160: Co | E160: 8 | F160: 0 | L160: N | N160: 3 | O160: 4 | P160: A | Q160: 61.2 | R160: D | S160: 2 | T160: 2 | U160: Al | V160: 2 | W160: Al | Z160: - | AA160: =IFERROR(VLOOKUP(B160,'TRAFOS MUESTRA'!$B$3:$D$2000,3,FALSE),"NA") -> NA | AB160: 171361.6286 | AC160: 227607.5222 | AD160: 0 | AE160: =IF(AD160>0,'COSTO ELEMENTOS N1'!$B$74*Q160,0) -> 0 | AF160: 85680.81432 | AG160: 113803.7611 | AH160: 257042.443 | AI160: 341411.2833 | AJ160: 598453.7263 | AK160: 266710.9748 | AL160: 0 | AM160: 0 | AN160: 266710.9748 | AO160: D-Al-2 | AP160: D-Al-2 | AQ160: A-D | AR160: NA-D | AS160: A | AT160: Co-8
A161: 158 | B161: 30201507 | C161: 163 | D161: Co | E161: 8 | F161: 0 | L161: N | M161: 46256 | N161: 4 | O161: 5 | P161: A | Q161: 60 | R161: D | S161: 2 | T161: 2 | U161: Al | V161: 2 | W161: Al | Z161: - | AA161: =IFERROR(VLOOKUP(B161,'TRAFOS MUESTRA'!$B$3:$D$2000,3,FALSE),"NA") -> NA | AB161: 168001.5967 | AC161: 223144.6296 | AD161: 0 | AE161: =IF(AD161>0,'COSTO ELEMENTOS N1'!$B$74*Q161,0) -> 0 | AF161: 84000.79836 | AG161: 111572.3148 | AH161: 252002.3951 | AI161: 334716.9444 | AJ161: 586719.3395 | AK161: 266710.9748 | AL161: 0 | AM161: 0 | AN161: 266710.9748 | AO161: D-Al-2 | AP161: D-Al-2 | AQ161: A-D | AR161: NA-D | AS161: A | AT161: Co-8
A162: 159 | B162: 30201507 | C162: 164 | D162: Co | E162: 8 | F162: 0 | L162: N | M162: 32943 | N162: 1 | O162: 6 | P162: A | Q162: 56.8 | R162: D | S162: 2 | T162: 2 | U162: Al | V162: 2 | W162: Al | Z162: - | AA162: =IFERROR(VLOOKUP(B162,'TRAFOS MUESTRA'!$B$3:$D$2000,3,FALSE),"NA") -> NA | AB162: 159041.5116 | AC162: 211243.5827 | AD162: 0 | AE162: =IF(AD162>0,'COSTO ELEMENTOS N1'!$B$74*Q162,0) -> 0 | AF162: 79520.75578 | AG162: 105621.7913 | AH162: 238562.2673 | AI162: 316865.374 | AJ162: 555427.6414 | AK162: 266710.9748 | AL162: 0 | AM162: 0 | AN162: 266710.9748 | AO162: D-Al-2 | AP162: D-Al-2 | AQ162: A-D | AR162: NA-D | AS162: A | AT162: Co-8
A163: 160 | B163: 30201516 | C163: 165 | D163: Co | E163: 12 | F163: 1 | L163: S | N163: 0 | O163: 1 | Z163: - | AA163: =IFERROR(VLOOKUP(B163,'TRAFOS MUESTRA'!$B$3:$D$2000,3,FALSE),"NA") -> 4 | AB163: 0 | AC163: 0 | AD163: 0 | AE163: =IF(AD163>0,'COSTO ELEMENTOS N1'!$B$74*Q163,0) -> 0 | AF163: 0 | AG163: 0 | AH163: 0 | AI163: 0 | AJ163: 0 | AK163: 0 | AL163: 95211.40508 | AM163: 0 | AN163: 95211.40508 | AO163: -- | AP163: -- | AQ163: - | AR163: 4-D | AS163: A | AT163: N2
A164: 161 | B164: 30201516 | C164: 166 | D164: Co | E164: 8 | F164: 0 | L164: N | N164: 1 | O164: 2 | P164: A | Q164: 78 | R164: D | S164: 2 | T164: 2 | U164: Al | V164: 2 | W164: Al | Z164: - | AA164: =IFERROR(VLOOKUP(B164,'TRAFOS MUESTRA'!$B$3:$D$2000,3,FALSE),"NA") -> 4 | AB164: 218402.0757 | AC164: 290088.0185 | AD164: 0 | AE164: =IF(AD164>0,'COSTO ELEMENTOS N1'!$B$74*Q164,0) -> 0 | AF164: 109201.0379 | AG164: 145044.0092 | AH164: 327603.1136 | AI164: 435132.0277 | AJ164: 762735.1413 | AK164: 266710.9748 | AL164: 24117.88011 | AM164: 314042.7202 | AN164: 604871.5752 | AO164: D-Al-2 | AP164: D-Al-2 | AQ164: A-D | AR164: 4-D | AS164: A | AT164: Co-8
A165: 162 | B165: 30201516 | C165: 167 | D165: Co | E165: 8 | F165: 0 | L165: N | N165: 1 | O165: 3 | P165: A | Q165: 78 | R165: D | S165: 2 | T165: 2 | U165: Al | V165: 2 | W165: Al | Z165: - | AA165: =IFERROR(VLOOKUP(B165,'TRAFOS MUESTRA'!$B$3:$D$2000,3,FALSE),"NA") -> 4 | AB165: 218402.0757 | AC165: 290088.0185 | AD165: 0 | AE165: =IF(AD165>0,'COSTO ELEMENTOS N1'!$B$74*Q165,0) -> 0 | AF165: 109201.0379 | AG165: 145044.0092 | AH165: 327603.1136 | AI165: 435132.0277 | AJ165: 762735.1413 | AK165: 266710.9748 | AL165: 24117.88011 | AM165: 314042.7202 | AN165: 604871.5752 | AO165: D-Al-2 | AP165: D-Al-2 | AQ165: A-D | AR165: 4-D | AS165: A | AT165: Co-8
A166: 163 | B166: 30201516 | C166: 168 | D166: Co | E166: 8 | F166: 0 | L166: N | N166: 1 | O166: 4 | P166: A | Q166: 78 | R166: D | S166: 2 | T166: 2 | U166: Al | V166: 2 | W166: Al | Z166: - | AA166: =IFERROR(VLOOKUP(B166,'TRAFOS MUESTRA'!$B$3:$D$2000,3,FALSE),"NA") -> 4 | AB166: 218402.0757 | AC166: 290088.0185 | AD166: 0 | AE166: =IF(AD166>0,'COSTO ELEMENTOS N1'!$B$74*Q166,0) -> 0 | AF166: 109201.0379 | AG166: 145044.0092 | AH166: 327603.1136 | AI166: 435132.0277 | AJ166: 762735.1413 | AK166: 266710.9748 | AL166: 24117.88011 | AM166: 314042.7202 | AN166: 604871.5752 | AO166: D-Al-2 | AP166: D-Al-2 | AQ166: A-D | AR166: 4-D | AS166: A | AT166: Co-8
A167: 164 | B167: 30201516 | C167: 169 | D167: Co | E167: 8 | F167: 0 | L167: S | M167: 55926/IL16325 | N167: 4 | O167: 5 | P167: A | Q167: 80 | R167: D | S167: 2 | T167: 2 | U167: Al | V167: 2 | W167: Al | Z167: - | AA167: =IFERROR(VLOOKUP(B167,'TRAFOS MUESTRA'!$B$3:$D$2000,3,FALSE),"NA") -> 4 | AB167: 224002.1289 | AC167: 297526.1728 | AD167: 0 | AE167: =IF(AD167>0,'COSTO ELEMENTOS N1'!$B$74*Q167,0) -> 0 | AF167: 112001.0645 | AG167: 148763.0864 | AH167: 336003.1934 | AI167: 446289.2592 | AJ167: 782292.4526 | AK167: 266710.9748 | AL167: 95211.40508 | AM167: 314042.7202 | AN167: 675965.1001 | AO167: D-Al-2 | AP167: D-Al-2 | AQ167: A-D | AR167: 4-D | AS167: A | AT167: Co-8
A168: 165 | B168: 40100401 | C168: 170 | D168: Co | E168: 12 | F168: 1 | L168: S | M168: SD14553, SD14554 | N168: 0 | O168: 1 | Z168: - | AA168: =IFERROR(VLOOKUP(B168,'TRAFOS MUESTRA'!$B$3:$D$2000,3,FALSE),"NA") -> NA | AB168: 0 | AC168: 0 | AD168: 0 | AE168: =IF(AD168>0,'COSTO ELEMENTOS N1'!$B$74*Q168,0) -> 0 | AF168: 0 | AG168: 0 | AH168: 0 | AI168: 0 | AJ168: 0 | AK168: 0 | AL168: 71093.52497 | AM168: 0 | AN168: 71093.52497 | AO168: -- | AP168: -- | AQ168: - | AR168: NA-D | AS168: A | AT168: N2
A169: 166 | B169: 40100401 | C169: 171 | D169: Ma | E169: 8 | F169: 0 | L169: N | N169: 1 | O169: 2 | P169: A | Q169: 41.9 | R169: D | S169: 2 | T169: 2 | U169: Al | V169: 2 | W169: Al | Z169: - | AA169: =IFERROR(VLOOKUP(B169,'TRAFOS MUESTRA'!$B$3:$D$2000,3,FALSE),"NA") -> NA | AB169: 117321.115 | AC169: 155829.333 | AD169: 0 | AE169: =IF(AD169>0,'COSTO ELEMENTOS N1'!$B$74*Q169,0) -> 0 | AF169: 58660.55752 | AG169: 77914.6665 | AH169: 175981.6726 | AI169: 233743.9995 | AJ169: 409725.6721 | AK169: 221698.6336 | AL169: 0 | AM169: 0 | AN169: 221698.6336 | AO169: D-Al-2 | AP169: D-Al-2 | AQ169: A-D | AR169: NA-D | AS169: A | AT169: Ma-8
A170: 167 | B170: 40100401 | C170: 172 | D170: Ma | E170: 8 | F170: 0 | L170: N | N170: 2 | O170: 3 | P170: A | Q170: 40.2 | R170: D | S170: 2 | T170: 2 | U170: Al | V170: 2 | W170: Al | Z170: - | AA170: =IFERROR(VLOOKUP(B170,'TRAFOS MUESTRA'!$B$3:$D$2000,3,FALSE),"NA") -> NA | AB170: 112561.0698 | AC170: 149506.9018 | AD170: 0 | AE170: =IF(AD170>0,'COSTO ELEMENTOS N1'!$B$74*Q170,0) -> 0 | AF170: 56280.5349 | AG170: 74753.45092 | AH170: 168841.6047 | AI170: 224260.3527 | AJ170: 393101.9574 | AK170: 221698.6336 | AL170: 0 | AM170: 0 | AN170: 221698.6336 | AO170: D-Al-2 | AP170: D-Al-2 | AQ170: A-D | AR170: NA-D | AS170: A | AT170: Ma-8
A171: 168 | B171: 40100401 | C171: 173 | D171: Ma | E171: 8 | F171: 0 | L171: N | N171: 3 | O171: 4 | P171: A | Q171: 41.5 | R171: D | S171: 2 | T171: 2 | U171: Al | V171: 2 | W171: Al | Z171: - | AA171: =IFERROR(VLOOKUP(B171,'TRAFOS MUESTRA'!$B$3:$D$2000,3,FALSE),"NA") -> NA | AB171: 116201.1044 | AC171: 154341.7021 | AD171: 0 | AE171: =IF(AD171>0,'COSTO ELEMENTOS N1'!$B$74*Q171,0) -> 0 | AF171: 58100.5522 | AG171: 77170.85107 | AH171: 174301.6566 | AI171: 231512.5532 | AJ171: 405814.2098 | AK171: 221698.6336 | AL171: 0 | AM171: 0 | AN171: 221698.6336 | AO171: D-Al-2 | AP171: D-Al-2 | AQ171: A-D | AR171: NA-D | AS171: A | AT171: Ma-8
A172: 169 | B172: 40100401 | C172: 174 | D172: Ma | E172: 8 | F172: 0 | L172: N | N172: 4 | O172: 5 | P172: A | Q172: 41.4 | R172: D | S172: 2 | T172: 2 | U172: Al | V172: 2 | W172: Al | Z172: - | AA172: =IFERROR(VLOOKUP(B172,'TRAFOS MUESTRA'!$B$3:$D$2000,3,FALSE),"NA") -> NA | AB172: 115921.1017 | AC172: 153969.7944 | AD172: 0 | AE172: =IF(AD172>0,'COSTO ELEMENTOS N1'!$B$74*Q172,0) -> 0 | AF172: 57960.55087 | AG172: 76984.89721 | AH172: 173881.6526 | AI172: 230954.6916 | AJ172: 404836.3442 | AK172: 221698.6336 | AL172: 0 | AM172: 0 | AN172: 221698.6336 | AO172: D-Al-2 | AP172: D-Al-2 | AQ172: A-D | AR172: NA-D | AS172: A | AT172: Ma-8
A173: 170 | B173: 40100401 | C173: 175 | D173: Ma | E173: 8 | F173: 0 | L173: N | N173: 5 | O173: 6 | P173: A | Q173: 41.3 | R173: D | S173: 2 | T173: 2 | U173: Al | V173: 2 | W173: Al | Z173: - | AA173: =IFERROR(VLOOKUP(B173,'TRAFOS MUESTRA'!$B$3:$D$2000,3,FALSE),"NA") -> NA | AB173: 115641.0991 | AC173: 153597.8867 | AD173: 0 | AE173: =IF(AD173>0,'COSTO ELEMENTOS N1'!$B$74*Q173,0) -> 0 | AF173: 57820.54953 | AG173: 76798.94335 | AH173: 173461.6486 | AI173: 230396.8301 | AJ173: 403858.4787 | AK173: 221698.6336 | AL173: 0 | AM173: 0 | AN173: 221698.6336 | AO173: D-Al-2 | AP173: D-Al-2 | AQ173: A-D | AR173: NA-D | AS173: A | AT173: Ma-8
A174: 171 | B174: 40100401 | C174: 176 | D174: Co | E174: 8 | F174: 0 | L174: N | M174: SD14556 | N174: 6 | O174: 7 | P174: A | Q174: 40.6 | R174: D | S174: 2 | T174: 2 | U174: Al | V174: 2 | W174: Al | Z174: - | AA174: =IFERROR(VLOOKUP(B174,'TRAFOS MUESTRA'!$B$3:$D$2000,3,FALSE),"NA") -> NA | AB174: 113681.0804 | AC174: 150994.5327 | AD174: 0 | AE174: =IF(AD174>0,'COSTO ELEMENTOS N1'!$B$74*Q174,0) -> 0 | AF174: 56840.54022 | AG174: 75497.26635 | AH174: 170521.6207 | AI174: 226491.799 | AJ174: 397013.4197 | AK174: 266710.9748 | AL174: 0 | AM174: 0 | AN174: 266710.9748 | AO174: D-Al-2 | AP174: D-Al-2 | AQ174: A-D | AR174: NA-D | AS174: A | AT174: Co-8
A175: 172 | B175: 40100401 | C175: 177 | D175: Co | E175: 12 | F175: 1 | L175: N | N175: 7 | O175: 8 | P175: A | Q175: 104.2 | R175: D | S175: 2 | T175: 2 | U175: Al | V175: 2 | W175: Al | Z175: - | AA175: =IFERROR(VLOOKUP(B175,'TRAFOS MUESTRA'!$B$3:$D$2000,3,FALSE),"NA") -> NA | AB175: 291762.773 | AC175: 387527.8401 | AD175: 0 | AE175: =IF(AD175>0,'COSTO ELEMENTOS N1'!$B$74*Q175,0) -> 0 | AF175: 145881.3865 | AG175: 193763.92 | AH175: 437644.1594 | AI175: 581291.7601 | AJ175: 1018935.92 | AK175: 0 | AL175: 0 | AM175: 0 | AN175: 0 | AO175: D-Al-2 | AP175: D-Al-2 | AQ175: A-D | AR175: NA-D | AS175: A | AT175: N2
A176: 173 | B176: 40100401 | C176: 178 | D176: Co | E176: 12 | F176: 1 | L176: N | N176: 8 | O176: 9 | P176: A | Q176: 103.6 | R176: D | S176: 2 | T176: 2 | U176: Al | V176: 2 | W176: Al | Z176: - | AA176: =IFERROR(VLOOKUP(B176,'TRAFOS MUESTRA'!$B$3:$D$2000,3,FALSE),"NA") -> NA | AB176: 290082.757 | AC176: 385296.3938 | AD176: 0 | AE176: =IF(AD176>0,'COSTO ELEMENTOS N1'!$B$74*Q176,0) -> 0 | AF176: 145041.3785 | AG176: 192648.1969 | AH176: 435124.1355 | AI176: 577944.5907 | AJ176: 1013068.726 | AK176: 0 | AL176: 0 | AM176: 0 | AN176: 0 | AO176: D-Al-2 | AP176: D-Al-2 | AQ176: A-D | AR176: NA-D | AS176: A | AT176: N2
A177: 174 | B177: 40100401 | C177: 179 | D177: Co | E177: 8 | F177: 0 | L177: N | M177: SD14555 | N177: 9 | O177: 10 | P177: A | Q177: 30.2 | R177: D | S177: 2 | T177: 2 | U177: Al | V177: 2 | W177: Al | Z177: - | AA177: =IFERROR(VLOOKUP(B177,'TRAFOS MUESTRA'!$B$3:$D$2000,3,FALSE),"NA") -> NA | AB177: 84560.80368 | AC177: 112316.1302 | AD177: 0 | AE177: =IF(AD177>0,'COSTO ELEMENTOS N1'!$B$74*Q177,0) -> 0 | AF177: 42280.40184 | AG177: 56158.06512 | AH177: 126841.2055 | AI177: 168474.1953 | AJ177: 295315.4009 | AK177: 266710.9748 | AL177: 0 | AM177: 0 | AN177: 266710.9748 | AO177: D-Al-2 | AP177: D-Al-2 | AQ177: A-D | AR177: NA-D | AS177: A | AT177: Co-8
A178: 175 | B178: 40100806 | C178: 180 | D178: Co | E178: 12 | F178: 1 | L178: S | N178: 0 | O178: 1 | Z178: - | AA178: =IFERROR(VLOOKUP(B178,'TRAFOS MUESTRA'!$B$3:$D$2000,3,FALSE),"NA") -> NA | AB178: 0 | AC178: 0 | AD178: 0 | AE178: =IF(AD178>0,'COSTO ELEMENTOS N1'!$B$74*Q178,0) -> 0 | AF178: 0 | AG178: 0 | AH178: 0 | AI178: 0 | AJ178: 0 | AK178: 0 | AL178: 71093.52497 | AM178: 0 | AN178: 71093.52497 | AO178: -- | AP178: -- | AQ178: - | AR178: NA-D | AS178: A | AT178: N2
A179: 176 | B179: 40100806 | C179: 181 | D179: Co | E179: 8 | F179: 0 | L179: N | M179: 34433 | N179: 1 | O179: 2 | P179: A | Q179: 56.9 | R179: D | S179: 2 | T179: 6 | U179: Al | V179: 6 | W179: Al | Z179: - | AA179: =IFERROR(VLOOKUP(B179,'TRAFOS MUESTRA'!$B$3:$D$2000,3,FALSE),"NA") -> NA | AB179: 82207.37755 | AC179: 211615.4904 | AD179: 0 | AE179: =IF(AD179>0,'COSTO ELEMENTOS N1'!$B$74*Q179,0) -> 0 | AF179: 41103.68877 | AG179: 105807.7452 | AH179: 123311.0663 | AI179: 317423.2356 | AJ179: 440734.3019 | AK179: 266710.9748 | AL179: 0 | AM179: 0 | AN179: 266710.9748 | AO179: D-Al-6 | AP179: D-Al-6 | AQ179: A-D | AR179: NA-D | AS179: A | AT179: Co-8
A180: 177 | B180: 40200105 | C180: 182 | D180: Co | E180: 12 | F180: 1 | L180: S | M180: 58168 | N180: 0 | O180: 1 | Z180: - | AA180: =IFERROR(VLOOKUP(B180,'TRAFOS MUESTRA'!$B$3:$D$2000,3,FALSE),"NA") -> 1 | AB180: 0 | AC180: 0 | AD180: 0 | AE180: =IF(AD180>0,'COSTO ELEMENTOS N1'!$B$74*Q180,0) -> 0 | AF180: 0 | AG180: 0 | AH180: 0 | AI180: 0 | AJ180: 0 | AK180: 0 | AL180: 95211.40508 | AM180: 0 | AN180: 95211.40508 | AO180: -- | AP180: -- | AQ180: - | AR180: 1-D | AS180: A | AT180: N2
A181: 178 | B181: 50100208 | C181: 183 | D181: Co | E181: 12 | F181: 1 | L181: S | M181: IL28312 | N181: 0 | O181: 1 | Z181: - | AA181: =IFERROR(VLOOKUP(B181,'TRAFOS MUESTRA'!$B$3:$D$2000,3,FALSE),"NA") -> 3 | AB181: 0 | AC181: 0 | AD181: 0 | AE181: =IF(AD181>0,'COSTO ELEMENTOS N1'!$B$74*Q181,0) -> 0 | AF181: 0 | AG181: 0 | AH181: 0 | AI181: 0 | AJ181: 0 | AK181: 0 | AL181: 95211.40508 | AM181: 0 | AN181: 95211.40508 | AO181: -- | AP181: -- | AQ181: - | AR181: 3-D | AS181: A | AT181: N2
A182: 179 | B182: 50100208 | C182: 184 | D182: Co | E182: 8 | F182: 1 | L182: N | M182: 49004/48962 | N182: 1 | O182: 2 | P182: A | Q182: 44.9 | R182: A | S182: 1 | T182: 8 | U182: Cu | V182: 8 | W182: Cu | Z182: - | AA182: =IFERROR(VLOOKUP(B182,'TRAFOS MUESTRA'!$B$3:$D$2000,3,FALSE),"NA") -> 3 | AB182: 89479.55669 | AC182: 83493.28224 | AD182: 0 | AE182: =IF(AD182>0,'COSTO ELEMENTOS N1'!$B$74*Q182,0) -> 0 | AF182: 89479.55669 | AG182: 83493.28224 | AH182: 178959.1134 | AI182: 166986.5645 | AJ182: 345945.6779 | AK182: 266710.9748 | AL182: 24117.88011 | AM182: 233556.263 | AN182: 524385.118 | AO182: A-Cu-8 | AP182: A-Cu-8 | AQ182: A-A | AR182: 3-A | AS182: A | AT182: Co-8
A183: 180 | B183: 50100208 | C183: 185 | D183: Co | E183: 8 | F183: 1 | L183: S | M183: 49005 | N183: 2 | O183: 3 | P183: A | Q183: 54.9 | R183: A | S183: 1 | T183: 8 | U183: Cu | V183: 8 | W183: Cu | Z183: - | AA183: =IFERROR(VLOOKUP(B183,'TRAFOS MUESTRA'!$B$3:$D$2000,3,FALSE),"NA") -> 3 | AB183: 109408.1885 | AC183: 102088.668 | AD183: 0 | AE183: =IF(AD183>0,'COSTO ELEMENTOS N1'!$B$74*Q183,0) -> 0 | AF183: 109408.1885 | AG183: 102088.668 | AH183: 218816.3769 | AI183: 204177.3361 | AJ183: 422993.713 | AK183: 266710.9748 | AL183: 95211.40508 | AM183: 233556.263 | AN183: 595478.6429 | AO183: A-Cu-8 | AP183: A-Cu-8 | AQ183: A-A | AR183: 3-A | AS183: A | AT183: Co-8
A184: 181 | B184: 50100303 | C184: 186 | D184: Co | E184: 12 | F184: 1 | L184: S | N184: 0 | O184: 1 | P184: A | Z184: - | AA184: =IFERROR(VLOOKUP(B184,'TRAFOS MUESTRA'!$B$3:$D$2000,3,FALSE),"NA") -> NA | AB184: 0 | AC184: 0 | AD184: 0 | AE184: =IF(AD184>0,'COSTO ELEMENTOS N1'!$B$74*Q184,0) -> 0 | AF184: 0 | AG184: 0 | AH184: 0 | AI184: 0 | AJ184: 0 | AK184: 0 | AL184: 71093.52497 | AM184: 0 | AN184: 71093.52497 | AO184: -- | AP184: -- | AQ184: A- | AR184: NA-D | AS184: A | AT184: N2
A185: 182 | B185: 50100303 | C185: 187 | D185: Co | E185: 8 | F185: 0 | L185: N | N185: 1 | O185: 2 | P185: A | Q185: 38.9 | R185: D | S185: 2 | T185: 2 | U185: Al | V185: 2 | W185: Al | Z185: - | AA185: =IFERROR(VLOOKUP(B185,'TRAFOS MUESTRA'!$B$3:$D$2000,3,FALSE),"NA") -> NA | AB185: 108921.0352 | AC185: 144672.1015 | AD185: 0 | AE185: =IF(AD185>0,'COSTO ELEMENTOS N1'!$B$74*Q185,0) -> 0 | AF185: 54460.5176 | AG185: 72336.05076 | AH185: 163381.5528 | AI185: 217008.1523 | AJ185: 380389.7051 | AK185: 266710.9748 | AL185: 0 | AM185: 0 | AN185: 266710.9748 | AO185: D-Al-2 | AP185: D-Al-2 | AQ185: A-D | AR185: NA-D | AS185: A | AT185: Co-8
A186: 183 | B186: 50100303 | C186: 188 | D186: Co | E186: 8 | F186: 0 | L186: N | N186: 2 | O186: 3 | P186: A | Q186: 44 | R186: D | S186: 2 | T186: 2 | U186: Al | V186: 2 | W186: Al | Z186: - | AA186: =IFERROR(VLOOKUP(B186,'TRAFOS MUESTRA'!$B$3:$D$2000,3,FALSE),"NA") -> NA | AB186: 123201.1709 | AC186: 163639.395 | AD186: 0 | AE186: =IF(AD186>0,'COSTO ELEMENTOS N1'!$B$74*Q186,0) -> 0 | AF186: 61600.58546 | AG186: 81819.69752 | AH186: 184801.7564 | AI186: 245459.0926 | AJ186: 430260.8489 | AK186: 266710.9748 | AL186: 0 | AM186: 0 | AN186: 266710.9748 | AO186: D-Al-2 | AP186: D-Al-2 | AQ186: A-D | AR186: NA-D | AS186: A | AT186: Co-8
A187: 184 | B187: 50100303 | C187: 189 | D187: Co | E187: 8 | F187: 0 | L187: N | N187: 3 | O187: 4 | P187: A | Q187: 39.6 | R187: D | S187: 2 | T187: 2 | U187: Al | V187: 2 | W187: Al | Z187: - | AA187: =IFERROR(VLOOKUP(B187,'TRAFOS MUESTRA'!$B$3:$D$2000,3,FALSE),"NA") -> NA | AB187: 110881.0538 | AC187: 147275.4555 | AD187: 0 | AE187: =IF(AD187>0,'COSTO ELEMENTOS N1'!$B$74*Q187,0) -> 0 | AF187: 55440.52691 | AG187: 73637.72777 | AH187: 166321.5807 | AI187: 220913.1833 | AJ187: 387234.764 | AK187: 266710.9748 | AL187: 0 | AM187: 0 | AN187: 266710.9748 | AO187: D-Al-2 | AP187: D-Al-2 | AQ187: A-D | AR187: NA-D | AS187: A | AT187: Co-8
A188: 185 | B188: 50100303 | C188: 190 | D188: Co | E188: 8 | F188: 0 | L188: N | N188: 4 | O188: 5 | P188: A | Q188: 42.7 | R188: D | S188: 2 | T188: 2 | U188: Al | V188: 2 | W188: Al | Z188: - | AA188: =IFERROR(VLOOKUP(B188,'TRAFOS MUESTRA'!$B$3:$D$2000,3,FALSE),"NA") -> NA | AB188: 119561.1363 | AC188: 158804.5947 | AD188: 0 | AE188: =IF(AD188>0,'COSTO ELEMENTOS N1'!$B$74*Q188,0) -> 0 | AF188: 59780.56816 | AG188: 79402.29737 | AH188: 179341.7045 | AI188: 238206.8921 | AJ188: 417548.5966 | AK188: 266710.9748 | AL188: 0 | AM188: 0 | AN188: 266710.9748 | AO188: D-Al-2 | AP188: D-Al-2 | AQ188: A-D | AR188: NA-D | AS188: A | AT188: Co-8
A189: 186 | B189: 50100303 | C189: 191 | D189: Co | E189: 8 | F189: 0 | L189: N | N189: 5 | O189: 6 | P189: A | Q189: 41.7 | R189: D | S189: 2 | T189: 2 | U189: Al | V189: 2 | W189: Al | Z189: - | AA189: =IFERROR(VLOOKUP(B189,'TRAFOS MUESTRA'!$B$3:$D$2000,3,FALSE),"NA") -> NA | AB189: 116761.1097 | AC189: 155085.5176 | AD189: 0 | AE189: =IF(AD189>0,'COSTO ELEMENTOS N1'!$B$74*Q189,0) -> 0 | AF189: 58380.55486 | AG189: 77542.75879 | AH189: 175141.6646 | AI189: 232628.2764 | AJ189: 407769.9409 | AK189: 266710.9748 | AL189: 0 | AM189: 0 | AN189: 266710.9748 | AO189: D-Al-2 | AP189: D-Al-2 | AQ189: A-D | AR189: NA-D | AS189: A | AT189: Co-8
A190: 187 | B190: 50100303 | C190: 192 | D190: Co | E190: 8 | F190: 0 | L190: N | M190: 45600 | N190: 6 | O190: 7 | P190: A | Q190: 42.8 | R190: D | S190: 2 | T190: 2 | U190: Al | V190: 2 | W190: Al | Z190: - | AA190: =IFERROR(VLOOKUP(B190,'TRAFOS MUESTRA'!$B$3:$D$2000,3,FALSE),"NA") -> NA | AB190: 119841.139 | AC190: 159176.5024 | AD190: 0 | AE190: =IF(AD190>0,'COSTO ELEMENTOS N1'!$B$74*Q190,0) -> 0 | AF190: 59920.56949 | AG190: 79588.25122 | AH190: 179761.7085 | AI190: 238764.7537 | AJ190: 418526.4622 | AK190: 266710.9748 | AL190: 0 | AM190: 0 | AN190: 266710.9748 | AO190: D-Al-2 | AP190: D-Al-2 | AQ190: A-D | AR190: NA-D | AS190: A | AT190: Co-8
A191: 188 | B191: 50100303 | C191: 193 | D191: Co | E191: 8 | F191: 0 | L191: N | M191: 43184 | N191: 1 | O191: 8 | P191: A | Q191: 38 | R191: D | S191: 2 | T191: 2 | U191: Al | V191: 2 | W191: Al | Z191: - | AA191: =IFERROR(VLOOKUP(B191,'TRAFOS MUESTRA'!$B$3:$D$2000,3,FALSE),"NA") -> NA | AB191: =IFERROR((VLOOKUP(AO191,COSTO_CONDUCTORES,5,FALSE))*Q191*S191,0) -> 106401.0113 | AC191: =IFERROR(VLOOKUP($AQ191,COSTO_INSTALACIÓN_CONDUCTOR,2,FALSE)*Q191*S191,0) -> 141324.9321 | AD191: =IFERROR(VLOOKUP(AT191,COSTO_CANALIZACION_SUBTERRANEO,2,FALSE),0)*Q191 -> 0 | AE191: =IF(AD191>0,'COSTO ELEMENTOS N1'!$B$74*Q191,0) -> 0 | AF191: =IFERROR(VLOOKUP(AP191,COSTO_CONDUCTORES,5,FALSE),0)*Q191 -> 53200.50563 | AG191: =IFERROR(VLOOKUP($AQ191,COSTO_INSTALACIÓN_CONDUCTOR,2,FALSE),0)*Q191 -> 70662.46604 | AH191: 159601.5169 | AI191: 211987.3981 | AJ191: 371588.915 | AK191: =IFERROR(VLOOKUP($AT191,COSTO_APOYOS,5,FALSE),0) -> 266710.9748 | AL191: =IF(AS191="SD",0,IF(AS191="A",IFERROR(VLOOKUP(AR191,COSTO_INSTALACIÓN_APOYOS,2,FALSE),0),0))+IF(L191="S",PUESTA_TIERRA,0) -> 0 | AM191: =IF(AS191="SD",0,IF(AS191="S",IFERROR(VLOOKUP(G191,COSTO_INSTALACION_CAMARAS,2,FALSE),0),IF(AT191="N2",0,IFERROR(VLOOKUP(AR191,COSTO_INSTALACIÓN_APOYOS,3,FALSE),0)))) -> 0 | AN191: 266710.9748 | AO191: D-Al-2 | AP191: D-Al-2 | AQ191: A-D | AR191: NA-D | AS191: =IFERROR(VLOOKUP(D191&"-"&E191,COSTO_APOYOS,2,FALSE),IFERROR(VLOOKUP(G191&"-"&H191,COSTO_APOYOS,2,FALSE),"SD")) -> A | AT191: Co-8
A192: 189 | B192: 50100303 | C192: 194 | D192: Co | E192: 8 | F192: 0 | L192: N | N192: 1 | O192: 9 | P192: A | Q192: 47.9 | R192: D | S192: 2 | T192: 2 | U192: Al | V192: 2 | W192: Al | Z192: - | AA192: =IFERROR(VLOOKUP(B192,'TRAFOS MUESTRA'!$B$3:$D$2000,3,FALSE),"NA") -> NA | AB192: 134121.2747 | AC192: 178143.796 | AD192: 0 | AE192: =IF(AD192>0,'COSTO ELEMENTOS N1'!$B$74*Q192,0) -> 0 | AF192: 67060.63735 | AG192: 89071.89798 | AH192: =AB192+AD192+AF192 -> 201181.9121 | AI192: =AC192+AE192+AG192 -> 267215.6939 | AJ192: =SUM(AH192:AI192) -> 468397.606 | AK192: 266710.9748 | AL192: 0 | AM192: 0 | AN192: =SUM(AK192:AM192) -> 266710.9748 | AO192: =$R192&"-"&$U192&"-"&$T192 -> D-Al-2 | AP192: =$R192&"-"&$W192&"-"&$V192 -> D-Al-2 | AQ192: =P192&"-"&R192 -> A-D | AR192: =AA192&"-"&IF(R192="","D",R192) -> NA-D | AS192: A | AT192: =IF(AS192="S",G192&"-"&H192,IF(E192>10,"N2",D192&"-"&E192)) -> Co-8
A193: 190 | B193: 50100303 | C193: 195 | D193: Co | E193: 12 | F193: 1 | L193: N | N193: 9 | O193: 10 | P193: A | Q193: 47.7 | R193: D | S193: 2 | T193: 2 | U193: Al | V193: 2 | W193: Al | Z193: - | AA193: =IFERROR(VLOOKUP(B193,'TRAFOS MUESTRA'!$B$3:$D$2000,3,FALSE),"NA") -> NA | AB193: 133561.2694 | AC193: 177399.9805 | AD193: 0 | AE193: =IF(AD193>0,'COSTO ELEMENTOS N1'!$B$74*Q193,0) -> 0 | AF193: 66780.63469 | AG193: 88699.99027 | AH193: 200341.9041 | AI193: 266099.9708 | AJ193: 466441.8749 | AK193: 0 | AL193: 0 | AM193: 0 | AN193: 0 | AO193: D-Al-2 | AP193: D-Al-2 | AQ193: A-D | AR193: NA-D | AS193: A | AT193: N2
A194: 191 | B194: 50100303 | C194: 196 | D194: Co | E194: 8 | F194: 0 | L194: N | N194: 1 | O194: 11 | P194: A | Q194: 91.4 | R194: D | S194: 3 | T194: 2 | U194: Al | V194: 2 | W194: Al | Z194: - | AA194: =IFERROR(VLOOKUP(B194,'TRAFOS MUESTRA'!$B$3:$D$2000,3,FALSE),"NA") -> NA | AB194: 383883.6485 | AC194: 509885.4786 | AD194: 0 | AE194: =IF(AD194>0,'COSTO ELEMENTOS N1'!$B$74*Q194,0) -> 0 | AF194: 127961.2162 | AG194: 169961.8262 | AH194: 511844.8646 | AI194: 679847.3048 | AJ194: 1191692.169 | AK194: 266710.9748 | AL194: 0 | AM194: 0 | AN194: 266710.9748 | AO194: D-Al-2 | AP194: D-Al-2 | AQ194: A-D | AR194: NA-D | AS194: A | AT194: Co-8
A195: 192 | B195: 50100303 | C195: 197 | D195: Co | E195: 12 | F195: 1 | L195: N | M195: 43356 | N195: 11 | O195: 12 | P195: A | Q195: 90.3 | R195: D | S195: 3 | T195: 2 | U195: Al | V195: 2 | W195: Al | Z195: - | AA195: =IFERROR(VLOOKUP(B195,'TRAFOS MUESTRA'!$B$3:$D$2000,3,FALSE),"NA") -> NA | AB195: 379263.6046 | AC195: 503749.0013 | AD195: 0 | AE195: =IF(AD195>0,'COSTO ELEMENTOS N1'!$B$74*Q195,0) -> 0 | AF195: 126421.2015 | AG195: 167916.3338 | AH195: 505684.8061 | AI195: 671665.3351 | AJ195: 1177350.141 | AK195: 0 | AL195: 0 | AM195: 0 | AN195: 0 | AO195: D-Al-2 | AP195: D-Al-2 | AQ195: A-D | AR195: NA-D | AS195: A | AT195: N2
A196: 193 | B196: 50100303 | C196: 198 | D196: Co | E196: 8 | F196: 0 | L196: N | M196: 42873 | N196: 12 | O196: 13 | P196: A | Q196: 223.8 | R196: D | S196: 3 | T196: 2 | U196: Al | V196: 2 | W196: Al | Z196: - | AA196: =IFERROR(VLOOKUP(B196,'TRAFOS MUESTRA'!$B$3:$D$2000,3,FALSE),"NA") -> NA | AB196: 939968.9336 | AC196: 1248494.203 | AD196: 0 | AE196: =IF(AD196>0,'COSTO ELEMENTOS N1'!$B$74*Q196,0) -> 0 | AF196: 313322.9779 | AG196: 416164.7342 | AH196: 1253291.911 | AI196: 1664658.937 | AJ196: 2917950.848 | AK196: 266710.9748 | AL196: 0 | AM196: 0 | AN196: 266710.9748 | AO196: D-Al-2 | AP196: D-Al-2 | AQ196: A-D | AR196: NA-D | AS196: A | AT196: Co-8
A197: 194 | B197: 50100303 | C197: 199 | D197: Co | E197: 8 | F197: 0 | L197: N | N197: 12 | O197: 14 | P197: A | Q197: 49.8 | R197: D | S197: 3 | T197: 2 | U197: Al | V197: 2 | W197: Al | Z197: - | AA197: =IFERROR(VLOOKUP(B197,'TRAFOS MUESTRA'!$B$3:$D$2000,3,FALSE),"NA") -> NA | AB197: 209161.9879 | AC197: 277815.0639 | AD197: 0 | AE197: =IF(AD197>0,'COSTO ELEMENTOS N1'!$B$74*Q197,0) -> 0 | AF197: 69720.66264 | AG197: 92605.02128 | AH197: 278882.6505 | AI197: 370420.0851 | AJ197: 649302.7357 | AK197: 266710.9748 | AL197: 0 | AM197: 0 | AN197: 266710.9748 | AO197: D-Al-2 | AP197: D-Al-2 | AQ197: A-D | AR197: NA-D | AS197: A | AT197: Co-8
A198: =A197+1 -> 195 | B198: 50100303 | C198: 200 | D198: Co | E198: 8 | F198: 0 | L198: N | N198: 14 | O198: 15 | P198: A | Q198: 47.9 | R198: D | S198: 3 | T198: 2 | U198: Al | V198: 2 | W198: Al | Z198: - | AA198: =IFERROR(VLOOKUP(B198,'TRAFOS MUESTRA'!$B$3:$D$2000,3,FALSE),"NA") -> NA | AB198: 201181.9121 | AC198: 267215.6939 | AD198: 0 | AE198: =IF(AD198>0,'COSTO ELEMENTOS N1'!$B$74*Q198,0) -> 0 | AF198: 67060.63735 | AG198: 89071.89798 | AH198: 268242.5494 | AI198: 356287.5919 | AJ198: 624530.1413 | AK198: 266710.9748 | AL198: 0 | AM198: 0 | AN198: 266710.9748 | AO198: D-Al-2 | AP198: D-Al-2 | AQ198: A-D | AR198: NA-D | AS198: A | AT198: Co-8
A199: 196 | B199: 50100303 | C199: 201 | D199: Co | E199: 8 | F199: 0 | L199: N | N199: 15 | O199: 16 | P199: A | Q199: 47.4 | R199: D | S199: 3 | T199: 2 | U199: Al | V199: 2 | W199: Al | Z199: - | AA199: =IFERROR(VLOOKUP(B199,'TRAFOS MUESTRA'!$B$3:$D$2000,3,FALSE),"NA") -> NA | AB199: 199081.8921 | AC199: 264426.3861 | AD199: 0 | AE199: =IF(AD199>0,'COSTO ELEMENTOS N1'!$B$74*Q199,0) -> 0 | AF199: 66360.6307 | AG199: 88142.12869 | AH199: 265442.5228 | AI199: 352568.5148 | AJ199: 618011.0376 | AK199: 266710.9748 | AL199: 0 | AM199: 0 | AN199: 266710.9748 | AO199: D-Al-2 | AP199: D-Al-2 | AQ199: A-D | AR199: NA-D | AS199: A | AT199: Co-8
A200: 197 | B200: 50200010 | C200: 202 | D200: Co | E200: 12 | F200: 1 | L200: S | M200: 39079/37935/40922/40921/48671 | N200: 0 | O200: 1 | Z200: - | AA200: =IFERROR(VLOOKUP(B200,'TRAFOS MUESTRA'!$B$3:$D$2000,3,FALSE),"NA") -> 3 | AB200: 0 | AC200: 0 | AD200: 0 | AE200: =IF(AD200>0,'COSTO ELEMENTOS N1'!$B$74*Q200,0) -> 0 | AF200: 0 | AG200: 0 | AH200: 0 | AI200: 0 | AJ200: 0 | AK200: 0 | AL200: 95211.40508 | AM200: 0 | AN200: 95211.40508 | AO200: -- | AP200: -- | AQ200: - | AR200: 3-D | AS200: A | AT200: N2
A201: 198 | B201: 50200712 | C201: 203 | D201: Co | E201: 12 | F201: 1 | L201: S | N201: 0 | O201: 1 | Z201: - | AA201: =IFERROR(VLOOKUP(B201,'TRAFOS MUESTRA'!$B$3:$D$2000,3,FALSE),"NA") -> NA | AB201: 0 | AC201: 0 | AD201: 0 | AE201: =IF(AD201>0,'COSTO ELEMENTOS N1'!$B$74*Q201,0) -> 0 | AF201: 0 | AG201: 0 | AH201: 0 | AI201: 0 | AJ201: 0 | AK201: 0 | AL201: 71093.52497 | AM201: 0 | AN201: 71093.52497 | AO201: -- | AP201: -- | AQ201: - | AR201: NA-D | AS201: A | AT201: N2
... 33445 more rows

Sheet TRAFOS MUESTRA
B1: 1 | C1: =B1+1 -> 2 | D1: =C1+1 -> 3 | E1: 4 | F1: 5 | G1: 6 | H1: 7
A2: No. | B2: A02CODIGO | C2: A02FECHAINFORMACION | D2: A02GRUPO | E2: A02CAPACIDADNOMINAL | F2: A02KVAMAXIMON1 | G2: A02RELACIONTRANSFORMACION | H2: A02FACTORCARGA
A3: 1 | B3: 50501502 | C3: 2007-10-10 | D3: 3 | E3: 15 | F3: 13.5 | G3: 13.2/208
A4: =A3+1 -> 2 | B4: 10500518 | C4: 2007-10-10 | D4: 1 | E4: 25 | F4: 5 | G4: 13.2/208
A5: =A4+1 -> 3 | B5: 20101201 | C5: 2007-10-10 | D5: 4 | E5: 15 | F5: 3.6 | G5: 13.2/208
A6: 4 | B6: 50501703 | C6: 2007-10-10 | D6: 3 | E6: 15 | F6: 0.9 | G6: 13.2/208
A7: 5 | B7: 50501707 | C7: 2007-10-10 | D7: 3 | E7: 10 | F7: 0.9 | G7: 13.2/208
A8: 6 | B8: 50100208 | C8: 2007-10-10 | D8: 3 | E8: 15 | F8: 8.1 | G8: 13.2/208
A9: 7 | B9: 50501705 | C9: 2007-10-10 | D9: 3 | E9: 15 | F9: 0.9 | G9: 13.2/208
A10: 8 | B10: 10201013 | C10: 2007-10-10 | D10: 2 | E10: 200 | F10: 170 | G10: 13.2/208
A11: 9 | B11: 20100101 | C11: 2007-10-10 | D11: 3 | E11: 150 | F11: 120 | G11: 13.2/208
A12: 10 | B12: 10200801 | C12: 2007-10-10 | D12: 2 | E12: 300 | F12: 300 | G12: 13.2/208
A13: 11 | B13: 10500301 | C13: 2007-10-10 | D13: 1 | E13: 112.5 | F13: 200 | G13: 13.2/208
A14: 12 | B14: 10301606 | C14: 2007-10-10 | D14: 2 | E14: 150 | F14: 100 | G14: 13.2/208
A15: 13 | B15: 10300011 | C15: 2007-10-10 | D15: 2 | E15: 150 | F15: 100 | G15: 13.2/208
A16: 14 | B16: 10400601 | C16: 2007-10-10 | D16: 1 | E16: 45 | F16: 35 | G16: 13.2/208
A17: 15 | B17: 10500011 | C17: 2007-10-10 | D17: 2 | E17: 300 | F17: 250 | G17: 13.2/208
A18: 16 | B18: 10100006 | C18: 2007-10-10 | D18: 2 | E18: 150 | F18: 90 | G18: 13.2/208
A19: 17 | B19: 30100701 | C19: 2007-10-10 | D19: 3 | E19: 45 | F19: 30 | G19: 13.2/208
A20: 18 | B20: 10301607 | C20: 2007-10-10 | D20: 1 | E20: 112.5 | F20: 100 | G20: 13.2/208
A21: 19 | B21: 10200421 | C21: 2007-10-10 | D21: 2 | E21: 300 | F21: 200 | G21: 13.2/208
A22: 20 | B22: 10201510 | C22: 2007-10-10 | D22: 2 | E22: 150 | F22: 100 | G22: 13.2/208
A23: 21 | B23: 30200601 | C23: 2007-10-10 | D23: 3 | E23: 150 | F23: 100 | G23: 13.2/208
A24: 22 | B24: 10202702 | C24: 2007-10-10 | D24: 1 | E24: 150 | F24: 80 | G24: 13.2/208
A25: 23 | B25: 40200105 | C25: 2007-10-10 | D25: 1 | E25: 112.5 | F25: 90 | G25: 13.2/208
A26: 24 | B26: 50200010 | C26: 2007-10-10 | D26: 3 | E26: 500 | F26: 50 | G26: 13.2/208
A27: 25 | B27: 10300806 | C27: 2007-10-10 | D27: 2 | E27: 300 | F27: 150 | G27: 13.2/208
A28: 26 | B28: 10200408 | C28: 2007-10-10 | D28: 2 | E28: 75 | F28: 65 | G28: 13.2/208
A29: 27 | B29: 30200801 | C29: 2007-10-10 | D29: 3 | E29: 150 | F29: 30 | G29: 13.2/208
A30: 28 | B30: 10401301 | C30: 2007-10-10 | D30: 2 | E30: 400 | F30: 200 | G30: 13.2/208
A31: 29 | B31: 10500511 | C31: 2007-10-10 | D31: 2 | E31: 112.5 | F31: 50 | G31: 13.2/208
A32: 30 | B32: 10300201 | C32: 2007-10-10 | D32: 1 | E32: 75 | F32: 250 | G32: 13.2/208
A33: 31 | B33: 10100107 | C33: 2007-10-10 | D33: 2 | E33: 112.5 | F33: 300 | G33: 13.2/208
A34: 32 | B34: 10501108 | C34: 2007-10-10 | D34: 1 | E34: 150 | F34: 100 | G34: 13.2/208
A35: 33 | B35: 10301107 | C35: 2007-10-10 | D35: 2 | E35: 150 | F35: 100 | G35: 13.2/208
A36: 34 | B36: 30100105 | C36: 2007-10-10 | D36: 1 | E36: 30 | F36: 20 | G36: 13.2/208
A37: 35 | B37: 20200508 | C37: 2007-10-10 | D37: 4 | E37: 10 | F37: 1.8 | G37: 13.2/208
A38: 36 | B38: 20205902 | C38: 2007-10-10 | D38: 4 | E38: 30 | F38: 1.8 | G38: 13.2/208
A39: 37 | B39: 30201516 | C39: 2007-10-10 | D39: 4 | E39: 50 | F39: 1.8 | G39: 13.2/208
A40: 38 | B40: 50301305 | C40: 2007-10-10 | D40: 1 | E40: 75 | F40: 1.8 | G40: 13.2/208
A41: 39 | B41: 20300701 | C41: 2007-10-10 | D41: 4 | E41: 15 | F41: 1.8 | G41: 13.2/208
A42: 40 | B42: 30102205 | C42: 2007-10-10 | D42: 1 | E42: 15 | F42: 3.6 | G42: 13.2/208
A43: 41
A44: 42
A45: 43
A46: 44
A47: 45
A48: 46
A49: 47
A50: 48
A51: 49
A52: 50
A53: 51
A54: 52
A55: 53
A56: 54
A57: 55
A58: 56
A59: 57
A60: 58
A61: 59
A62: 60
A63: 61
A64: 62
A65: 63
A66: 64
A67: 65
A68: 66
A69: =A68+1 -> 67
A70: 68
A71: 69
A72: 70
A73: 71
A74: 72
A75: 73
A76: 74
A77: 75
A78: 76
A79: 77
A80: 78
A81: 79
A82: 80
A83: 81
A84: 82
A85: 83
A86: 84
A87: 85
A88: 86
A89: 87
A90: 88
A91: 89
A92: 90
A93: 91
A94: 92
A95: 93
A96: 94
A97: 95
A98: 96
A99: 97
A100: 98
A101: 99
A102: 100
A103: 101
A104: 102
A105: 103
A106: 104
A107: 105
A108: 106
A109: 107
A110: 108
A111: 109
A112: 110
A113: 111
A114: 112
A115: 113
A116: 114
A117: 115
A118: 116
A119: 117
A120: 118
A121: 119
A122: 120
A123: 121
A124: 122
A125: 123
A126: 124
A127: 125
A128: 126
A129: 127
A130: 128
A131: 129
A132: 130
A133: =A132+1 -> 131
A134: 132
A135: 133
A136: 134
A137: 135
A138: 136
A139: 137
A140: 138
A141: 139
A142: 140
A143: 141
A144: 142
A145: 143
A146: 144
A147: 145
A148: 146
A149: 147
A150: 148
A151: 149
A152: 150
A153: 151
A154: 152
A155: 153
A156: 154
A157: 155
A158: 156
A159: 157
A160: 158
A161: 159
A162: 160
A163: 161
A164: 162
A165: 163
A166: 164
A167: 165
A168: 166
A169: 167
A170: 168
A171: 169
A172: 170
A173: 171
A174: 172
A175: 173
A176: 174
A177: 175
A178: 176
A179: 177
A180: 178
A181: 179
A182: 180
A183: 181
A184: 182
A185: 183
A186: 184
A187: 185
A188: 186
A189: 187
A190: 188
A191: 189
A192: 190
A193: 191
A194: 192
A195: 193
A196: 194
A197: =A196+1 -> 195
A198: 196
A199: 197
A200: 198
... 1437 more rows

Sheet COSTO ELEMENTOS N1
A1: INFORMACIÓN DE COSTOS | C1: Pesos a diciembre de 2007
A3: TIPO CONDUCTOR
A4: A | B4: AISLADO
A5: D | B5: DESNUDO
A6: T | B6: TRENZADO
A8: MATERIAL CONDUCTOR
A9: AL | B9: ALUMINIO
A10: CU | B10: COBRE
A12: TIPO RED
A13: A | B13: ÁEREA
A14: S | B14: SUBTERRANEA
A16: TIPOS DE CAMARAS
A17: S | B17: SENCILLA
A18: D | B18: DOBLE
A19: A | B19: ALUMBRADO
A20: T | B20: TELEFONO
A22: MATERIALES DE POSTES
A23: CO | B23: CONCRETO | C23: P
A24: MA | B24: MADERA | C24: P
A25: ME | B25: METÁLICO | C25: P
A26: PA | B26: PALOMILLA | C26: P
A28: COSTOS DE ELEMENTOS E INSTALACIÓN
A30: INSTALACIÓN CONDUCTORES
A31: TIPO RED | B31: TIPO CONDUCTOR | C31: RED/CONDUCTOR | D31: INSTALACIÓN [$/m]
A32: =$A$13 -> A | B32: =A4 -> A | C32: =A32&"-"&B32 -> A-A | D32: 1859.53858
A33: =$A$13 -> A | B33: =A5 -> D | C33: =A33&"-"&B33 -> A-D | D33: 1859.53858
A34: =$A$13 -> A | B34: =A6 -> T | C34: =A34&"-"&B34 -> A-T | D34: 1859.53858
A35: =$A$14 -> S | B35: =A4 -> A | C35: =A35&"-"&B35 -> S-A | D35: 1675.38858
A36: =$A$14 -> S | B36: =A6 -> T | C36: =A36&"-"&B36 -> S-T | D36: 1210.151223
A38: PORCENTAJE POSTES RETENCIÓN/SUSPENSIÓN
B39: PORCENTAJE
A40: SUSPENSIÓN | B40: 0.7
A41: RETENSIÓN | B41: 0.3
A43: INSTALACIÓN Y ACCESORIOS POSTES
A44: TIPO | B44: RED COMUN | D44: RED TRENZADA
B45: ACCESORIOS | C45: INSTALACIÓN (URBANO) | D45: ACCESORIOS | E45: INSTALACIÓN (RURAL)
A46: SUSPENSIÓN | B46: 17617.97751 | C46: 233556.263 | D46: 32314.91665 | E46: 314042.7202
A47: RETENSIÓN | B47: 50117.4905 | C47: 233556.263 | D47: 67846.98636 | E47: 314042.7202
A48: PONDERADO | B48: =SUMPRODUCT($B40:$B41,B46:B47) -> 27367.83141 | C48: =SUMPRODUCT($B40:$B41,C46:C47) -> 233556.263 | D48: =SUMPRODUCT($B40:$B41,D46:D47) -> 42974.53756 | E48: =SUMPRODUCT($B40:$B41,E46:E47) -> 314042.7202
A50: INSTALACIÓN Y ACCESORIOS POSTES POR TIPO DE CONDUCTOR Y LOCALIZACIÓN
A51: GRUPO | B51: TIPO CONDUCTOR | C51: GRUPO/TIPO CONDUCTOR | D51: ACCESORIOS | E51: INSTALACIÓN | F51: TOTAL
A52: 1 | B52: =$A$4 -> A | C52: =A52&"-"&B52 -> 1-A | D52: 24117.88011 | E52: 233556.263 | F52: 257674.1431
A53: 2 | B53: =$A$4 -> A | C53: =A53&"-"&B53 -> 2-A | D53: 24117.88011 | E53: 233556.263 | F53: 257674.1431
A54: 3 | B54: =$A$4 -> A | C54: 3-A | D54: 24117.88011 | E54: 233556.263 | F54: 257674.1431
A55: 4 | B55: =$A$4 -> A | C55: 4-A | D55: 24117.88011 | E55: 314042.7202 | F55: 338160.6003
A56: 1 | B56: =$A$5 -> D | C56: 1-D | D56: 24117.88011 | E56: 233556.263 | F56: 257674.1431
A57: 2 | B57: =$A$5 -> D | C57: 2-D | D57: 24117.88011 | E57: 233556.263 | F57: 257674.1431
A58: 3 | B58: D | C58: 3-D | D58: 24117.88011 | E58: 233556.263 | F58: 257674.1431
A59: 4 | B59: D | C59: 4-D | D59: 24117.88011 | E59: 314042.7202 | F59: 338160.6003
A60: 1 | B60: =$A$6 -> T | C60: 1-T | D60: 39421.33059 | E60: 233556.263 | F60: 272977.5936
A61: 2 | B61: =$A$6 -> T | C61: 2-T | D61: 39421.33059 | E61: 233556.263 | F61: 272977.5936
A62: 3 | B62: T | C62: 3-T | D62: 39421.33059 | E62: 233556.263 | F62: 272977.5936
A63: 4 | B63: T | C63: 4-T | D63: 39421.33059 | E63: 314042.7202 | F63: 353464.0508
A65: COSTOS ADICIONALES CAMARAS (INGENIERÍA, INTERVENTORÍA, OTROS)
A66: TIPO CÁMARA | B66: TIPO | C66: INGENIERÍA Y OTROS [$/Cámara]
A67: SENCILLA | B67: S | C67: 38184.3
A68: DOBLE | B68: D | C68: 38184.3
A69: TELEFONO | B69: T | C69: 38184.3
A70: ALUMBRADO PÚBLICO | B70: A | C70: 38184.3
A72: INSTALACIÓN CANALIZACIÓN
B73: INSTALACIÓN [$/m]
A74: BANCO DE DUCTOS 1 Ø 4" PVC A BANCO DE DUCTOS 12 Ø 4" PVC | B74: 4596.355
A76: COSTO DE CONDUCTORES
B77: DESCRIPCIÓN | E77: COSTO DDP [$/m]
A78: CONDUCTORES | B78: TIPO | C78: MATERIAL | D78: CALIBRE
A79: A-Al-1 | B79: AISLADO | C79: ALUMINIO | D79: 1 | E79: 1915.28203
A80: A-Al-2 | B80: AISLADO | C80: ALUMINIO | D80: 2 | E80: 1492.957374
A81: A-Al-4 | B81: AISLADO | C81: ALUMINIO | D81: 4 | E81: 892.6599141
A82: A-Al-6 | B82: AISLADO | C82: ALUMINIO | D82: 6 | E82: 515.0689636
A83: A-Al-8 | B83: AISLADO | C83: ALUMINIO | D83: 8 | E83: 515.0689636
A84: A-Al-10 | B84: AISLADO | C84: ALUMINIO | D84: 10 | E84: 515.0689636
A85: A-Al-12 | B85: AISLADO | C85: ALUMINIO | D85: 12 | E85: 515.0689636
A86: A-Al-250 | B86: AISLADO | C86: ALUMINIO | D86: 250 | E86: 5966.808879
A87: A-Al-350 | B87: AISLADO | C87: ALUMINIO | D87: 350 | E87: 8574.350972
A88: A-Al-1/0 | B88: AISLADO | C88: ALUMINIO | D88: 1/0 | E88: 2447.757421
A89: A-Al-2/0 | B89: AISLADO | C89: ALUMINIO | D89: 2/0 | E89: 3118.762996
A90: A-Al-3/0 | B90: AISLADO | C90: ALUMINIO | D90: 3/0 | E90: 3965.336337
A91: A-Al-4/0 | B91: AISLADO | C91: ALUMINIO | D91: 4/0 | E91: 5031.730143
A92: A-Al-6/0 | B92: AISLADO | C92: ALUMINIO | D92: 6/0 | E92: 6648.39662
A93: A-Cu-1 | B93: AISLADO | C93: COBRE | D93: 1 | E93: 8721.269969
A94: A-Cu-2 | B94: AISLADO | C94: COBRE | D94: 2 | E94: 6985.799592
A95: A-Cu-4 | B95: AISLADO | C95: COBRE | D95: 4 | E95: 4518.980651
A96: A-Cu-6 | B96: AISLADO | C96: COBRE | D96: 6 | E96: 2967.335724
A97: A-Cu-8 | B97: AISLADO | C97: COBRE | D97: 8 | E97: 1992.863178
A98: A-Cu-10 | B98: AISLADO | C98: COBRE | D98: 10 | E98: 1378.13506
A99: A-Cu-12 | B99: AISLADO | C99: COBRE | D99: 12 | E99: 992.6946009
A100: A-Cu-14 | B100: AISLADO | C100: COBRE | D100: 14 | E100: 750.163604
A101: A-Cu-250 | B101: AISLADO | C101: COBRE | D101: 250 | E101: 25370.3212
A102: A-Cu-300 | B102: AISLADO | C102: COBRE | D102: 300 | E102: 30383.0238
A103: A-Cu-350 | B103: AISLADO | C103: COBRE | D103: 350 | E103: 36085.56598
A104: A-Cu-400 | B104: AISLADO | C104: COBRE | D104: 400 | E104: 40406.45236
A105: A-Cu-500 | B105: AISLADO | C105: COBRE | D105: 500 | E105: 50416.0446
A106: A-Cu-1/0 | B106: AISLADO | C106: COBRE | D106: 1/0 | E106: 10909.38581
A107: A-Cu-1x350KCM | B107: AISLADO | C107: COBRE | D107: 1x350KCM | E107: 36085.56598
A108: A-Cu-2/0 | B108: AISLADO | C108: COBRE | D108: 2/0 | E108: 13666.76756
A109: A-Cu-2x350KCM | B109: AISLADO | C109: COBRE | D109: 2x350KCM | E109: 72171.13196
A110: A-Cu-2x4/0 | B110: AISLADO | C110: COBRE | D110: 2x4/0 | E110: 43055.55263
A111: A-Cu-2x500KCM | B111: AISLADO | C111: COBRE | D111: 2x500KCM | E111: 100832.0892
A112: A-Cu-3/0 | B112: AISLADO | C112: COBRE | D112: 3/0 | E112: 17145.61478
A113: A-Cu-4/0 | B113: AISLADO | C113: COBRE | D113: 4/0 | E113: 21527.77631
A114: A-Cu-6/0 | B114: AISLADO | C114: COBRE | D114: 6/0 | E114: 28171.18854
A115: D-Al-1 | B115: DESNUDO | C115: ALUMINIO | D115: 1 | E115: 1692.66354
A116: D-Al-2 | B116: DESNUDO | C116: ALUMINIO | D116: 2 | E116: 1400.013306
A117: D-Al-4 | B117: DESNUDO | C117: ALUMINIO | D117: 4 | E117: 984.0366632
A118: D-Al-6 | B118: DESNUDO | C118: ALUMINIO | D118: 6 | E118: 722.3846885
A119: D-Al-8 | B119: DESNUDO | C119: ALUMINIO | D119: 8 | E119: 558.060582
A120: D-Al-10 | B120: DESNUDO | C120: ALUMINIO | D120: 10 | E120: 454.3997359
A121: D-Al-12 | B121: DESNUDO | C121: ALUMINIO | D121: 12 | E121: 389.4033855
A122: D-Al-14 | B122: DESNUDO | C122: ALUMINIO | D122: 14 | E122: 348.505682
A123: D-Al-180 | B123: DESNUDO | C123: ALUMINIO | D123: 180 | E123: 4945.480893
A124: D-Al-336 | B124: DESNUDO | C124: ALUMINIO | D124: 336 | E124: 6312.070825
A125: D-Al-1/0 | B125: DESNUDO | C125: ALUMINIO | D125: 1/0 | E125: 2061.642822
A126: D-Al-2/0 | B126: DESNUDO | C126: ALUMINIO | D126: 2/0 | E126: 2526.616713
A127: D-Al-3/0 | B127: DESNUDO | C127: ALUMINIO | D127: 3/0 | E127: 3113.25044
A128: D-Al-4/0 | B128: DESNUDO | C128: ALUMINIO | D128: 4/0 | E128: 3852.208947
A129: D-Al-6/0 | B129: DESNUDO | C129: ALUMINIO | D129: 6/0 | E129: 4972.479377
A130: D-Cu-1 | B130: DESNUDO | C130: COBRE | D130: 1 | E130: 8721.269969
A131: D-Cu-2 | B131: DESNUDO | C131: COBRE | D131: 2 | E131: 6985.799592
A132: D-Cu-4 | B132: DESNUDO | C132: COBRE | D132: 4 | E132: 4518.980651
A133: D-Cu-6 | B133: DESNUDO | C133: COBRE | D133: 6 | E133: 2967.335724
A134: D-Cu-8 | B134: DESNUDO | C134: COBRE | D134: 8 | E134: 1992.863178
A135: D-Cu-10 | B135: DESNUDO | C135: COBRE | D135: 10 | E135: 1378.13506
A136: D-Cu-12 | B136: DESNUDO | C136: COBRE | D136: 12 | E136: 992.6946009
A137: D-Cu-14 | B137: DESNUDO | C137: COBRE | D137: 14 | E137: 750.163604
A138: D-Cu-16 | B138: DESNUDO | C138: COBRE | D138: 16 | E138: 599.3476704
A139: D-Cu-750 | B139: DESNUDO | C139: COBRE | D139: 750 | E139: 49753.87766
A140: D-Cu-1/0 | B140: DESNUDO | C140: COBRE | D140: 1/0 | E140: 10909.38581
A141: D-Cu-2/0 | B141: DESNUDO | C141: COBRE | D141: 2/0 | E141: 13666.76756
A142: D-Cu-6/0 | B142: DESNUDO | C142: COBRE | D142: 6/0 | E142: 28171.18854
A143: T-Al-2 | B143: TRENZADO | C143: ALUMINIO | D143: 2 | E143: 1243.615138
A144: T-Al-4 | B144: TRENZADO | C144: ALUMINIO | D144: 4 | E144: 643.3176776
A145: T-Al-6 | B145: TRENZADO | C145: ALUMINIO | D145: 6 | E145: 643.3176776
A146: T-Al-8 | B146: TRENZADO | C146: ALUMINIO | D146: 8 | E146: 643.3176776
A147: T-Al-1/0 | B147: TRENZADO | C147: ALUMINIO | D147: 1/0 | E147: 2198.415185
A148: T-Al-2/0 | B148: TRENZADO | C148: ALUMINIO | D148: 2/0 | E148: 2869.420759
A149: T-Al-4/0 | B149: TRENZADO | C149: ALUMINIO | D149: 4/0 | E149: 4782.387906
A150: T-Cu-2 | B150: TRENZADO | C150: COBRE | D150: 2 | E150: 7662.667849
A151: T-Cu-4 | B151: TRENZADO | C151: COBRE | D151: 4 | E151: 5195.848908
A152: T-Cu-6 | B152: TRENZADO | C152: COBRE | D152: 6 | E152: 3644.203981
A153: T-Cu-8 | B153: TRENZADO | C153: COBRE | D153: 8 | E153: 2669.731435
A154: T-Cu-10 | B154: TRENZADO | C154: COBRE | D154: 10 | E154: 2055.003318
A155: T-Cu-12 | B155: TRENZADO | C155: COBRE | D155: 12 | E155: 1669.562858
A156: T-Cu-1/0 | B156: TRENZADO | C156: COBRE | D156: 1/0 | E156: 11586.25407
A157: T-Cu-2/0 | B157: TRENZADO | C157: COBRE | D157: 2/0 | E157: 14343.63581
A159: COSTO CANALIZACIÓN CÁMARAS
A160: TIPO CÁMARA | B160: COSTO CANALIZACIÓN [$/m]
A161: A-1 | B161: 91478.19406
A162: A-2 | B162: 91478.19406
A163: A-3 | B163: 136406.2953
A164: A-4 | B164: 136406.2953
A165: A-5 | B165: 180891.8581
A166: A-6 | B166: 180891.8581
A167: A-7 | B167: 272370.0522
A168: A-10 | B168: 317298.1534
A169: A-11 | B169: 361783.7163
A170: A-12 | B170: 361783.7163
A171: D-1 | B171: 91478.19406
A172: D-2 | B172: 91478.19406
A173: D-3 | B173: 136406.2953
A174: D-4 | B174: 136406.2953
A175: D-5 | B175: 180891.8581
A176: D-6 | B176: 180891.8581
A177: D-7 | B177: 272370.0522
A178: D-8 | B178: 272812.5905
A179: D-9 | B179: 364290.7846
A180: D-10 | B180: 317298.1534
A181: D-11 | B181: 361783.7163
A182: D-12 | B182: 361783.7163
A183: D-13 | B183: 272370.0522
A184: D-14 | B184: 453261.9103
A185: D-15 | B185: 453261.9103
A186: D-16 | B186: 453261.9103
A187: D-17 | B187: 542675.5744
A188: D-18 | B188: 542675.5744
A189: D-20 | B189: 634153.7684
A190: S-1 | B190: 91478.19406
A191: S-2 | B191: 91478.19406
A192: S-3 | B192: 136406.2953
A193: S-4 | B193: 136406.2953
A194: S-5 | B194: 180891.8581
A195: S-6 | B195: 180891.8581
A196: S-7 | B196: 272370.0522
A197: S-8 | B197: 272812.5905
A198: S-9 | B198: 364290.7846
A199: S-10 | B199: 317298.1534
A200: S-11 | B200: 361783.7163
A201: S-12 | B201: 361783.7163
A202: S-13 | B202: 272370.0522
A203: S-14 | B203: 453261.9103
A204: S-15 | B204: 453261.9103
A205: S-16 | B205: 453261.9103
A206: S-17 | B206: 542675.5744
A207: S-18 | B207: 542675.5744
A208: S-24 | B208: 723567.4325
A209: T-1 | B209: 91478.19406
A210: T-2 | B210: 91478.19406
A211: T-3 | B211: 136406.2953
A212: T-4 | B212: 136406.2953
A213: T-5 | B213: 180891.8581
A214: T-6 | B214: 180891.8581
... 139 more rows

Sheet TRANSFORMADORES
A1: TRANSFORMADORES DE DISTRIBUCIÓN
A3: GRUPO DE CALIDAD | B3: TRANSFORMADORES DE DISTRIBUCIÓN
A4: 1 | B4: 150
A5: 2 | B5: 400
A6: 3 | B6: 350
A7: 4 | B7: 1500
A8: TOTAL | B8: =SUM(B4:B7) -> 2400
